Workbook

Sheet Instruktioner
A1: INSTRUKTIONER
A3: Grunduppgifter
B20: Fyll i de gula fälten. Din ekonom vet aktuella procentsatser för lkp, löneuppräkning och högskolans påslag.
B21: Finansiärens villkor framgår av utlysningen.
A23: Sammanställning | B23: Visar projektets kostnad utifrån HBs verkliga kostnader samt enligt finansiärens villkor.
B24: Alla siffror hämtas från andra källor i kalkylen, här fylls inget i.
A26: Lönekostnad FINANSIÄR
B30: Fyll i de gula fälten. Lönekostnad beräknas enligt finansiärens villkor enligt det som angivits i fliken Grunduppgifter.
B31: Lönekostnaden visas för grundlön, LKP och totalt per år och totalt samt per individ och alla.
B32: Observera att omfattningen måste anges i procent (%).
A34: Lönekostnad HB
B38: I denna flika hämtas personer, lön och omfattning från fliken Lönekostnad FINANSIÄR. Lönekostnad beräknas enligt HBs villkor enligt det som angivits i fliken Grunduppgifter.
B39: Lönekostnaden visas för grundlön, LKP och totalt per år och totalt samt per individ och alla.
B40: Om personens insats är IN KIND av något slag och inte ska beräknas som en kostnad i projektet för HB så kan månadslönen sättas till 0.
A42: Resekostnader
B45: Fyll i de gula fälten med projektets resekostnader.
A47: Externa tjänster
B52: Fyll i de gula fälten med projektets externa tjänster och konsulter.
A54: Övriga kostnader
B61: Fyll i de gula fälten med projektets driftskostnader.
A63: Lokalkostnader
B94: Fyll i de gula fälten med omfattning i procent respektive antal timmar för den typ av lokal som behövs för projektet.
B95: Tjänsterum bör alltid budgeteras för den tid som en person är tänkt att vara med i projektet.
B96: För externa lokaler behöver även beskrivning av lokal och kostnas/timme anges.
A98: Utrustning och avskrivningar
B115: Fyll i anskaffningsvärdet samt antalet månader som ska avskrivningarna ska bekostas av projektet respektive år i de gula fälten.
B116: Observera att utrustning med anskaffningsvärde under 20 tkr inte avskrivs utan utgör en övrig kostnad.
A118: Påslag
B128: I denna flik beräknas påslagen enligt finansiärens villkor och högskolans villkor enligt vad som angivits i fliken Grunduppgifter. Observera att det är viktigt att det är korrekt valt vilka kostnaddslag som
B129: finansiärens villkor beräknas på i fliken Grunduppgifter för att påslaget ska beräknas korrekt.
B130: Om finansiären medger ett fast belopp anges procentsats 0% i fliken grunduppgifter och beloppet anges i de gula fälten i denna flik.
A132: IN KIND | B132: I denna flik kan eventuell IN KIND anges och beräknas.
B133: OBS: det som fylls i som IN KIND i denna flik påverkar inte vad som angivits i de andra flikarna.
A135: Öppna Resursallokeringen | B135: För att öppna resursallokeringen tryck på knappen Öppna resursallokeringen. Anändaren ombeds att ange lösenord. Utan korrekt lösenord kan denna funktion inte användas.
A137: Stäng resursallokeringen | B137: Tryck på knappen Stäng resursallokeringen för att stänga flikarna. Detta bör göras efter varje tillfälle för att förhidra att informationen ändras oavsiktligt.
A139: Resursallokering
B143: Fyll i individernas årsarbetstid i timmar i de lila fälten. Baserat på den procentuella omfattning som angetts i fliken Lönekostnad FINANSIÄR beräknas tiden om till timmar respektive manmånader.
B144: När resursallokeringen är klar, tryck på knappen Spara ursprunglig resursallokering. Formlerna skrivs då över med med den aktuella resursallokeringen.
B145: OBS - allt måste vara ifyllt innan den ursprungliga resursallokeringen sparas!
B147: Om resursallokeringen sparas av misstag eller innan den var klar kan formlerna återställas genom att trycka på knappen Uppdatera Reursallokering med formler.
A150: År 1
B158: Fyll i antalet timmar för utfallet/prognos för år 1. OBS måste ske för samtliga individer. Om någon individ inte får ett utfall
B159: ifyllt blir utfallet för individen detta år 0 timmar när det sparas.
B160: Tryck Uppdatera/revidera budget. Omfattningen ändras/skrivs då över i flikarna Lönekostnad FINANSIÄR och Lönekostnad HB och kostnaden för uppdaterad omfattning beräknas.
B161: Fliken År 2 uppdateras utifrån den nya omfattningen i fliken Lönekostnad FINANSIÄR för år 1.
B162: Vid förändrat antal timmas som ska uppdateras i personens TFU ska internt gällande rutiner följas
B164: Obsererera att omfattningen i % beräknas om och skrivs över i fliken Lönekostnad FINANSIÄR. Denna uppdatering kan inte göras ogjord. Om uppdaterad tid inte var korrekt kan detta enbart
B165: korrigeras genom att ny uppdatering görs med korrekta timmar.
A167: År 2
B175: Fyll i antalet timmar för utfallet/prognos för år 2. OBS måste ske för samtliga individer. Om någon individ inte får ett utfall
B176: ifyllt blir utfallet för individen detta år 0 timmar när det sparas.
B177: Tryck Uppdatera/revidera budget. Omfattningen ändras/skrivs då över i flikarna Lönekostnad FINANSIÄR och Lönekostnad HB och kostnaden för uppdaterad omfattning beräknas.
B178: Fliken År 3 uppdateras utifrån den nya omfattningen i fliken Lönekostnad FINANSIÄR för år 2.
B179: Vid förändrat antal timmas som ska uppdateras i personens TFU ska internt gällande rutiner följas
B181: Obsererera att omfattningen i % beräknas om och skrivs över i fliken Lönekostnad FINANSIÄR. Denna uppdatering kan inte göras ogjord. Om uppdaterad tid inte var korrekt kan detta enbart
B182: korrigeras genom att ny uppdatering görs med korrekta timmar.
A184: År 3-5 | B184: Som för år 1 och 2.

Sheet Beräkning snittlön
A1: Antagande för beräkning: | B1: Med heltidsstudier är en doktorandutbildning 4 år.
B2: Lönen under doktorandutbildningen ligger mellan 26500-30600 kr/mån.
B3: Doktoranden antas ligga i de olika lönenivåerna lika länge, dvs ett år/steg.
B5: År | C5: Lön | D5: Mån | E5: Årslön | F5: Bruttolön | G5: Snitt/mån | H5: LKP | I5: Lönerev | J5: Kostn/år | K5: Kostnad 4 år
A6: Ingångslön | B6: 1 | C6: 26500 | D6: 12 | E6: =C6*D6 -> 318000 | F6: =SUM(E6:E9) -> 1369200 | G6: =F6/48 -> 28525 | H6: 1.5581 | I6: 1.025 | J6: =$G$6*12*I6*H6 -> 546671.0707 | K6: =SUM(J6:J9) -> 2270060.163
A7: 60 hp | B7: 2 | C7: 27500 | D7: 12 | E7: =C7*D7 -> 330000 | H7: =H6 -> 1.5581 | I7: =I6*1.025 -> 1.050625 | J7: =$G$6*12*I7*H7 -> 560337.8475
A8: 120 hp | B8: 3 | C8: 29500 | D8: 12 | E8: 354000 | H8: =H6 -> 1.5581 | I8: =I7*1.025 -> 1.076890625 | J8: 574346.2937
A9: 180 hp | B9: 4 | C9: 30600 | D9: 12 | E9: 367200 | H9: =H6 -> 1.5581 | I9: 1.103812891 | J9: 588704.951
G10: Om denna används blir det löneuppräkning på löneuppräkning enl trappan
A33: https://www.hb.se/Global/HB%20-%20anst%c3%a4lld/Styrdokument/Lokalt%20Villkorsavtal%202019.pdf

Sheet Sammanställning
A1: SAMMANSTÄLLNING PROJEKTKALKYL
A2: ="Projekt: "&Grunduppgifter!B5 -> Projekt:
C4: Enl. fin. villkor | D4: Enl. HBs villkor | G4: Enligt finansiärens villkor / år | N4: Enligt högskolans villkor / år
C5: Totalt | D5: Totalt | G5: År 1 | H5: År 2 | I5: År 3 | J5: År 4 | K5: År 5 | L5: Summa | N5: År 1 | O5: År 2 | P5: År 3 | Q5: År 4 | R5: År 5 | S5: Summa
A6: Direkta kostnader
B7: Personal | C7: ='Lönekostnad FINANSIÄR'!$Z$41 -> 2629082.771 | D7: ='Lönekostnad HB'!$Y$41 -> 2637462.981 | G7: ='Lönekostnad FINANSIÄR'!$K$41 -> 630161.4346 | H7: ='Lönekostnad FINANSIÄR'!$N$41 -> 645915.4705 | I7: ='Lönekostnad FINANSIÄR'!$Q$41 -> 662063.3572 | J7: ='Lönekostnad FINANSIÄR'!$T$41 -> 690942.5086 | K7: ='Lönekostnad FINANSIÄR'!$W$41 -> 0 | L7: =SUM(G7:K7) -> 2629082.771 | N7: ='Lönekostnad HB'!J41 -> 632179.5389 | O7: ='Lönekostnad HB'!M41 -> 647984.0274 | P7: ='Lönekostnad HB'!P41 -> 664183.6281 | Q7: ='Lönekostnad HB'!S41 -> 693115.7862 | R7: ='Lönekostnad HB'!V41 -> 0 | S7: =SUM(N7:R7) -> 2637462.981
B8: Resor | C8: =Resekostnader!$G$40 -> 70000 | D8: =Resekostnader!$G$40 -> 70000 | G8: =Resekostnader!$B$40 -> 15000 | H8: =Resekostnader!$C$40 -> 15000 | I8: =Resekostnader!$D$40 -> 15000 | J8: =Resekostnader!$E$40 -> 25000 | K8: =Resekostnader!$F$40 -> 0 | L8: =SUM(G8:K8) -> 70000 | N8: =G8 -> 15000 | O8: =H8 -> 15000 | P8: =I8 -> 15000 | Q8: 25000 | R8: 0 | S8: =SUM(N8:R8) -> 70000
B9: Externa tjänster | C9: ='Externa tjänster'!$G$40 -> 11000 | D9: ='Externa tjänster'!$G$40 -> 11000 | G9: ='Externa tjänster'!$B$40 -> 0 | H9: ='Externa tjänster'!$C$40 -> 0 | I9: ='Externa tjänster'!$D$40 -> 0 | J9: ='Externa tjänster'!$E$40 -> 11000 | K9: ='Externa tjänster'!$F$40 -> 0 | L9: 11000 | N9: =G9 -> 0 | O9: =H9 -> 0 | P9: =I9 -> 0 | Q9: =J9 -> 11000 | R9: =K9 -> 0 | S9: 11000
B10: Övriga driftskostnader | C10: ='Övriga kostnader'!$G$40 -> 115000 | D10: ='Övriga kostnader'!$G$40 -> 115000 | G10: ='Övriga kostnader'!$B$40 -> 25000 | H10: ='Övriga kostnader'!$C$40 -> 25000 | I10: ='Övriga kostnader'!$D$40 -> 25000 | J10: ='Övriga kostnader'!$E$40 -> 40000 | K10: ='Övriga kostnader'!$F$40 -> 0 | L10: 115000 | N10: 25000 | O10: 25000 | P10: 25000 | Q10: 40000 | R10: 0 | S10: 115000
B11: Lokaler | C11: =Lokalkostnader!$O$41 -> 81907.2 | D11: =Lokalkostnader!$O$41 -> 81907.2 | G11: =Lokalkostnader!$J$41 -> 20476.8 | H11: =Lokalkostnader!$K$41 -> 20476.8 | I11: =Lokalkostnader!$L$41 -> 20476.8 | J11: =Lokalkostnader!$M$41 -> 20476.8 | K11: =Lokalkostnader!$N$41 -> 0 | L11: 81907.2 | N11: 20476.8 | O11: 20476.8 | P11: 20476.8 | Q11: 20476.8 | R11: 0 | S11: 81907.2
B12: Utrustning och avskrivningar | C12: ='Utrustning och avskrivningar'!$O$46 -> 0 | D12: ='Utrustning och avskrivningar'!$O$46 -> 0 | G12: ='Utrustning och avskrivningar'!$J$46 -> 0 | H12: ='Utrustning och avskrivningar'!$K$46 -> 0 | I12: ='Utrustning och avskrivningar'!$L$46 -> 0 | J12: ='Utrustning och avskrivningar'!$M$46 -> 0 | K12: ='Utrustning och avskrivningar'!$N$46 -> 0 | L12: 0 | N12: 0 | O12: 0 | P12: 0 | Q12: 0 | R12: 0 | S12: 0
A13: Summa direkta kostnader | C13: =SUM(C7:C12) -> 2906989.971 | D13: =SUM(D7:D12) -> 2915370.181 | G13: =SUM(G7:G12) -> 690638.2346 | H13: =SUM(H7:H12) -> 706392.2705 | I13: 722540.1572 | J13: 787419.3086 | K13: 0 | L13: 2906989.971 | N13: =SUM(N7:N12) -> 692656.3389 | O13: 708460.8274 | P13: 724660.4281 | Q13: 789592.5862 | R13: 0 | S13: 2915370.181
A15: Indirekta kostnader
B16: Påslag/Overhead | C16: =Påslag!$G$15 -> 1688922.772 | D16: =Påslag!$M$15 -> 1694306.219 | G16: =Påslag!$B$15 -> 404815.7056 | H16: =Påslag!$C$15 -> 414936.0982 | I16: =Påslag!$D$15 -> 425309.5007 | J16: =Påslag!$E$15 -> 443861.4675 | K16: =Påslag!$F$15 -> 0 | L16: =SUM(G16:K16) -> 1688922.772 | N16: =Påslag!H15 -> 406112.1358 | O16: =Påslag!I15 -> 416264.9392 | P16: =Påslag!J15 -> 426671.5627 | Q16: =Påslag!K15 -> 445257.581 | R16: =Påslag!L15 -> 0 | S16: =SUM(N16:R16) -> 1694306.219
A17: Summa indirekta kostnader | C17: =SUM(C16) -> 1688922.772 | D17: =SUM(D16) -> 1694306.219 | G17: =SUM(G16) -> 404815.7056 | H17: =SUM(H16) -> 414936.0982 | I17: 425309.5007 | J17: 443861.4675 | K17: 0 | L17: 1688922.772 | N17: =SUM(N16) -> 406112.1358 | O17: =SUM(O16) -> 416264.9392 | P17: =SUM(P16) -> 426671.5627 | Q17: =SUM(Q16) -> 445257.581 | R17: =SUM(R16) -> 0 | S17: 1694306.219
A19: Summa kostnader för projektet | C19: =C13+C17 -> 4595912.743 | D19: =D13+D17 -> 4609676.399 | G19: =G13+G17 -> 1095453.94 | H19: =H13+H17 -> 1121328.369 | I19: 1147849.658 | J19: 1231280.776 | K19: 0 | L19: =SUM(G19:K19) -> 4595912.743 | N19: =N13+N17 -> 1098768.475 | O19: =O13+O17 -> 1124725.767 | P19: 1151331.991 | Q19: 1234850.167 | R19: 0 | S19: =SUM(N19:R19) -> 4609676.399
A21: Belopp som söks från finansiär | C21: =C19*Grunduppgifter!$D$39 -> 4595912.743 | D21: =C21 -> 4595912.743 | G21: =G19*Grunduppgifter!$D$39 -> 1095453.94 | H21: =H19*Grunduppgifter!$D$39 -> 1121328.369 | I21: =I19*Grunduppgifter!$D$39 -> 1147849.658 | J21: =J19*Grunduppgifter!$D$39 -> 1231280.776 | K21: =K19*Grunduppgifter!$D$39 -> 0 | L21: =SUM(G21:K21) -> 4595912.743 | N21: =N19*Grunduppgifter!$D$39 -> 1098768.475 | O21: =O19*Grunduppgifter!$D$39 -> 1124725.767 | P21: =P19*Grunduppgifter!$D$39 -> 1151331.991 | Q21: =Q19*Grunduppgifter!$D$39 -> 1234850.167 | R21: =R19*Grunduppgifter!$D$39 -> 0 | S21: =SUM(N21:R21) -> 4609676.399
A23: Samfinansiering för projektet
B24: Enligt utlysningens villkor | C24: =(1-Grunduppgifter!$D$39)*Sammanställning!$C$19 -> 0 | D24: =(1-Grunduppgifter!$D$39)*Sammanställning!$C$19 -> 0 | G24: =(1-Grunduppgifter!$D$39)*Sammanställning!$G$19 -> 0 | H24: =(1-Grunduppgifter!$D$39)*Sammanställning!$H$19 -> 0 | I24: =(1-Grunduppgifter!$D$39)*Sammanställning!$I$19 -> 0 | J24: =(1-Grunduppgifter!$D$39)*Sammanställning!$J$19 -> 0 | K24: =(1-Grunduppgifter!$D$39)*Sammanställning!$K$19 -> 0 | L24: =SUM(G24:K24) -> 0 | N24: =(1-Grunduppgifter!$D$39)*Sammanställning!$G$19 -> 0 | O24: =(1-Grunduppgifter!$D$39)*Sammanställning!$H$19 -> 0 | P24: =(1-Grunduppgifter!$D$39)*Sammanställning!$I$19 -> 0 | Q24: =(1-Grunduppgifter!$D$39)*Sammanställning!$J$19 -> 0 | R24: =(1-Grunduppgifter!$D$39)*Sammanställning!$K$19 -> 0 | S24: =SUM(N24:R24) -> 0
B25: För ej full kostnadstäckning Påslag | D25: =(D16-C16) -> 5383.446722 | N25: =(N16-G16) -> 1296.430214 | O25: =(O16-H16) -> 1328.84097 | P25: 1362.061994 | Q25: 1396.113544 | R25: =(R16-K16) -> 0 | S25: 5383.446722
B26: För ej full kostnadstäckning lön och LKP | D26: =('Lönekostnad HB'!X41-'Lönekostnad FINANSIÄR'!Y41)+('Lönekostnad HB'!W41-'Lönekostnad FINANSIÄR'!X41) -> 8380.209716 | N26: =('Lönekostnad HB'!H41-'Lönekostnad FINANSIÄR'!I41)+('Lönekostnad HB'!I41-'Lönekostnad FINANSIÄR'!J41) -> 2018.104319 | O26: =('Lönekostnad HB'!K41-'Lönekostnad FINANSIÄR'!L41)+('Lönekostnad HB'!L41-'Lönekostnad FINANSIÄR'!M41) -> 2068.556927 | P26: =('Lönekostnad HB'!N41-'Lönekostnad FINANSIÄR'!O41)+('Lönekostnad HB'!O41-'Lönekostnad FINANSIÄR'!P41) -> 2120.27085 | Q26: =('Lönekostnad HB'!Q41-'Lönekostnad FINANSIÄR'!R41)+('Lönekostnad HB'!R41-'Lönekostnad FINANSIÄR'!S41) -> 2173.277621 | R26: =('Lönekostnad HB'!T41-'Lönekostnad FINANSIÄR'!U41)+('Lönekostnad HB'!U41-'Lönekostnad FINANSIÄR'!V41) -> 0 | S26: 8380.209716
A27: Summa samfinansiering | C27: =SUM(C24:C26) -> 0 | D27: =SUM(D24:D26) -> 13763.65644 | G27: =SUM(G24:G26) -> 0 | H27: =SUM(H24:H26) -> 0 | I27: 0 | J27: 0 | K27: 0 | L27: =SUM(G27:K27) -> 0 | N27: =SUM(N24:N26) -> 3314.534533 | O27: =SUM(O24:O26) -> 3397.397896 | P27: =SUM(P24:P26) -> 3482.332844 | Q27: =SUM(Q24:Q26) -> 3569.391165 | R27: =SUM(R24:R26) -> 0 | S27: 13763.65644
A31: Andel extern finansiering från finansiär | C31: =C21/C19 -> 1 | D31: =D21/D19 -> 0.9970141816
A32: Andel egen finansiering från sektion/akademi | C32: =C27/C19 -> 0 | D32: =D27/D19 -> 0.002985818363
C33: =SUM(C31:C32) -> 1 | D33: =SUM(D31:D32) -> 1

Sheet Grunduppgifter
A1: PROJEKTINFORMATION
A3: Ansökan / Beviljat projekt
A4: Orgenhet och Akt/proj
A5: Projekttitel:
A6: Huvudsökande:
A7: Projektledare:
A8: Sektion:
A9: Ekonom på sektion:
A10: Projektlängd (månader)
A11: Projektstart
A14: Anteckningar:
A24: FÖRUTSÄTTNINGAR PROJEKTKALKYL
C27: % | D27: faktor
A28: Högskolans lönekostnadspålägg | C28: 0.5415 | D28: =C28 -> 0.5415
A29: Lönekostnadspålägg som medges av finansiär | C29: 0.5415 | D29: =C29 -> 0.5415
A31: Löneuppräkning | C31: 0.025 | D31: =C31 -> 0.025 | G31: Påslag FO 2021
A32: Löneuppräkning som medges av finansiär | C32: 0.025 | D32: =C32 -> 0.025 | G32: A1 | I32: 0.6499
G33: A2 | I33: 0.651
A34: Högskolans totala påslag | C34: 0.6424 | D34: =C34 -> 0.6424 | G34: A3 | I34: 0.6265
A35: Påslag som medges av finansiär | C35: 0.6424 | D35: =C35 -> 0.6424 | G35: A4 | I35: 0.5391
G36: Rektor, VS | I36: 0.6424
A37: Ingår lokaler i finansiärens påslag? | C37: Nej | D37: (Välj Ja/Nej) | G37: Genomsnitt HB | I37: 0.6424
A39: Finansiering från extern part (%) | C39: 1 | D39: =C39 -> 1
A40: Samfinansiering från sektion eller annan finansiär (%) | C40: =1-C39 -> 0 | D40: =C40 -> 0
A43: Finansiären medger påslag på:
A45: Lönekostnader: | C45: Ja | D45: (Välj Ja/Nej)
A47: Driftkostnader: | C47: Nej | D47: (Välj Ja/Nej)
A49: Utrustning: | C49: Nej | D49: (Välj Ja/Nej)
A51: Lokaler: | C51: Nej | D51: (Välj Ja/Nej)

Sheet Lönekostnad FINANSIÄR
A1: PERSONALKOSTNADER (FINANSIÄRENS VILLKOR)
A2: ="Projekt: "&Grunduppgifter!$B$5 -> Projekt:
I3: Kostnad
A4: Lönekostnader inkl. LKP | C4: Omfattning % | I4: År 1 | L4: År 2 | O4: År 3 | R4: År 4 | U4: År 5 | X4: TOTALT
A5: Person / kompetens / roll | B5: Månadslön | C5: År 1 | D5: År 2 | E5: År 3 | F5: År 4 | G5: År 5 | I5: Lön | J5: LKP | K5: TOT | L5: Lön | M5: LKP | N5: TOT | O5: Lön | P5: LKP | Q5: TOT | R5: Lön | S5: LKP | T5: TOT | U5: Lön | V5: LKP | W5: TOT | X5: Lön | Y5: LKP | Z5: TOT | AA5: Budget | AB5: Diff
A6: Handledning professor | B6: 67000 | C6: 0.0295 | D6: 0.0295 | E6: 0.0295 | F6: 0.0295 | H6: =SUM(C6:G6)*100 -> 11.8 | I6: =$B6*(1+Löneuppräkning)^a*12*C6 -> 24462.89377 | J6: =I6*(LönekostnadspåläggFInansiär) -> 13246.65698 | K6: =I6+J6 -> 37709.55075 | L6: =$B6*(1+Löneuppräkning)^b*12*D6 -> 25074.46612 | M6: =L6*(LönekostnadspåläggFInansiär) -> 13577.8234 | N6: =L6+M6 -> 38652.28952 | O6: =$B6*(1+Löneuppräkning)^c_*12*E6 -> 25701.32777 | P6: =O6*(LönekostnadspåläggFInansiär) -> 13917.26899 | Q6: =O6+P6 -> 39618.59676 | R6: =$B6*(1+Löneuppräkning)^d*12*F6 -> 26343.86096 | S6: =R6*(LönekostnadspåläggFInansiär) -> 14265.20071 | T6: =R6+S6 -> 40609.06168 | U6: =$B6*(1+Löneuppräkning)^e*12*G6 -> 0 | V6: =U6*(LönekostnadspåläggFInansiär) -> 0 | W6: =U6+V6 -> 0 | X6: =I6+L6+O6+R6+U6 -> 101582.5486 | Y6: =J6+M6+P6+S6+V6 -> 55006.95008 | Z6: =X6+Y6 -> 156589.4987 | AB6: =Z6-AA6 -> 156589.4987
A7: Handledning lektor | B7: 46600 | C7: 0.0295 | D7: 0.0295 | E7: 0.0295 | F7: 0.0295 | H7: =SUM(C7:G7)*100 -> 11.8 | I7: =$B7*(1+Löneuppräkning)^a*12*C7 -> 17014.4903 | J7: 9213.346495 | K7: =I7+J7 -> 26227.83679 | L7: 17439.85255 | M7: 9443.680158 | N7: =L7+M7 -> 26883.53271 | O7: 17875.84887 | P7: 9679.772162 | Q7: =O7+P7 -> 27555.62103 | R7: 18322.74509 | S7: 9921.766466 | T7: =R7+S7 -> 28244.51155 | U7: 0 | V7: 0 | W7: =U7+V7 -> 0 | X7: =I7+L7+O7+R7+U7 -> 70652.93681 | Y7: =J7+M7+P7+S7+V7 -> 38258.56528 | Z7: =X7+Y7 -> 108911.5021 | AB7: =Z7-AA7 -> 108911.5021
A8: Doktorand (snittlön doktorandtrappa 2019) | B8: 28525 | C8: 1 | D8: 1 | E8: 1 | F8: 1 | H8: 400 | I8: 353050.3642 | J8: 191176.7722 | K8: 544227.1364 | L8: 361876.6233 | M8: 195956.1915 | N8: 557832.8149 | O8: 370923.5389 | P8: 200855.0963 | Q8: 571778.6352 | R8: 380196.6274 | S8: 205876.4737 | T8: 586073.1011 | U8: 0 | V8: 0 | W8: 0 | X8: 1466047.154 | Y8: 793864.5338 | Z8: 2259911.688 | AB8: =Z8-AA8 -> 2259911.688
A9: Opponent | B9: 60000 | C9: 0 | D9: 0 | E9: 0 | F9: 0.01 | H9: 1 | I9: 0 | J9: 0 | K9: 0 | L9: 0 | M9: 0 | N9: 0 | O9: 0 | P9: 0 | Q9: 0 | R9: 7997.124502 | S9: 4330.442918 | T9: 12327.56742 | U9: 0 | V9: 0 | W9: 0 | X9: 7997.124502 | Y9: 4330.442918 | Z9: 12327.56742 | AB9: =Z9-AA9 -> 12327.56742
A10: Doktorandkurser 60 hp, | B10: 49000 | C10: =40/1700 -> 0.02352941176 | D10: =40/1700 -> 0.02352941176 | E10: 0.02352941176 | F10: 0.02352941176 | H10: 9.411764706 | I10: 14269.80902 | J10: 7727.101584 | K10: 21996.9106 | L10: 14626.55424 | M10: 7920.279124 | N10: 22546.83337 | O10: 14992.2181 | P10: 8118.286102 | Q10: 23110.5042 | R10: 15367.02355 | S10: 8321.243254 | T10: 23688.26681 | U10: 0 | V10: 0 | W10: 0 | X10: 59255.60492 | Y10: 32086.91006 | Z10: 91342.51498 | AB10: 91342.51498
A11: (totalt 8 kurser * 7,5 hp 20 timmar/kurs för doktoranden) | H11: 0 | I11: 0 | J11: 0 | K11: 0 | L11: 0 | M11: 0 | N11: 0 | O11: 0 | P11: 0 | Q11: 0 | R11: 0 | S11: 0 | T11: 0 | U11: 0 | V11: 0 | W11: 0 | X11: 0 | Y11: 0 | Z11: 0 | AB11: 0
H12: 0 | I12: 0 | J12: 0 | K12: 0 | L12: 0 | M12: 0 | N12: 0 | O12: 0 | P12: 0 | Q12: 0 | R12: 0 | S12: 0 | T12: 0 | U12: 0 | V12: 0 | W12: 0 | X12: 0 | Y12: 0 | Z12: 0 | AB12: 0
H13: 0 | I13: 0 | J13: 0 | K13: 0 | L13: 0 | M13: 0 | N13: 0 | O13: 0 | P13: 0 | Q13: 0 | R13: 0 | S13: 0 | T13: 0 | U13: 0 | V13: 0 | W13: 0 | X13: 0 | Y13: 0 | Z13: 0 | AB13: 0
H14: 0 | I14: 0 | J14: 0 | K14: 0 | L14: 0 | M14: 0 | N14: 0 | O14: 0 | P14: 0 | Q14: 0 | R14: 0 | S14: 0 | T14: 0 | U14: 0 | V14: 0 | W14: 0 | X14: 0 | Y14: 0 | Z14: 0 | AB14: 0
H15: 0 | I15: 0 | J15: 0 | K15: 0 | L15: 0 | M15: 0 | N15: 0 | O15: 0 | P15: 0 | Q15: 0 | R15: 0 | S15: 0 | T15: 0 | U15: 0 | V15: 0 | W15: 0 | X15: 0 | Y15: 0 | Z15: 0 | AB15: 0
H16: 0 | I16: 0 | J16: 0 | K16: 0 | L16: 0 | M16: 0 | N16: 0 | O16: 0 | P16: 0 | Q16: 0 | R16: 0 | S16: 0 | T16: 0 | U16: 0 | V16: 0 | W16: 0 | X16: 0 | Y16: 0 | Z16: 0 | AB16: 0
H17: 0 | I17: 0 | J17: 0 | K17: 0 | L17: 0 | M17: 0 | N17: 0 | O17: 0 | P17: 0 | Q17: 0 | R17: 0 | S17: 0 | T17: 0 | U17: 0 | V17: 0 | W17: 0 | X17: 0 | Y17: 0 | Z17: 0 | AB17: 0
H18: 0 | I18: 0 | J18: 0 | K18: 0 | L18: 0 | M18: 0 | N18: 0 | O18: 0 | P18: 0 | Q18: 0 | R18: 0 | S18: 0 | T18: 0 | U18: 0 | V18: 0 | W18: 0 | X18: 0 | Y18: 0 | Z18: 0 | AB18: 0
H19: 0 | I19: 0 | J19: 0 | K19: 0 | L19: 0 | M19: 0 | N19: 0 | O19: 0 | P19: 0 | Q19: 0 | R19: 0 | S19: 0 | T19: 0 | U19: 0 | V19: 0 | W19: 0 | X19: 0 | Y19: 0 | Z19: 0 | AB19: 0
H20: 0 | I20: 0 | J20: 0 | K20: 0 | L20: 0 | M20: 0 | N20: 0 | O20: 0 | P20: 0 | Q20: 0 | R20: 0 | S20: 0 | T20: 0 | U20: 0 | V20: 0 | W20: 0 | X20: 0 | Y20: 0 | Z20: 0 | AB20: 0
H21: 0 | I21: 0 | J21: 0 | K21: 0 | L21: 0 | M21: 0 | N21: 0 | O21: 0 | P21: 0 | Q21: 0 | R21: 0 | S21: 0 | T21: 0 | U21: 0 | V21: 0 | W21: 0 | X21: 0 | Y21: 0 | Z21: 0 | AB21: 0
H22: 0 | I22: 0 | J22: 0 | K22: 0 | L22: 0 | M22: 0 | N22: 0 | O22: 0 | P22: 0 | Q22: 0 | R22: 0 | S22: 0 | T22: 0 | U22: 0 | V22: 0 | W22: 0 | X22: 0 | Y22: 0 | Z22: 0 | AB22: 0
H23: 0 | I23: 0 | J23: 0 | K23: 0 | L23: 0 | M23: 0 | N23: 0 | O23: 0 | P23: 0 | Q23: 0 | R23: 0 | S23: 0 | T23: 0 | U23: 0 | V23: 0 | W23: 0 | X23: 0 | Y23: 0 | Z23: 0 | AB23: 0
H24: 0 | I24: 0 | J24: 0 | K24: 0 | L24: 0 | M24: 0 | N24: 0 | O24: 0 | P24: 0 | Q24: 0 | R24: 0 | S24: 0 | T24: 0 | U24: 0 | V24: 0 | W24: 0 | X24: 0 | Y24: 0 | Z24: 0 | AB24: 0
H25: 0 | I25: 0 | J25: 0 | K25: 0 | L25: 0 | M25: 0 | N25: 0 | O25: 0 | P25: 0 | Q25: 0 | R25: 0 | S25: 0 | T25: 0 | U25: 0 | V25: 0 | W25: 0 | X25: 0 | Y25: 0 | Z25: 0 | AB25: 0
H26: 0 | I26: 0 | J26: 0 | K26: 0 | L26: 0 | M26: 0 | N26: 0 | O26: 0 | P26: 0 | Q26: 0 | R26: 0 | S26: 0 | T26: 0 | U26: 0 | V26: 0 | W26: 0 | X26: 0 | Y26: 0 | Z26: 0 | AB26: 0
H27: 0 | I27: 0 | J27: 0 | K27: 0 | L27: 0 | M27: 0 | N27: 0 | O27: 0 | P27: 0 | Q27: 0 | R27: 0 | S27: 0 | T27: 0 | U27: 0 | V27: 0 | W27: 0 | X27: 0 | Y27: 0 | Z27: 0 | AB27: 0
H28: 0 | I28: 0 | J28: 0 | K28: 0 | L28: 0 | M28: 0 | N28: 0 | O28: 0 | P28: 0 | Q28: 0 | R28: 0 | S28: 0 | T28: 0 | U28: 0 | V28: 0 | W28: 0 | X28: 0 | Y28: 0 | Z28: 0 | AB28: 0
H29: 0 | I29: 0 | J29: 0 | K29: 0 | L29: 0 | M29: 0 | N29: 0 | O29: 0 | P29: 0 | Q29: 0 | R29: 0 | S29: 0 | T29: 0 | U29: 0 | V29: 0 | W29: 0 | X29: 0 | Y29: 0 | Z29: 0 | AB29: 0
H30: 0 | I30: 0 | J30: 0 | K30: 0 | L30: 0 | M30: 0 | N30: 0 | O30: 0 | P30: 0 | Q30: 0 | R30: 0 | S30: 0 | T30: 0 | U30: 0 | V30: 0 | W30: 0 | X30: 0 | Y30: 0 | Z30: 0 | AB30: 0
H31: 0 | I31: 0 | J31: 0 | K31: 0 | L31: 0 | M31: 0 | N31: 0 | O31: 0 | P31: 0 | Q31: 0 | R31: 0 | S31: 0 | T31: 0 | U31: 0 | V31: 0 | W31: 0 | X31: 0 | Y31: 0 | Z31: 0 | AB31: 0
H32: 0 | I32: 0 | J32: 0 | K32: 0 | L32: 0 | M32: 0 | N32: 0 | O32: 0 | P32: 0 | Q32: 0 | R32: 0 | S32: 0 | T32: 0 | U32: 0 | V32: 0 | W32: 0 | X32: 0 | Y32: 0 | Z32: 0 | AB32: 0
H33: 0 | I33: 0 | J33: 0 | K33: 0 | L33: 0 | M33: 0 | N33: 0 | O33: 0 | P33: 0 | Q33: 0 | R33: 0 | S33: 0 | T33: 0 | U33: 0 | V33: 0 | W33: 0 | X33: 0 | Y33: 0 | Z33: 0 | AB33: 0
H34: 0 | I34: 0 | J34: 0 | K34: 0 | L34: 0 | M34: 0 | N34: 0 | O34: 0 | P34: 0 | Q34: 0 | R34: 0 | S34: 0 | T34: 0 | U34: 0 | V34: 0 | W34: 0 | X34: 0 | Y34: 0 | Z34: 0 | AB34: 0
H35: 0 | I35: 0 | J35: 0 | K35: 0 | L35: 0 | M35: 0 | N35: 0 | O35: 0 | P35: 0 | Q35: 0 | R35: 0 | S35: 0 | T35: 0 | U35: 0 | V35: 0 | W35: 0 | X35: 0 | Y35: 0 | Z35: 0 | AB35: 0
H36: 0 | I36: 0 | J36: 0 | K36: 0 | L36: 0 | M36: 0 | N36: 0 | O36: 0 | P36: 0 | Q36: 0 | R36: 0 | S36: 0 | T36: 0 | U36: 0 | V36: 0 | W36: 0 | X36: 0 | Y36: 0 | Z36: 0 | AB36: 0
H37: 0 | I37: 0 | J37: 0 | K37: 0 | L37: 0 | M37: 0 | N37: 0 | O37: 0 | P37: 0 | Q37: 0 | R37: 0 | S37: 0 | T37: 0 | U37: 0 | V37: 0 | W37: 0 | X37: 0 | Y37: 0 | Z37: 0 | AB37: 0
H38: 0 | I38: 0 | J38: 0 | K38: 0 | L38: 0 | M38: 0 | N38: 0 | O38: 0 | P38: 0 | Q38: 0 | R38: 0 | S38: 0 | T38: 0 | U38: 0 | V38: 0 | W38: 0 | X38: 0 | Y38: 0 | Z38: 0 | AB38: 0
H39: 0 | I39: 0 | J39: 0 | K39: 0 | L39: 0 | M39: 0 | N39: 0 | O39: 0 | P39: 0 | Q39: 0 | R39: 0 | S39: 0 | T39: 0 | U39: 0 | V39: 0 | W39: 0 | X39: 0 | Y39: 0 | Z39: 0 | AB39: 0
H40: 0 | I40: 0 | J40: 0 | K40: 0 | L40: 0 | M40: 0 | N40: 0 | O40: 0 | P40: 0 | Q40: 0 | R40: 0 | S40: 0 | T40: 0 | U40: 0 | V40: 0 | W40: 0 | X40: =I40+L40+O40+R40+U40 -> 0 | Y40: 0 | Z40: 0 | AB40: 0
A41: Summa lönekostnader | I41: =SUM(I6:I40) -> 408797.5573 | J41: =SUM(J6:J40) -> 221363.8773 | K41: =SUM(K6:K40) -> 630161.4346 | L41: =SUM(L6:L40) -> 419017.4962 | M41: 226897.9742 | N41: 645915.4705 | O41: 429492.9336 | P41: 232570.4236 | Q41: 662063.3572 | R41: 448227.3815 | S41: 242715.1271 | T41: 690942.5086 | U41: 0 | V41: 0 | W41: 0 | X41: 1705535.369 | Y41: 923547.4021 | Z41: =SUM(Z6:Z40) -> 2629082.771 | AA41: =SUM(AA6:AA40) -> 0 | AB41: =SUM(AB6:AB40) -> 2629082.771

Sheet Lönekostnad HB
A1: PERSONALKOSTNADER (HB:S VILLKOR) | H1: OBS: ALLT HÄMTAS FRÅN ANDRA FLIKAR
A2: ="Projekt: "&Grunduppgifter!$B$5 -> Projekt:
H3: Kostnad
A4: Lönekostnader inkl. LKP | C4: Omfattning % | H4: År 1 | K4: År 2 | N4: År 3 | Q4: År 4 | T4: År 5 | W4: TOTALT
A5: Person / kompetens / roll | B5: Månadslön | C5: År 1 | D5: År 2 | E5: År 3 | F5: År 4 | G5: År 5 | H5: Lön | I5: LKP | J5: TOT | K5: Lön | L5: LKP | M5: TOT | N5: Lön | O5: LKP | P5: TOT | Q5: Lön | R5: LKP | S5: TOT | T5: Lön | U5: LKP | V5: TOT | W5: Lön | X5: LKP | Y5: TOT | Z5: Budget | AA5: Diff
A6: ='Lönekostnad FINANSIÄR'!A6 -> Handledning professor | B6: 65500 | C6: ='Lönekostnad FINANSIÄR'!C6 -> 0.0295 | D6: ='Lönekostnad FINANSIÄR'!D6 -> 0.0295 | E6: ='Lönekostnad FINANSIÄR'!E6 -> 0.0295 | F6: ='Lönekostnad FINANSIÄR'!F6 -> 0.0295 | G6: ='Lönekostnad FINANSIÄR'!G6 -> 0 | H6: =$B6*(1+LöneuppräkningHB)^a*12*C6 -> 23915.21705 | I6: =H6*(Lönekostnadspålägg) -> 12950.09003 | J6: =H6+I6 -> 36865.30708 | K6: =$B6*(1+LöneuppräkningHB)^b*12*D6 -> 24513.09747 | L6: =K6*(Lönekostnadspålägg) -> 13273.84228 | M6: =K6+L6 -> 37786.93975 | N6: =$B6*(1+LöneuppräkningHB)^c_*12*E6 -> 25125.92491 | O6: =N6*(Lönekostnadspålägg) -> 13605.68834 | P6: =N6+O6 -> 38731.61325 | Q6: =$B6*(1+LöneuppräkningHB)^d*12*F6 -> 25754.07303 | R6: =Q6*(Lönekostnadspålägg) -> 13945.83055 | S6: =Q6+R6 -> 39699.90358 | T6: =$B6*(1+LöneuppräkningHB)^e*12*G6 -> 0 | U6: =T6*(Lönekostnadspålägg) -> 0 | V6: =T6+U6 -> 0 | W6: =H6+K6+N6+Q6+T6 -> 99308.31246 | X6: =I6+L6+O6+R6+U6 -> 53775.4512 | Y6: =W6+X6 -> 153083.7637 | AA6: =Y6-Z6 -> 153083.7637
A7: ='Lönekostnad FINANSIÄR'!A7 -> Handledning lektor | B7: 46900 | C7: ='Lönekostnad FINANSIÄR'!C7 -> 0.0295 | D7: ='Lönekostnad FINANSIÄR'!D7 -> 0.0295 | E7: ='Lönekostnad FINANSIÄR'!E7 -> 0.0295 | F7: ='Lönekostnad FINANSIÄR'!F7 -> 0.0295 | G7: ='Lönekostnad FINANSIÄR'!G7 -> 0 | H7: 17124.02564 | I7: 9272.659885 | J7: =H7+I7 -> 26396.68553 | K7: 17552.12628 | L7: 9504.476382 | M7: =K7+L7 -> 27056.60266 | N7: 17990.92944 | O7: 9742.088291 | P7: =N7+O7 -> 27733.01773 | Q7: 18440.70268 | R7: 9985.640499 | S7: =Q7+R7 -> 28426.34317 | T7: 0 | U7: 0 | V7: =T7+U7 -> 0 | W7: =H7+K7+N7+Q7+T7 -> 71107.78404 | X7: 38504.86506 | Y7: =W7+X7 -> 109612.6491 | AA7: =Y7-Z7 -> 109612.6491
A8: ='Lönekostnad FINANSIÄR'!A8 -> Doktorand (snittlön doktorandtrappa 2019) | B8: ='Lönekostnad FINANSIÄR'!B8 -> 28525 | C8: ='Lönekostnad FINANSIÄR'!C8 -> 1 | D8: ='Lönekostnad FINANSIÄR'!D8 -> 1 | E8: ='Lönekostnad FINANSIÄR'!E8 -> 1 | F8: ='Lönekostnad FINANSIÄR'!F8 -> 1 | G8: ='Lönekostnad FINANSIÄR'!G8 -> 0 | H8: 353050.3642 | I8: 191176.7722 | J8: 544227.1364 | K8: 361876.6233 | L8: 195956.1915 | M8: 557832.8149 | N8: 370923.5389 | O8: 200855.0963 | P8: 571778.6352 | Q8: 380196.6274 | R8: 205876.4737 | S8: 586073.1011 | T8: 0 | U8: 0 | V8: 0 | W8: 1466047.154 | X8: 793864.5338 | Y8: 2259911.688 | AA8: =Y8-Z8 -> 2259911.688
A9: ='Lönekostnad FINANSIÄR'!A9 -> Opponent | B9: ='Lönekostnad FINANSIÄR'!B9 -> 60000 | C9: ='Lönekostnad FINANSIÄR'!C9 -> 0 | D9: ='Lönekostnad FINANSIÄR'!D9 -> 0 | E9: ='Lönekostnad FINANSIÄR'!E9 -> 0 | F9: ='Lönekostnad FINANSIÄR'!F9 -> 0.01 | G9: ='Lönekostnad FINANSIÄR'!G9 -> 0 | H9: 0 | I9: 0 | J9: 0 | K9: 0 | L9: 0 | M9: 0 | N9: 0 | O9: 0 | P9: 0 | Q9: 7997.124502 | R9: 4330.442918 | S9: 12327.56742 | T9: 0 | U9: 0 | V9: 0 | W9: 7997.124502 | X9: 4330.442918 | Y9: 12327.56742 | AA9: =Y9-Z9 -> 12327.56742
A10: ='Lönekostnad FINANSIÄR'!A10 -> Doktorandkurser 60 hp, | B10: 55000 | C10: ='Lönekostnad FINANSIÄR'!C10 -> 0.02352941176 | D10: ='Lönekostnad FINANSIÄR'!D10 -> 0.02352941176 | E10: ='Lönekostnad FINANSIÄR'!E10 -> 0.02352941176 | F10: ='Lönekostnad FINANSIÄR'!F10 -> 0.02352941176 | G10: ='Lönekostnad FINANSIÄR'!G10 -> 0 | H10: 16017.13257 | I10: 8673.277288 | J10: 24690.40986 | K10: 16417.56089 | L10: 8890.10922 | M10: 25307.67011 | N10: 16827.99991 | O10: 9112.361951 | P10: 25940.36186 | Q10: 17248.69991 | R10: 9340.171 | S10: 26588.87091 | T10: 0 | U10: 0 | V10: 0 | W10: 66511.39328 | X10: 36015.91946 | Y10: 102527.3127 | AA10: 102527.3127
A11: ='Lönekostnad FINANSIÄR'!A11 -> (totalt 8 kurser * 7,5 hp 20 timmar/kurs för doktoranden) | B11: ='Lönekostnad FINANSIÄR'!B11 -> 0 | C11: ='Lönekostnad FINANSIÄR'!C11 -> 0 | D11: ='Lönekostnad FINANSIÄR'!D11 -> 0 | E11: ='Lönekostnad FINANSIÄR'!E11 -> 0 | F11: ='Lönekostnad FINANSIÄR'!F11 -> 0 | G11: ='Lönekostnad FINANSIÄR'!G11 -> 0 | H11: 0 | I11: 0 | J11: 0 | K11: 0 | L11: 0 | M11: 0 | N11: 0 | O11: 0 | P11: 0 | Q11: 0 | R11: 0 | S11: 0 | T11: 0 | U11: 0 | V11: 0 | W11: 0 | X11: 0 | Y11: 0 | AA11: 0
A12: ='Lönekostnad FINANSIÄR'!A12 -> 0 | B12: ='Lönekostnad FINANSIÄR'!B12 -> 0 | C12: ='Lönekostnad FINANSIÄR'!C12 -> 0 | D12: ='Lönekostnad FINANSIÄR'!D12 -> 0 | E12: ='Lönekostnad FINANSIÄR'!E12 -> 0 | F12: ='Lönekostnad FINANSIÄR'!F12 -> 0 | G12: ='Lönekostnad FINANSIÄR'!G12 -> 0 | H12: 0 | I12: 0 | J12: 0 | K12: 0 | L12: 0 | M12: 0 | N12: 0 | O12: 0 | P12: 0 | Q12: 0 | R12: 0 | S12: 0 | T12: 0 | U12: 0 | V12: 0 | W12: 0 | X12: 0 | Y12: 0 | AA12: 0
A13: ='Lönekostnad FINANSIÄR'!A13 -> 0 | B13: ='Lönekostnad FINANSIÄR'!B13 -> 0 | C13: ='Lönekostnad FINANSIÄR'!C13 -> 0 | D13: ='Lönekostnad FINANSIÄR'!D13 -> 0 | E13: ='Lönekostnad FINANSIÄR'!E13 -> 0 | F13: ='Lönekostnad FINANSIÄR'!F13 -> 0 | G13: ='Lönekostnad FINANSIÄR'!G13 -> 0 | H13: 0 | I13: 0 | J13: 0 | K13: 0 | L13: 0 | M13: 0 | N13: 0 | O13: 0 | P13: 0 | Q13: 0 | R13: 0 | S13: 0 | T13: 0 | U13: 0 | V13: 0 | W13: 0 | X13: 0 | Y13: 0 | AA13: 0
A14: ='Lönekostnad FINANSIÄR'!A14 -> 0 | B14: ='Lönekostnad FINANSIÄR'!B14 -> 0 | C14: ='Lönekostnad FINANSIÄR'!C14 -> 0 | D14: ='Lönekostnad FINANSIÄR'!D14 -> 0 | E14: ='Lönekostnad FINANSIÄR'!E14 -> 0 | F14: ='Lönekostnad FINANSIÄR'!F14 -> 0 | G14: ='Lönekostnad FINANSIÄR'!G14 -> 0 | H14: 0 | I14: 0 | J14: 0 | K14: 0 | L14: 0 | M14: 0 | N14: 0 | O14: 0 | P14: 0 | Q14: 0 | R14: 0 | S14: 0 | T14: 0 | U14: 0 | V14: 0 | W14: 0 | X14: 0 | Y14: 0 | AA14: 0
A15: ='Lönekostnad FINANSIÄR'!A15 -> 0 | B15: ='Lönekostnad FINANSIÄR'!B15 -> 0 | C15: ='Lönekostnad FINANSIÄR'!C15 -> 0 | D15: ='Lönekostnad FINANSIÄR'!D15 -> 0 | E15: ='Lönekostnad FINANSIÄR'!E15 -> 0 | F15: ='Lönekostnad FINANSIÄR'!F15 -> 0 | G15: ='Lönekostnad FINANSIÄR'!G15 -> 0 | H15: 0 | I15: 0 | J15: 0 | K15: 0 | L15: 0 | M15: 0 | N15: 0 | O15: 0 | P15: 0 | Q15: 0 | R15: 0 | S15: 0 | T15: 0 | U15: 0 | V15: 0 | W15: 0 | X15: 0 | Y15: 0 | AA15: 0
A16: ='Lönekostnad FINANSIÄR'!A16 -> 0 | B16: ='Lönekostnad FINANSIÄR'!B16 -> 0 | C16: ='Lönekostnad FINANSIÄR'!C16 -> 0 | D16: ='Lönekostnad FINANSIÄR'!D16 -> 0 | E16: ='Lönekostnad FINANSIÄR'!E16 -> 0 | F16: ='Lönekostnad FINANSIÄR'!F16 -> 0 | G16: ='Lönekostnad FINANSIÄR'!G16 -> 0 | H16: 0 | I16: 0 | J16: 0 | K16: 0 | L16: 0 | M16: 0 | N16: 0 | O16: 0 | P16: 0 | Q16: 0 | R16: 0 | S16: 0 | T16: 0 | U16: 0 | V16: 0 | W16: 0 | X16: 0 | Y16: 0 | AA16: 0
A17: ='Lönekostnad FINANSIÄR'!A17 -> 0 | B17: ='Lönekostnad FINANSIÄR'!B17 -> 0 | C17: ='Lönekostnad FINANSIÄR'!C17 -> 0 | D17: ='Lönekostnad FINANSIÄR'!D17 -> 0 | E17: ='Lönekostnad FINANSIÄR'!E17 -> 0 | F17: ='Lönekostnad FINANSIÄR'!F17 -> 0 | G17: ='Lönekostnad FINANSIÄR'!G17 -> 0 | H17: 0 | I17: 0 | J17: 0 | K17: 0 | L17: 0 | M17: 0 | N17: 0 | O17: 0 | P17: 0 | Q17: 0 | R17: 0 | S17: 0 | T17: 0 | U17: 0 | V17: 0 | W17: 0 | X17: 0 | Y17: 0 | AA17: 0
A18: ='Lönekostnad FINANSIÄR'!A18 -> 0 | B18: ='Lönekostnad FINANSIÄR'!B18 -> 0 | C18: ='Lönekostnad FINANSIÄR'!C18 -> 0 | D18: ='Lönekostnad FINANSIÄR'!D18 -> 0 | E18: ='Lönekostnad FINANSIÄR'!E18 -> 0 | F18: ='Lönekostnad FINANSIÄR'!F18 -> 0 | G18: ='Lönekostnad FINANSIÄR'!G18 -> 0 | H18: 0 | I18: 0 | J18: 0 | K18: 0 | L18: 0 | M18: 0 | N18: 0 | O18: 0 | P18: 0 | Q18: 0 | R18: 0 | S18: 0 | T18: 0 | U18: 0 | V18: 0 | W18: 0 | X18: 0 | Y18: 0 | AA18: 0
A19: ='Lönekostnad FINANSIÄR'!A19 -> 0 | B19: ='Lönekostnad FINANSIÄR'!B19 -> 0 | C19: ='Lönekostnad FINANSIÄR'!C19 -> 0 | D19: ='Lönekostnad FINANSIÄR'!D19 -> 0 | E19: ='Lönekostnad FINANSIÄR'!E19 -> 0 | F19: ='Lönekostnad FINANSIÄR'!F19 -> 0 | G19: ='Lönekostnad FINANSIÄR'!G19 -> 0 | H19: 0 | I19: 0 | J19: 0 | K19: 0 | L19: 0 | M19: 0 | N19: 0 | O19: 0 | P19: 0 | Q19: 0 | R19: 0 | S19: 0 | T19: 0 | U19: 0 | V19: 0 | W19: 0 | X19: 0 | Y19: 0 | AA19: 0
A20: ='Lönekostnad FINANSIÄR'!A20 -> 0 | B20: ='Lönekostnad FINANSIÄR'!B20 -> 0 | C20: ='Lönekostnad FINANSIÄR'!C20 -> 0 | D20: ='Lönekostnad FINANSIÄR'!D20 -> 0 | E20: ='Lönekostnad FINANSIÄR'!E20 -> 0 | F20: ='Lönekostnad FINANSIÄR'!F20 -> 0 | G20: ='Lönekostnad FINANSIÄR'!G20 -> 0 | H20: 0 | I20: 0 | J20: 0 | K20: 0 | L20: 0 | M20: 0 | N20: 0 | O20: 0 | P20: 0 | Q20: 0 | R20: 0 | S20: 0 | T20: 0 | U20: 0 | V20: 0 | W20: 0 | X20: 0 | Y20: 0 | AA20: 0
A21: ='Lönekostnad FINANSIÄR'!A21 -> 0 | B21: ='Lönekostnad FINANSIÄR'!B21 -> 0 | C21: ='Lönekostnad FINANSIÄR'!C21 -> 0 | D21: ='Lönekostnad FINANSIÄR'!D21 -> 0 | E21: ='Lönekostnad FINANSIÄR'!E21 -> 0 | F21: ='Lönekostnad FINANSIÄR'!F21 -> 0 | G21: ='Lönekostnad FINANSIÄR'!G21 -> 0 | H21: 0 | I21: 0 | J21: 0 | K21: 0 | L21: 0 | M21: 0 | N21: 0 | O21: 0 | P21: 0 | Q21: 0 | R21: 0 | S21: 0 | T21: 0 | U21: 0 | V21: 0 | W21: 0 | X21: 0 | Y21: 0 | AA21: 0
A22: ='Lönekostnad FINANSIÄR'!A22 -> 0 | B22: ='Lönekostnad FINANSIÄR'!B22 -> 0 | C22: ='Lönekostnad FINANSIÄR'!C22 -> 0 | D22: ='Lönekostnad FINANSIÄR'!D22 -> 0 | E22: ='Lönekostnad FINANSIÄR'!E22 -> 0 | F22: ='Lönekostnad FINANSIÄR'!F22 -> 0 | G22: ='Lönekostnad FINANSIÄR'!G22 -> 0 | H22: 0 | I22: 0 | J22: 0 | K22: 0 | L22: 0 | M22: 0 | N22: 0 | O22: 0 | P22: 0 | Q22: 0 | R22: 0 | S22: 0 | T22: 0 | U22: 0 | V22: 0 | W22: 0 | X22: 0 | Y22: 0 | AA22: 0
A23: ='Lönekostnad FINANSIÄR'!A23 -> 0 | B23: ='Lönekostnad FINANSIÄR'!B23 -> 0 | C23: ='Lönekostnad FINANSIÄR'!C23 -> 0 | D23: ='Lönekostnad FINANSIÄR'!D23 -> 0 | E23: ='Lönekostnad FINANSIÄR'!E23 -> 0 | F23: ='Lönekostnad FINANSIÄR'!F23 -> 0 | G23: ='Lönekostnad FINANSIÄR'!G23 -> 0 | H23: 0 | I23: 0 | J23: 0 | K23: 0 | L23: 0 | M23: 0 | N23: 0 | O23: 0 | P23: 0 | Q23: 0 | R23: 0 | S23: 0 | T23: 0 | U23: 0 | V23: 0 | W23: 0 | X23: 0 | Y23: 0 | AA23: 0
A24: ='Lönekostnad FINANSIÄR'!A24 -> 0 | B24: ='Lönekostnad FINANSIÄR'!B24 -> 0 | C24: ='Lönekostnad FINANSIÄR'!C24 -> 0 | D24: ='Lönekostnad FINANSIÄR'!D24 -> 0 | E24: ='Lönekostnad FINANSIÄR'!E24 -> 0 | F24: ='Lönekostnad FINANSIÄR'!F24 -> 0 | G24: ='Lönekostnad FINANSIÄR'!G24 -> 0 | H24: 0 | I24: 0 | J24: 0 | K24: 0 | L24: 0 | M24: 0 | N24: 0 | O24: 0 | P24: 0 | Q24: 0 | R24: 0 | S24: 0 | T24: 0 | U24: 0 | V24: 0 | W24: 0 | X24: 0 | Y24: 0 | AA24: 0
A25: ='Lönekostnad FINANSIÄR'!A25 -> 0 | B25: ='Lönekostnad FINANSIÄR'!B25 -> 0 | C25: ='Lönekostnad FINANSIÄR'!C25 -> 0 | D25: ='Lönekostnad FINANSIÄR'!D25 -> 0 | E25: ='Lönekostnad FINANSIÄR'!E25 -> 0 | F25: ='Lönekostnad FINANSIÄR'!F25 -> 0 | G25: ='Lönekostnad FINANSIÄR'!G25 -> 0 | H25: 0 | I25: 0 | J25: 0 | K25: 0 | L25: 0 | M25: 0 | N25: 0 | O25: 0 | P25: 0 | Q25: 0 | R25: 0 | S25: 0 | T25: 0 | U25: 0 | V25: 0 | W25: 0 | X25: 0 | Y25: 0 | AA25: 0
A26: ='Lönekostnad FINANSIÄR'!A26 -> 0 | B26: ='Lönekostnad FINANSIÄR'!B26 -> 0 | C26: ='Lönekostnad FINANSIÄR'!C26 -> 0 | D26: ='Lönekostnad FINANSIÄR'!D26 -> 0 | E26: ='Lönekostnad FINANSIÄR'!E26 -> 0 | F26: ='Lönekostnad FINANSIÄR'!F26 -> 0 | G26: ='Lönekostnad FINANSIÄR'!G26 -> 0 | H26: 0 | I26: 0 | J26: 0 | K26: 0 | L26: 0 | M26: 0 | N26: 0 | O26: 0 | P26: 0 | Q26: 0 | R26: 0 | S26: 0 | T26: 0 | U26: 0 | V26: 0 | W26: 0 | X26: 0 | Y26: 0 | AA26: 0
A27: ='Lönekostnad FINANSIÄR'!A27 -> 0 | B27: ='Lönekostnad FINANSIÄR'!B27 -> 0 | C27: ='Lönekostnad FINANSIÄR'!C27 -> 0 | D27: ='Lönekostnad FINANSIÄR'!D27 -> 0 | E27: ='Lönekostnad FINANSIÄR'!E27 -> 0 | F27: ='Lönekostnad FINANSIÄR'!F27 -> 0 | G27: ='Lönekostnad FINANSIÄR'!G27 -> 0 | H27: 0 | I27: 0 | J27: 0 | K27: 0 | L27: 0 | M27: 0 | N27: 0 | O27: 0 | P27: 0 | Q27: 0 | R27: 0 | S27: 0 | T27: 0 | U27: 0 | V27: 0 | W27: 0 | X27: 0 | Y27: 0 | AA27: 0
A28: ='Lönekostnad FINANSIÄR'!A28 -> 0 | B28: ='Lönekostnad FINANSIÄR'!B28 -> 0 | C28: ='Lönekostnad FINANSIÄR'!C28 -> 0 | D28: ='Lönekostnad FINANSIÄR'!D28 -> 0 | E28: ='Lönekostnad FINANSIÄR'!E28 -> 0 | F28: ='Lönekostnad FINANSIÄR'!F28 -> 0 | G28: ='Lönekostnad FINANSIÄR'!G28 -> 0 | H28: 0 | I28: 0 | J28: 0 | K28: 0 | L28: 0 | M28: 0 | N28: 0 | O28: 0 | P28: 0 | Q28: 0 | R28: 0 | S28: 0 | T28: 0 | U28: 0 | V28: 0 | W28: 0 | X28: 0 | Y28: 0 | AA28: 0
A29: ='Lönekostnad FINANSIÄR'!A29 -> 0 | B29: ='Lönekostnad FINANSIÄR'!B29 -> 0 | C29: ='Lönekostnad FINANSIÄR'!C29 -> 0 | D29: ='Lönekostnad FINANSIÄR'!D29 -> 0 | E29: ='Lönekostnad FINANSIÄR'!E29 -> 0 | F29: ='Lönekostnad FINANSIÄR'!F29 -> 0 | G29: ='Lönekostnad FINANSIÄR'!G29 -> 0 | H29: 0 | I29: 0 | J29: 0 | K29: 0 | L29: 0 | M29: 0 | N29: 0 | O29: 0 | P29: 0 | Q29: 0 | R29: 0 | S29: 0 | T29: 0 | U29: 0 | V29: 0 | W29: 0 | X29: 0 | Y29: 0 | AA29: 0
A30: ='Lönekostnad FINANSIÄR'!A30 -> 0 | B30: ='Lönekostnad FINANSIÄR'!B30 -> 0 | C30: ='Lönekostnad FINANSIÄR'!C30 -> 0 | D30: ='Lönekostnad FINANSIÄR'!D30 -> 0 | E30: ='Lönekostnad FINANSIÄR'!E30 -> 0 | F30: ='Lönekostnad FINANSIÄR'!F30 -> 0 | G30: ='Lönekostnad FINANSIÄR'!G30 -> 0 | H30: 0 | I30: 0 | J30: 0 | K30: 0 | L30: 0 | M30: 0 | N30: 0 | O30: 0 | P30: 0 | Q30: 0 | R30: 0 | S30: 0 | T30: 0 | U30: 0 | V30: 0 | W30: 0 | X30: 0 | Y30: 0 | AA30: 0
A31: ='Lönekostnad FINANSIÄR'!A31 -> 0 | B31: ='Lönekostnad FINANSIÄR'!B31 -> 0 | C31: ='Lönekostnad FINANSIÄR'!C31 -> 0 | D31: ='Lönekostnad FINANSIÄR'!D31 -> 0 | E31: ='Lönekostnad FINANSIÄR'!E31 -> 0 | F31: ='Lönekostnad FINANSIÄR'!F31 -> 0 | G31: ='Lönekostnad FINANSIÄR'!G31 -> 0 | H31: 0 | I31: 0 | J31: 0 | K31: 0 | L31: 0 | M31: 0 | N31: 0 | O31: 0 | P31: 0 | Q31: 0 | R31: 0 | S31: 0 | T31: 0 | U31: 0 | V31: 0 | W31: 0 | X31: 0 | Y31: 0 | AA31: 0
A32: ='Lönekostnad FINANSIÄR'!A32 -> 0 | B32: ='Lönekostnad FINANSIÄR'!B32 -> 0 | C32: ='Lönekostnad FINANSIÄR'!C32 -> 0 | D32: ='Lönekostnad FINANSIÄR'!D32 -> 0 | E32: ='Lönekostnad FINANSIÄR'!E32 -> 0 | F32: ='Lönekostnad FINANSIÄR'!F32 -> 0 | G32: ='Lönekostnad FINANSIÄR'!G32 -> 0 | H32: 0 | I32: 0 | J32: 0 | K32: 0 | L32: 0 | M32: 0 | N32: 0 | O32: 0 | P32: 0 | Q32: 0 | R32: 0 | S32: 0 | T32: 0 | U32: 0 | V32: 0 | W32: 0 | X32: 0 | Y32: 0 | AA32: 0
A33: ='Lönekostnad FINANSIÄR'!A33 -> 0 | B33: ='Lönekostnad FINANSIÄR'!B33 -> 0 | C33: ='Lönekostnad FINANSIÄR'!C33 -> 0 | D33: ='Lönekostnad FINANSIÄR'!D33 -> 0 | E33: ='Lönekostnad FINANSIÄR'!E33 -> 0 | F33: ='Lönekostnad FINANSIÄR'!F33 -> 0 | G33: ='Lönekostnad FINANSIÄR'!G33 -> 0 | H33: 0 | I33: 0 | J33: 0 | K33: 0 | L33: 0 | M33: 0 | N33: 0 | O33: 0 | P33: 0 | Q33: 0 | R33: 0 | S33: 0 | T33: 0 | U33: 0 | V33: 0 | W33: 0 | X33: 0 | Y33: 0 | AA33: 0
A34: ='Lönekostnad FINANSIÄR'!A34 -> 0 | B34: ='Lönekostnad FINANSIÄR'!B34 -> 0 | C34: ='Lönekostnad FINANSIÄR'!C34 -> 0 | D34: ='Lönekostnad FINANSIÄR'!D34 -> 0 | E34: ='Lönekostnad FINANSIÄR'!E34 -> 0 | F34: ='Lönekostnad FINANSIÄR'!F34 -> 0 | G34: ='Lönekostnad FINANSIÄR'!G34 -> 0 | H34: 0 | I34: 0 | J34: 0 | K34: 0 | L34: 0 | M34: 0 | N34: 0 | O34: 0 | P34: 0 | Q34: 0 | R34: 0 | S34: 0 | T34: 0 | U34: 0 | V34: 0 | W34: 0 | X34: 0 | Y34: 0 | AA34: 0
A35: ='Lönekostnad FINANSIÄR'!A35 -> 0 | B35: ='Lönekostnad FINANSIÄR'!B35 -> 0 | C35: ='Lönekostnad FINANSIÄR'!C35 -> 0 | D35: ='Lönekostnad FINANSIÄR'!D35 -> 0 | E35: ='Lönekostnad FINANSIÄR'!E35 -> 0 | F35: ='Lönekostnad FINANSIÄR'!F35 -> 0 | G35: ='Lönekostnad FINANSIÄR'!G35 -> 0 | H35: 0 | I35: 0 | J35: 0 | K35: 0 | L35: 0 | M35: 0 | N35: 0 | O35: 0 | P35: 0 | Q35: 0 | R35: 0 | S35: 0 | T35: 0 | U35: 0 | V35: 0 | W35: 0 | X35: 0 | Y35: 0 | AA35: 0
A36: ='Lönekostnad FINANSIÄR'!A36 -> 0 | B36: ='Lönekostnad FINANSIÄR'!B36 -> 0 | C36: ='Lönekostnad FINANSIÄR'!C36 -> 0 | D36: ='Lönekostnad FINANSIÄR'!D36 -> 0 | E36: ='Lönekostnad FINANSIÄR'!E36 -> 0 | F36: ='Lönekostnad FINANSIÄR'!F36 -> 0 | G36: ='Lönekostnad FINANSIÄR'!G36 -> 0 | H36: 0 | I36: 0 | J36: 0 | K36: 0 | L36: 0 | M36: 0 | N36: 0 | O36: 0 | P36: 0 | Q36: 0 | R36: 0 | S36: 0 | T36: 0 | U36: 0 | V36: 0 | W36: 0 | X36: 0 | Y36: 0 | AA36: 0
A37: ='Lönekostnad FINANSIÄR'!A37 -> 0 | B37: ='Lönekostnad FINANSIÄR'!B37 -> 0 | C37: ='Lönekostnad FINANSIÄR'!C37 -> 0 | D37: ='Lönekostnad FINANSIÄR'!D37 -> 0 | E37: ='Lönekostnad FINANSIÄR'!E37 -> 0 | F37: ='Lönekostnad FINANSIÄR'!F37 -> 0 | G37: ='Lönekostnad FINANSIÄR'!G37 -> 0 | H37: 0 | I37: 0 | J37: 0 | K37: 0 | L37: 0 | M37: 0 | N37: 0 | O37: 0 | P37: 0 | Q37: 0 | R37: 0 | S37: 0 | T37: 0 | U37: 0 | V37: 0 | W37: 0 | X37: 0 | Y37: 0 | AA37: 0
A38: ='Lönekostnad FINANSIÄR'!A38 -> 0 | B38: ='Lönekostnad FINANSIÄR'!B38 -> 0 | C38: ='Lönekostnad FINANSIÄR'!C38 -> 0 | D38: ='Lönekostnad FINANSIÄR'!D38 -> 0 | E38: ='Lönekostnad FINANSIÄR'!E38 -> 0 | F38: ='Lönekostnad FINANSIÄR'!F38 -> 0 | G38: ='Lönekostnad FINANSIÄR'!G38 -> 0 | H38: 0 | I38: 0 | J38: 0 | K38: 0 | L38: 0 | M38: 0 | N38: 0 | O38: 0 | P38: 0 | Q38: 0 | R38: 0 | S38: 0 | T38: 0 | U38: 0 | V38: 0 | W38: 0 | X38: 0 | Y38: 0 | AA38: 0
A39: ='Lönekostnad FINANSIÄR'!A39 -> 0 | B39: ='Lönekostnad FINANSIÄR'!B39 -> 0 | C39: ='Lönekostnad FINANSIÄR'!C39 -> 0 | D39: ='Lönekostnad FINANSIÄR'!D39 -> 0 | E39: ='Lönekostnad FINANSIÄR'!E39 -> 0 | F39: ='Lönekostnad FINANSIÄR'!F39 -> 0 | G39: ='Lönekostnad FINANSIÄR'!G39 -> 0 | H39: 0 | I39: 0 | J39: 0 | K39: 0 | L39: 0 | M39: 0 | N39: 0 | O39: 0 | P39: 0 | Q39: 0 | R39: 0 | S39: 0 | T39: 0 | U39: 0 | V39: 0 | W39: 0 | X39: 0 | Y39: 0 | AA39: 0
A40: ='Lönekostnad FINANSIÄR'!A40 -> 0 | B40: ='Lönekostnad FINANSIÄR'!B40 -> 0 | C40: ='Lönekostnad FINANSIÄR'!C40 -> 0 | D40: ='Lönekostnad FINANSIÄR'!D40 -> 0 | E40: ='Lönekostnad FINANSIÄR'!E40 -> 0 | F40: ='Lönekostnad FINANSIÄR'!F40 -> 0 | G40: ='Lönekostnad FINANSIÄR'!G40 -> 0 | H40: 0 | I40: 0 | J40: 0 | K40: 0 | L40: 0 | M40: 0 | N40: 0 | O40: 0 | P40: 0 | Q40: 0 | R40: 0 | S40: 0 | T40: 0 | U40: 0 | V40: 0 | W40: 0 | X40: 0 | Y40: 0 | AA40: 0
A41: Summa lönekostnader | H41: =SUM(H6:H40) -> 410106.7395 | I41: =SUM(I6:I40) -> 222072.7994 | J41: =SUM(J6:J40) -> 632179.5389 | K41: =SUM(K6:K40) -> 420359.408 | L41: 227624.6194 | M41: 647984.0274 | N41: 430868.3932 | O41: 233315.2349 | P41: 664183.6281 | Q41: 449637.2275 | R41: 243478.5587 | S41: 693115.7862 | T41: 0 | U41: 0 | V41: 0 | W41: 1710971.768 | X41: 926491.2124 | Y41: 2637462.981 | Z41: =SUM(Z6:Z40) -> 0 | AA41: =SUM(AA6:AA40) -> 2637462.981

Sheet Resekostnader
A1: RESEKOSTNADER
A2: ="Projekt: "&Grunduppgifter!$B$5 -> Projekt:
B3: Kostnad
A4: Resekostnader | B4: År 1 | C4: År 2 | D4: År 3 | E4: År 4 | F4: År 5 | G4: Summa | H4: Budget | I4: Diff
A5: Resor | B5: 5000 | C5: 5000 | D5: 5000 | E5: 5000 | G5: =SUM(B5:F5) -> 20000 | I5: =G5-H5 -> 20000
A6: Konferenser | B6: 10000 | C6: 10000 | D6: 10000 | E6: 10000 | G6: =SUM(B6:F6) -> 40000 | I6: 40000
A7: Opponent disputation resa+hotell | E7: 10000 | G7: 10000 | I7: 10000
G8: 0 | I8: 0
G9: 0 | I9: 0
G10: 0 | I10: 0
G11: 0 | I11: 0
G12: 0 | I12: 0
G13: 0 | I13: 0
G14: 0 | I14: 0
G15: 0 | I15: 0
G16: 0 | I16: 0
G17: 0 | I17: 0
G18: 0 | I18: 0
G19: 0 | I19: 0
G20: 0 | I20: 0
G21: 0 | I21: 0
G22: 0 | I22: 0
G23: 0 | I23: 0
G24: 0 | I24: 0
G25: 0 | I25: 0
G26: 0 | I26: 0
G27: 0 | I27: 0
G28: 0 | I28: 0
G29: 0 | I29: 0
G30: 0 | I30: 0
G31: 0 | I31: 0
G32: 0 | I32: 0
G33: 0 | I33: 0
G34: 0 | I34: 0
G35: 0 | I35: 0
G36: 0 | I36: 0
G37: 0 | I37: 0
G38: 0 | I38: 0
G39: 0 | I39: 0
A40: Summa resekostnader | B40: =SUM(B5:B39) -> 15000 | C40: 15000 | D40: 15000 | E40: 25000 | F40: 0 | G40: 70000 | H40: 0 | I40: 70000

Sheet Externa tjänster
A1: KOSTNADER FÖR EXTERNA TJÄNSTER
A2: ="Projekt: "&Grunduppgifter!$B$5 -> Projekt:
B3: Kostnad
A4: Externa tjänster | B4: År 1 | C4: År 2 | D4: År 3 | E4: År 4 | F4: År 5 | G4: Summa | H4: Budget | I4: Diff
A5: Språkgranskning | E5: 8000 | G5: =SUM(B5:F5) -> 8000 | I5: =G5-H5 -> 8000
A6: Översättning | G6: =SUM(B6:F6) -> 0 | I6: 0
A7: Open Access | G7: 0 | I7: 0
A8: Publicering | G8: 0 | I8: 0
A9: Konsult | G9: 0 | I9: 0
A10: Extern sakkunskap | G10: 0 | I10: 0
A11: Representation Disputation | E11: 3000 | G11: 3000 | I11: 3000
G12: 0 | I12: 0
G13: 0 | I13: 0
G14: 0 | I14: 0
G15: 0 | I15: 0
G16: 0 | I16: 0
G17: 0 | I17: 0
G18: 0 | I18: 0
G19: 0 | I19: 0
G20: 0 | I20: 0
G21: 0 | I21: 0
G22: 0 | I22: 0
G23: 0 | I23: 0
G24: 0 | I24: 0
G25: 0 | I25: 0
G26: 0 | I26: 0
G27: 0 | I27: 0
G28: 0 | I28: 0
G29: 0 | I29: 0
G30: 0 | I30: 0
G31: 0 | I31: 0
G32: 0 | I32: 0
G33: 0 | I33: 0
G34: 0 | I34: 0
G35: 0 | I35: 0
G36: 0 | I36: 0
G37: 0 | I37: 0
G38: 0 | I38: 0
G39: 0 | I39: 0
A40: Summa externa tjänster | B40: =SUM(B5:B39) -> 0 | C40: 0 | D40: 0 | E40: 11000 | F40: 0 | G40: 11000 | H40: 0 | I40: 11000

Sheet Övriga kostnader
A1: ÖVRIGA KOSTNADER
A2: ="Projekt: "&Grunduppgifter!$B$5 -> Projekt:
B3: Kostnad
A4: Övriga kostnader | B4: År 1 | C4: År 2 | D4: År 3 | E4: År 4 | F4: År 5 | G4: Summa | H4: Budget | I4: Diff
A5: Datorer (> 5 - < 20 tkr) | G5: =SUM(B5:F5) -> 0 | I5: =G5-H5 -> 0
A6: Utrustning (> 5 - < 20 tkr) | G6: =SUM(B6:F6) -> 0 | I6: 0
A7: Litteratur | G7: 0 | I7: 0
A8: Möten | G8: 0 | I8: 0
A9: Workshops | G9: 0 | I9: 0
A10: Tryckning avhandling | E10: 15000 | G10: 15000 | I10: 15000
A11: Förbrukningsmaterial, tex labmaterial | B11: 25000 | C11: 25000 | D11: 25000 | E11: 25000 | G11: 100000 | I11: 100000
G12: 0 | I12: 0
G13: 0 | I13: 0
G14: 0 | I14: 0
G15: 0 | I15: 0
G16: 0 | I16: 0
G17: 0 | I17: 0
G18: 0 | I18: 0
G19: 0 | I19: 0
G20: 0 | I20: 0
G21: 0 | I21: 0
G22: 0 | I22: 0
G23: 0 | I23: 0
G24: 0 | I24: 0
G25: 0 | I25: 0
G26: 0 | I26: 0
G27: 0 | I27: 0
G28: 0 | I28: 0
G29: 0 | I29: 0
G30: 0 | I30: 0
G31: 0 | I31: 0
G32: 0 | I32: 0
G33: 0 | I33: 0
G34: 0 | I34: 0
G35: 0 | I35: 0
G36: 0 | I36: 0
G37: 0 | I37: 0
G38: 0 | I38: 0
G39: 0 | I39: 0
A40: Summa övriga kostnader | B40: =SUM(B5:B39) -> 25000 | C40: 25000 | D40: 25000 | E40: 40000 | F40: 0 | G40: 115000 | H40: 0 | I40: 115000

Sheet Lokalkostnader
A1: LOKALKOSTNADER
A2: ="Projekt: "&Grunduppgifter!$B$5 -> Projekt:
J3: Kostnad
A4: Tjänsterum | E4: Omfattning % | J4: År 1 | K4: År 2 | L4: År 3 | M4: År 4 | N4: År 5 | O4: Summa | P4: Budget | Q4: Diff
C5: kvm | D5: Kr/kvm/år | E5: År 1 | F5: År 2 | G5: År 3 | H5: År 4 | I5: År 5 | Q5: =O5-P5 -> 0
A6: Tjänsterum | C6: 7 | D6: 2370 | J6: =$C6*$D6*E6 -> 0 | K6: =$C6*$D6*F6 -> 0 | L6: =$C6*$D6*G6 -> 0 | M6: =$C6*$D6*H6 -> 0 | N6: =$C6*$D6*I6 -> 0 | O6: =SUM(J6:N6) -> 0 | Q6: 0
A7: Tjänsterum | C7: 8 | D7: 2370 | E7: 1.08 | F7: 1.08 | G7: 1.08 | H7: 1.08 | J7: =$C7*$D7*E7 -> 20476.8 | K7: =$C7*$D7*F7 -> 20476.8 | L7: =$C7*$D7*G7 -> 20476.8 | M7: =$C7*$D7*H7 -> 20476.8 | N7: =$C7*$D7*I7 -> 0 | O7: 81907.2 | Q7: 81907.2
A8: Tjänsterum | C8: 9 | D8: 2370 | J8: 0 | K8: 0 | L8: 0 | M8: 0 | N8: 0 | O8: 0 | Q8: 0
A9: Tjänsterum | C9: 10 | D9: 2370 | J9: 0 | K9: 0 | L9: 0 | M9: 0 | N9: 0 | O9: 0 | Q9: 0
A10: Tjänsterum | C10: 11 | D10: 2370 | J10: 0 | K10: 0 | L10: 0 | M10: 0 | N10: 0 | O10: 0 | Q10: 0
A11: Tjänsterum | C11: 12 | D11: 2370 | J11: 0 | K11: 0 | L11: 0 | M11: 0 | N11: 0 | O11: 0 | Q11: 0
A12: Tjänsterum | C12: 13 | D12: 2370 | J12: 0 | K12: 0 | L12: 0 | M12: 0 | N12: 0 | O12: 0 | Q12: 0
A13: Tjänsterum | C13: 14 | D13: 2370 | J13: 0 | K13: 0 | L13: 0 | M13: 0 | N13: 0 | O13: 0 | Q13: 0
A14: Tjänsterum | C14: 15 | D14: 2370 | J14: 0 | K14: 0 | L14: 0 | M14: 0 | N14: 0 | O14: 0 | Q14: 0
A16: Interna lokaler | E16: Antal timmar | J16: År 1 | K16: År 2 | L16: År 3 | M16: År 4 | N16: År 5 | O16: Summa | P16: Budget | Q16: Diff
C17: Platser | D17: kr/timme | E17: År 1 | F17: År 2 | G17: År 3 | H17: År 4 | I17: År 5 | Q17: 0
A18: Sammanträdesrum | C18: 10 pl | D18: 180 | J18: =$D18*E18 -> 0 | K18: =$D18*F18 -> 0 | L18: =$D18*G18 -> 0 | M18: =$D18*H18 -> 0 | N18: =$D18*I18 -> 0 | O18: 0 | Q18: 0
A19: Sammanträdesrum | C19: 25 pl | D19: 250 | J19: =$D19*E19 -> 0 | K19: =$D19*F19 -> 0 | L19: =$D19*G19 -> 0 | M19: =$D19*H19 -> 0 | N19: =$D19*I19 -> 0 | O19: 0 | Q19: 0
A20: Lärosal | C20: 16-32 pl | D20: 280 | J20: 0 | K20: 0 | L20: 0 | M20: 0 | N20: 0 | O20: 0 | Q20: 0
A21: Lärosal | C21: 38-44 pl | D21: 290 | J21: 0 | K21: 0 | L21: 0 | M21: 0 | N21: 0 | O21: 0 | Q21: 0
A22: Lärosal | C22: 45-65 pl | D22: 320 | J22: 0 | K22: 0 | L22: 0 | M22: 0 | N22: 0 | O22: 0 | Q22: 0
A23: Lärosal | C23: 65 pl | D23: 350 | J23: 0 | K23: 0 | L23: 0 | M23: 0 | N23: 0 | O23: 0 | Q23: 0
A24: Hörsal | C24: 88-119 pl | D24: 390 | J24: 0 | K24: 0 | L24: 0 | M24: 0 | N24: 0 | O24: 0 | Q24: 0
A25: Hörsal M404 (Hightech) | C25: 120 pl | D25: 670 | J25: 0 | K25: 0 | L25: 0 | M25: 0 | N25: 0 | O25: 0 | Q25: 0
A26: Hörsal | C26: 120-145 pl | D26: 450 | J26: 0 | K26: 0 | L26: 0 | M26: 0 | N26: 0 | O26: 0 | Q26: 0
A27: Hörsal | C27: 200 pl | D27: 650 | J27: 0 | K27: 0 | L27: 0 | M27: 0 | N27: 0 | O27: 0 | Q27: 0
A28: Hörsal | C28: 250 pl | D28: 750 | J28: 0 | K28: 0 | L28: 0 | M28: 0 | N28: 0 | O28: 0 | Q28: 0
A29: Datorsal | D29: 590 | J29: 0 | K29: 0 | L29: 0 | M29: 0 | N29: 0 | O29: 0 | Q29: 0
A30: Lab | J30: =$D30*E30 -> 0 | K30: 0 | L30: 0 | M30: 0 | N30: 0 | O30: 0 | Q30: 0
A31: Lab | J31: 0 | K31: 0 | L31: 0 | M31: 0 | N31: 0 | O31: 0 | Q31: 0
A33: Externa lokaler | E33: Antal timmar | J33: År 1 | K33: År 2 | L33: År 3 | M33: År 4 | N33: År 5 | O33: Summa | P33: Budget | Q33: Diff
D34: kr/timme | E34: År 1 | F34: År 2 | G34: År 3 | H34: År 4 | I34: År 5
A35: Disputation | H35: 5000 | J35: =$D35*E35 -> 0 | K35: 0 | L35: 0 | M35: 0 | N35: 0 | O35: 0 | Q35: 0
J36: 0 | K36: 0 | L36: 0 | M36: 0 | N36: 0 | O36: 0 | Q36: 0
J37: 0 | K37: 0 | L37: 0 | M37: 0 | N37: 0 | O37: 0 | Q37: 0
J38: 0 | K38: 0 | L38: 0 | M38: 0 | N38: 0 | O38: 0 | Q38: 0
J39: 0 | K39: 0 | L39: 0 | M39: 0 | N39: 0 | O39: 0 | Q39: 0
J40: 0 | K40: 0 | L40: 0 | M40: 0 | N40: 0 | O40: 0 | Q40: 0
A41: Summa lokaler | J41: =SUM(J5:J40) -> 20476.8 | K41: 20476.8 | L41: 20476.8 | M41: 20476.8 | N41: 0 | O41: 81907.2 | P41: 0 | Q41: 81907.2

Sheet Utrustning och avskrivningar
A1: KOSTNADER FÖR UTRUSTNING OCH AVSKRIVNINGAR
A2: ="Projekt: "&Grunduppgifter!$B$5 -> Projekt:
J3: Kostnad
A4: Utrustning/avskrivningar | J4: År 1 | K4: År 2 | L4: År 3 | M4: År 4 | N4: År 5 | O4: Summa | P4: Budget | Q4: Diff
B5: Ansk.värde | C5: Livslängd (År): | D5: År 1 | E5: År 2 | F5: År 3 | G5: År 4 | H5: År 5
A6: Dator (> 20 tkr) | C6: 3 | I6: =B6/C6/12 -> 0 | J6: =D6*$I6 -> 0 | K6: =E6*$I6 -> 0 | L6: =F6*$I6 -> 0 | M6: =G6*$I6 -> 0 | N6: =H6*$I6 -> 0 | O6: =SUM(J6:N6) -> 0 | Q6: =O6-P6 -> 0
A7: Dator (> 20 tkr) | C7: 3 | I7: =B7/C7/12 -> 0 | J7: =D7*$I7 -> 0 | K7: =E7*$I7 -> 0 | L7: =F7*$I7 -> 0 | M7: =G7*$I7 -> 0 | N7: =H7*$I7 -> 0 | O7: 0 | Q7: 0
A8: Dator (> 20 tkr) | C8: 3 | I8: 0 | J8: 0 | K8: 0 | L8: 0 | M8: 0 | N8: 0 | O8: 0 | Q8: 0
A9: Dator (> 20 tkr) | C9: 5 | I9: 0 | J9: =D9*$I9 -> 0 | K9: 0 | L9: 0 | M9: 0 | N9: 0 | O9: =SUM(J9:N9) -> 0 | Q9: =O9-P9 -> 0
A10: Dator (> 20 tkr) | C10: 5 | I10: 0 | J10: 0 | K10: =E10*$I10 -> 0 | L10: 0 | M10: 0 | N10: 0 | O10: 0 | Q10: 0
A11: Dator (> 20 tkr) | C11: 5 | I11: 0 | J11: 0 | K11: 0 | L11: 0 | M11: 0 | N11: 0 | O11: 0 | Q11: 0
A12: Dator (> 20 tkr) | C12: 10 | I12: 0 | J12: 0 | K12: 0 | L12: 0 | M12: 0 | N12: 0 | O12: 0 | Q12: 0
A13: Dator (> 20 tkr) | C13: 10 | I13: 0 | J13: 0 | K13: 0 | L13: 0 | M13: 0 | N13: 0 | O13: 0 | Q13: 0
A14: Dator (> 20 tkr) | C14: 10 | I14: 0 | J14: 0 | K14: 0 | L14: 0 | M14: 0 | N14: 0 | O14: 0 | Q14: 0
A15: Utrustning (> 20 tkr) | C15: 3 | I15: 0 | J15: 0 | K15: 0 | L15: 0 | M15: 0 | N15: 0 | O15: 0 | Q15: 0
A16: Utrustning (> 20 tkr) | C16: 3 | I16: 0 | J16: 0 | K16: 0 | L16: 0 | M16: 0 | N16: 0 | O16: 0 | Q16: 0
A17: Utrustning (> 20 tkr) | C17: 3 | I17: 0 | J17: 0 | K17: 0 | L17: 0 | M17: 0 | N17: 0 | O17: 0 | Q17: 0
A18: Utrustning (> 20 tkr) | C18: 5 | I18: 0 | J18: =D18*$I18 -> 0 | K18: =E18*$I18 -> 0 | L18: =F18*$I18 -> 0 | M18: =G18*$I18 -> 0 | N18: =H18*$I18 -> 0 | O18: =SUM(J18:N18) -> 0 | Q18: =O18-P18 -> 0
A19: Utrustning (> 20 tkr) | C19: 5 | I19: 0 | J19: 0 | K19: 0 | L19: 0 | M19: 0 | N19: 0 | O19: 0 | Q19: 0
A20: Utrustning (> 20 tkr) | C20: 5 | I20: 0 | J20: 0 | K20: 0 | L20: 0 | M20: 0 | N20: 0 | O20: 0 | Q20: 0
A21: Utrustning (> 20 tkr) | C21: 10 | I21: 0 | J21: 0 | K21: 0 | L21: 0 | M21: 0 | N21: 0 | O21: 0 | Q21: 0
A22: Utrustning (> 20 tkr) | C22: 10 | I22: 0 | J22: 0 | K22: 0 | L22: 0 | M22: 0 | N22: 0 | O22: 0 | Q22: 0
A23: Utrustning (> 20 tkr) | C23: 10 | I23: 0 | J23: 0 | K23: 0 | L23: 0 | M23: 0 | N23: 0 | O23: 0 | Q23: 0
O24: =SUM(J24:N24) -> 0 | Q24: =O24-P24 -> 0
O25: 0 | Q25: 0
J26: =(IF($H26>0,IF($H26<13,12-$H26,0),0))*$I26 -> 0 | O26: 0 | Q26: 0
O27: 0 | Q27: 0
O28: 0 | Q28: 0
O29: 0 | Q29: 0
O30: 0 | Q30: 0
O31: 0 | Q31: 0
O32: 0 | Q32: 0
O33: 0 | Q33: 0
O34: 0 | Q34: 0
O35: 0 | Q35: 0
O36: 0 | Q36: 0
O37: 0 | Q37: 0
O38: 0 | Q38: 0
O39: 0 | Q39: 0
O40: 0 | Q40: 0
O41: 0 | Q41: 0
O42: 0 | Q42: 0
O43: 0 | Q43: 0
O44: 0 | Q44: 0
O45: 0 | Q45: 0
A46: Summa utrustning/avskrivningar HB | J46: =SUM(J5:J45) -> 0 | K46: =SUM(K5:K45) -> 0 | L46: 0 | M46: 0 | N46: 0 | O46: 0 | P46: 0 | Q46: 0

Sheet Påslag
A1: KOSTNADER FÖR PÅSLAG OCH INDIREKTA KOSTNADER
A2: ="Projekt: "&Grunduppgifter!$B$5 -> Projekt:
B4: Enligt Finansiärens villkor | H4: Enligt HBs villkor
A5: Kostnadsslag | B5: År 1 | C5: År 2 | D5: År 3 | E5: År 4 | F5: År 5 | G5: Summa | H5: =B5 -> År 1 | I5: =C5 -> År 2 | J5: =D5 -> År 3 | K5: År 4 | L5: År 5 | M5: Summa | N5: Budget | O5: Diff
A6: Lönekostnader inkl. lkp | B6: =Grunduppgifter!$D$35*(IF(Grunduppgifter!$C$45="Ja",'Lönekostnad FINANSIÄR'!K41,0)) -> 404815.7056 | C6: =Grunduppgifter!$D$35*(IF(Grunduppgifter!$C$45="Ja",'Lönekostnad FINANSIÄR'!N41,0)) -> 414936.0982 | D6: =Grunduppgifter!$D$35*(IF(Grunduppgifter!$C$45="Ja",'Lönekostnad FINANSIÄR'!Q41,0)) -> 425309.5007 | E6: =Grunduppgifter!$D$35*(IF(Grunduppgifter!$C$45="Ja",'Lönekostnad FINANSIÄR'!T41,0)) -> 443861.4675 | F6: =Grunduppgifter!$D$35*(IF(Grunduppgifter!$C$45="Ja",'Lönekostnad FINANSIÄR'!W41,0)) -> 0 | G6: =SUM(B6:F6) -> 1688922.772 | H6: ='Lönekostnad HB'!J41*Påslag -> 406112.1358 | I6: ='Lönekostnad HB'!M41*Påslag -> 416264.9392 | J6: ='Lönekostnad HB'!P41*Påslag -> 426671.5627 | K6: ='Lönekostnad HB'!S41*Påslag -> 445257.581 | L6: ='Lönekostnad HB'!V41*Påslag -> 0 | M6: =SUM(H6:L6) -> 1694306.219 | O6: =M6-N6 -> 1694306.219
A7: Resekostnader | B7: =Grunduppgifter!$D$35*(IF(Grunduppgifter!$C$47="Ja",Resekostnader!B40,0)) -> 0 | C7: =Grunduppgifter!$D$35*(IF(Grunduppgifter!$C$47="Ja",Resekostnader!C40,0)) -> 0 | D7: =Grunduppgifter!$D$35*(IF(Grunduppgifter!$C$47="Ja",Resekostnader!D40,0)) -> 0 | E7: =Grunduppgifter!$D$35*(IF(Grunduppgifter!$C$47="Ja",Resekostnader!E40,0)) -> 0 | F7: =Grunduppgifter!$D$35*(IF(Grunduppgifter!$C$47="Ja",Resekostnader!F40,0)) -> 0 | G7: 0 | O7: 0
A8: Externa tjänster | B8: =Grunduppgifter!$D$35*(IF(Grunduppgifter!$C$47="Ja",'Externa tjänster'!B40,0)) -> 0 | C8: =Grunduppgifter!$D$35*(IF(Grunduppgifter!$C$47="Ja",'Externa tjänster'!C40,0)) -> 0 | D8: =Grunduppgifter!$D$35*(IF(Grunduppgifter!$C$47="Ja",'Externa tjänster'!D40,0)) -> 0 | E8: =Grunduppgifter!$D$35*(IF(Grunduppgifter!$C$47="Ja",'Externa tjänster'!E40,0)) -> 0 | F8: =Grunduppgifter!$D$35*(IF(Grunduppgifter!$C$47="Ja",'Externa tjänster'!F40,0)) -> 0 | G8: 0 | O8: 0
A9: Övriga kostnader | B9: =Grunduppgifter!$D$35*(IF(Grunduppgifter!$C$47="Ja",'Övriga kostnader'!B40,0)) -> 0 | C9: =Grunduppgifter!$D$35*(IF(Grunduppgifter!$C$47="Ja",'Övriga kostnader'!C40,0)) -> 0 | D9: =Grunduppgifter!$D$35*(IF(Grunduppgifter!$C$47="Ja",'Övriga kostnader'!D40,0)) -> 0 | E9: =Grunduppgifter!$D$35*(IF(Grunduppgifter!$C$47="Ja",'Övriga kostnader'!E40,0)) -> 0 | F9: =Grunduppgifter!$D$35*(IF(Grunduppgifter!$C$47="Ja",'Övriga kostnader'!F40,0)) -> 0 | G9: 0 | O9: 0
A10: Lokaler | B10: =Grunduppgifter!$D$35*(IF(Grunduppgifter!$C$51="Ja",Lokalkostnader!J41,0)) -> 0 | C10: =Grunduppgifter!$D$35*(IF(Grunduppgifter!$C$51="Ja",Lokalkostnader!K41,0)) -> 0 | D10: =Grunduppgifter!$D$35*(IF(Grunduppgifter!$C$51="Ja",Lokalkostnader!L41,0)) -> 0 | E10: =Grunduppgifter!$D$35*(IF(Grunduppgifter!$C$51="Ja",Lokalkostnader!M41,0)) -> 0 | F10: =Grunduppgifter!$D$35*(IF(Grunduppgifter!$C$51="Ja",Lokalkostnader!N41,0)) -> 0 | G10: 0 | O10: 0
A11: Utrustning och avskrivningar | B11: =Grunduppgifter!$D$35*(IF(Grunduppgifter!$C$49="Ja",'Utrustning och avskrivningar'!J46,0)) -> 0 | C11: =Grunduppgifter!$D$35*(IF(Grunduppgifter!$C$49="Ja",'Utrustning och avskrivningar'!K46,0)) -> 0 | D11: =Grunduppgifter!$D$35*(IF(Grunduppgifter!$C$49="Ja",'Utrustning och avskrivningar'!L46,0)) -> 0 | E11: =Grunduppgifter!$D$35*(IF(Grunduppgifter!$C$49="Ja",'Utrustning och avskrivningar'!M46,0)) -> 0 | F11: =Grunduppgifter!$D$35*(IF(Grunduppgifter!$C$49="Ja",'Utrustning och avskrivningar'!N46,0)) -> 0 | G11: 0 | O11: 0
A13: Finansiär medger fast belopp om: | G13: =SUM(B13:F13) -> 0 | O13: 0
A15: Summa påslag | B15: =SUM(B6:B14) -> 404815.7056 | C15: =SUM(C6:C14) -> 414936.0982 | D15: =SUM(D6:D14) -> 425309.5007 | E15: =SUM(E6:E14) -> 443861.4675 | F15: =SUM(F6:F14) -> 0 | G15: =SUM(G6:G14) -> 1688922.772 | H15: 406112.1358 | I15: 416264.9392 | J15: 426671.5627 | K15: 445257.581 | L15: 0 | M15: 1694306.219 | N15: 0 | O15: 1694306.219

Sheet IN KIND
A1: IN KIND
A2: ="Projekt: "&Grunduppgifter!$B$5 -> Projekt:
B5: Sammanställning
B6: År 1 | C6: År 2 | D6: År 3 | E6: År 4 | F6: År 5 | G6: Summa
A7: Lönekostnader | B7: =J27 -> 0 | C7: =K27 -> 0 | D7: 0 | E7: 0 | F7: 0 | G7: =SUM(B7:F7) -> 0
A8: Resekostnader | B8: =B41 -> 0 | C8: =C41 -> 0 | D8: 0 | E8: 0 | F8: 0 | G8: =SUM(B8:F8) -> 0
A9: Externa tjänster | B9: =B51 -> 0 | C9: =C51 -> 0 | D9: 0 | E9: 0 | F9: 0 | G9: 0
A10: Övriga kostnader | B10: =B61 -> 0 | C10: =C61 -> 0 | D10: 0 | E10: 0 | F10: 0 | G10: 0
A11: Lokalkostnader | B11: =J73+J84+J93 -> 0 | C11: =K73+K84+K93 -> 0 | D11: 0 | E11: 0 | F11: 0 | G11: 0
A12: Utrustning och avskrivningar | B12: =J104 -> 0 | C12: =K104 -> 0 | D12: 0 | E12: 0 | F12: 0 | G12: 0
A13: Påslag | B13: =B120 -> 0 | C13: =C120 -> 0 | D13: 0 | E13: 0 | F13: 0 | G13: 0
B14: =SUM(B7:B13) -> 0 | C14: =SUM(C7:C13) -> 0 | D14: 0 | E14: 0 | F14: 0 | G14: 0
H18: Kostnad
A19: Lönekostnader inkl. LKP | C19: Omfattning % | H19: År 1 | K19: År 2 | N19: År 3 | Q19: År 4 | T19: År 5 | W19: TOTALT
A20: Person / kompetens / roll | B20: Månadslön | C20: År 1 | D20: År 2 | E20: År 3 | F20: År 4 | G20: År 5 | H20: Lön | I20: LKP | J20: TOT | K20: Lön | L20: LKP | M20: TOT | N20: Lön | O20: LKP | P20: TOT | Q20: Lön | R20: LKP | S20: TOT | T20: Lön | U20: LKP | V20: TOT | W20: Lön | X20: LKP | Y20: TOT
H21: =$B21*(1+Löneuppräkning)^a*12*C21 -> 0 | I21: =H21*(LönekostnadspåläggFInansiär) -> 0 | J21: =H21+I21 -> 0 | K21: =$B21*(1+Löneuppräkning)^b*12*D21 -> 0 | L21: =K21*(LönekostnadspåläggFInansiär) -> 0 | M21: =K21+L21 -> 0 | N21: =$B21*(1+Löneuppräkning)^c_*12*E21 -> 0 | O21: =N21*(LönekostnadspåläggFInansiär) -> 0 | P21: =N21+O21 -> 0 | Q21: =$B21*(1+Löneuppräkning)^d*12*F21 -> 0 | R21: =Q21*(LönekostnadspåläggFInansiär) -> 0 | S21: =Q21+R21 -> 0 | T21: =$B21*(1+Löneuppräkning)^e*12*G21 -> 0 | U21: =T21*(LönekostnadspåläggFInansiär) -> 0 | V21: =T21+U21 -> 0 | W21: =H21+K21+N21+Q21+T21 -> 0 | X21: 0 | Y21: =W21+X21 -> 0
H22: 0 | I22: 0 | J22: 0 | K22: 0 | L22: 0 | M22: 0 | N22: 0 | O22: 0 | P22: 0 | Q22: 0 | R22: 0 | S22: 0 | T22: 0 | U22: 0 | V22: 0 | W22: 0 | X22: 0 | Y22: 0
H23: 0 | I23: 0 | J23: 0 | K23: 0 | L23: 0 | M23: 0 | N23: 0 | O23: 0 | P23: 0 | Q23: 0 | R23: 0 | S23: 0 | T23: 0 | U23: 0 | V23: 0 | W23: 0 | X23: 0 | Y23: 0
H24: 0 | I24: 0 | J24: 0 | K24: 0 | L24: 0 | M24: 0 | N24: 0 | O24: 0 | P24: 0 | Q24: 0 | R24: 0 | S24: 0 | T24: 0 | U24: 0 | V24: 0 | W24: 0 | X24: 0 | Y24: 0
H25: 0 | I25: 0 | J25: 0 | K25: 0 | L25: 0 | M25: 0 | N25: 0 | O25: 0 | P25: 0 | Q25: 0 | R25: 0 | S25: 0 | T25: 0 | U25: 0 | V25: 0 | W25: 0 | X25: 0 | Y25: 0
H26: 0 | I26: 0 | J26: 0 | K26: 0 | L26: 0 | M26: 0 | N26: 0 | O26: 0 | P26: 0 | Q26: 0 | R26: 0 | S26: 0 | T26: 0 | U26: 0 | V26: 0 | W26: 0 | X26: 0 | Y26: 0
H27: =SUM(H21:H26) -> 0 | I27: =SUM(I21:I26) -> 0 | J27: 0 | K27: 0 | L27: 0 | M27: 0 | N27: 0 | O27: 0 | P27: 0 | Q27: 0 | R27: 0 | S27: 0 | T27: 0 | U27: 0 | V27: 0 | W27: 0 | X27: 0 | Y27: 0
B34: Kostnad
A35: Resekostnader | B35: År 1 | C35: År 2 | D35: År 3 | E35: År 4 | F35: År 5 | G35: Summa
G36: =SUM(B36:F36) -> 0
G37: =SUM(B37:F37) -> 0
G38: 0
G39: 0
G40: 0
B41: =SUM(B36:B40) -> 0 | C41: =SUM(C36:C40) -> 0 | D41: 0 | E41: 0 | F41: 0 | G41: 0
B44: Kostnad
A45: Externa tjänster | B45: År 1 | C45: År 2 | D45: År 3 | E45: År 4 | F45: År 5 | G45: Summa
G46: =SUM(B46:F46) -> 0
G47: =SUM(B47:F47) -> 0
G48: 0
G49: 0
G50: 0
B51: =SUM(B46:B50) -> 0 | C51: =SUM(C46:C50) -> 0 | D51: 0 | E51: 0 | F51: 0 | G51: 0
B54: Kostnad
A55: Övriga kostnader | B55: År 1 | C55: År 2 | D55: År 3 | E55: År 4 | F55: År 5 | G55: Summa
G56: =SUM(B56:F56) -> 0
G57: =SUM(B57:F57) -> 0
G58: 0
G59: 0
G60: 0
B61: =SUM(B56:B60) -> 0 | C61: =SUM(C56:C60) -> 0 | D61: =SUM(D56:D60) -> 0 | E61: =SUM(E56:E60) -> 0 | F61: =SUM(F56:F60) -> 0 | G61: =SUM(G56:G60) -> 0
J65: Kostnad
A66: Tjänsterum | E66: Omfattning % | J66: År 1 | K66: År 2 | L66: År 3 | M66: År 4 | N66: År 5 | O66: Summa
C67: kvm | D67: Kr/kvm/år | E67: År 1 | F67: År 2 | G67: År 3 | H67: År 4 | I67: År 5
J68: =$C68*$D68*E68 -> 0 | K68: =$C68*$D68*F68 -> 0 | L68: =$C68*$D68*G68 -> 0 | M68: =$C68*$D68*H68 -> 0 | N68: =$C68*$D68*I68 -> 0 | O68: =SUM(J68:N68) -> 0
J69: =$C69*$D69*E69 -> 0 | K69: 0 | L69: 0 | M69: 0 | N69: 0 | O69: 0
J70: 0 | K70: 0 | L70: 0 | M70: 0 | N70: 0 | O70: 0
J71: 0 | K71: 0 | L71: 0 | M71: 0 | N71: 0 | O71: 0
J72: 0 | K72: 0 | L72: 0 | M72: 0 | N72: 0 | O72: 0
J73: =SUM(J68:J72) -> 0 | K73: =SUM(K68:K72) -> 0 | L73: =SUM(L68:L72) -> 0 | M73: =SUM(M68:M72) -> 0 | N73: =SUM(N68:N72) -> 0 | O73: =SUM(O68:O72) -> 0
J76: Kostnad
A77: Interna lokaler | E77: Antal timmar | J77: År 1 | K77: År 2 | L77: År 3 | M77: År 4 | N77: År 5 | O77: Summa
C78: Platser | D78: kr/timme | E78: År 1 | F78: År 2 | G78: År 3 | H78: År 4 | I78: År 5
E79: 25 | F79: 25 | G79: 25 | J79: =$D79*E79 -> 0 | K79: =$D79*F79 -> 0 | L79: =$D79*G79 -> 0 | M79: =$D79*H79 -> 0 | N79: =$D79*I79 -> 0 | O79: =SUM(J79:N79) -> 0
J80: =$D80*E80 -> 0 | K80: 0 | L80: 0 | M80: 0 | N80: 0 | O80: 0
J81: 0 | K81: 0 | L81: 0 | M81: 0 | N81: 0 | O81: 0
J82: 0 | K82: 0 | L82: 0 | M82: 0 | N82: 0 | O82: 0
J83: 0 | K83: 0 | L83: 0 | M83: 0 | N83: 0 | O83: 0
J84: =SUM(J79:J83) -> 0 | K84: =SUM(K79:K83) -> 0 | L84: =SUM(L79:L83) -> 0 | M84: =SUM(M79:M83) -> 0 | N84: =SUM(N79:N83) -> 0 | O84: =SUM(O79:O83) -> 0
J86: Kostnad
A87: Externa lokaler | E87: Antal timmar | J87: År 1 | K87: År 2 | L87: År 3 | M87: År 4 | N87: År 5 | O87: Summa
D88: kr/timme | E88: År 1 | F88: År 2 | G88: År 3 | H88: År 4 | I88: År 5
J89: =$D89*E89 -> 0 | K89: 0 | L89: 0 | M89: 0 | N89: 0 | O89: =SUM(J89:N89) -> 0
J90: 0 | K90: 0 | L90: 0 | M90: 0 | N90: 0 | O90: 0
J91: 0 | K91: 0 | L91: 0 | M91: 0 | N91: 0 | O91: 0
J92: 0 | K92: 0 | L92: 0 | M92: 0 | N92: 0 | O92: 0
J93: =SUM(J88:J92) -> 0 | K93: =SUM(K88:K92) -> 0 | L93: =SUM(L88:L92) -> 0 | M93: =SUM(M88:M92) -> 0 | N93: =SUM(N88:N92) -> 0 | O93: =SUM(O88:O92) -> 0
J97: Kostnad
A98: Utrustning/avskrivningar | J98: År 1 | K98: År 2 | L98: År 3 | M98: År 4 | N98: År 5 | O98: Summa
B99: Ansk.värde | C99: Livslängd (År): | D99: År 1 | E99: År 2 | F99: År 3 | G99: År 4 | H99: År 5
A100: Dator (> 20 tkr) | C100: 3 | I100: =B100/C100/12 -> 0 | J100: =D100*$I100 -> 0 | K100: 0 | L100: 0 | M100: 0 | N100: 0 | O100: =SUM(J100:N100) -> 0
A101: Dator (> 20 tkr) | C101: 10 | I101: =B101/C101/12 -> 0 | J101: 0 | K101: 0 | L101: 0 | M101: 0 | N101: 0 | O101: 0
A102: Utrustning (> 20 tkr) | C102: 5 | I102: =B102/C102/12 -> 0 | J102: 0 | K102: 0 | L102: 0 | M102: 0 | N102: 0 | O102: 0
A103: Utrustning (> 20 tkr) | C103: 10 | I103: =B103/C103/12 -> 0 | J103: 0 | K103: 0 | L103: 0 | M103: 0 | N103: 0 | O103: 0
J104: =SUM(J99:J103) -> 0 | K104: =SUM(K99:K103) -> 0 | L104: =SUM(L99:L103) -> 0 | M104: =SUM(M99:M103) -> 0 | N104: =SUM(N99:N103) -> 0 | O104: =SUM(O99:O103) -> 0
B109: Kostnad
A110: Påslag | B110: År 1 | C110: År 2 | D110: År 3 | E110: År 4 | F110: År 5 | G110: Summa
A111: Lönekostnader inkl. lkp | G111: =SUM(B111:F111) -> 0
A112: Resekostnader | G112: 0
A113: Externa tjänster | G113: 0
A114: Övriga kostnader | G114: 0
A115: Lokaler | G115: 0
A116: Utrustning och avskrivningar | G116: 0
A118: Fast belopp om: | G118: =SUM(B118:F118) -> 0
A120: Summa påslag | B120: =SUM(B111:B119) -> 0 | C120: =SUM(C111:C119) -> 0 | D120: =SUM(D111:D119) -> 0 | E120: =SUM(E111:E119) -> 0 | F120: =SUM(F111:F119) -> 0 | G120: =SUM(G111:G119) -> 0

Sheet ÖPPNA_STÄNG RESURSALLOKERINGEN
B8: Resursallokeringen är lösenordsskyddad för att förhindra att obehöriga användare ändrar dessa uppgifter.

Sheet Resursallokering (hidden)
B1: ="Projekt: "&Grunduppgifter!$B$5 -> Projekt:
C3: Budget timmar | J3: Godkännande | N3: Manmånader
D4: ='Lönekostnad FINANSIÄR'!$C$5 -> År 1 | E4: ='Lönekostnad FINANSIÄR'!$D$5 -> År 2 | F4: ='Lönekostnad FINANSIÄR'!$E$5 -> År 3 | G4: ='Lönekostnad FINANSIÄR'!$F$5 -> År 4 | H4: ='Lönekostnad FINANSIÄR'!$G$5 -> År 5 | I4: Totalt | J4: SC/SR | N4: År 1 | O4: År 2 | P4: År 3 | Q4: År 4 | R4: År 5 | S4: Totalt
B5: ='Lönekostnad FINANSIÄR'!A6 -> Handledning professor | C5: 1700 | D5: ='Lönekostnad FINANSIÄR'!C6*$C5 -> 50.15 | E5: ='Lönekostnad FINANSIÄR'!D6*$C5 -> 50.15 | F5: ='Lönekostnad FINANSIÄR'!E6*$C5 -> 50.15 | G5: ='Lönekostnad FINANSIÄR'!F6*$C5 -> 50.15 | H5: ='Lönekostnad FINANSIÄR'!G6*$C5 -> 0 | I5: =SUM(D5:H5) -> 200.6 | L5: =B5 -> Handledning professor | N5: =IFERROR(D5/($C5/12),0) -> 0.354 | O5: =IFERROR(E5/($C5/12),0) -> 0.354 | P5: =IFERROR(F5/($C5/12),0) -> 0.354 | Q5: =IFERROR(G5/($C5/12),0) -> 0.354 | R5: =IFERROR(H5/($C5/12),0) -> 0 | S5: =SUM(N5:R5) -> 1.416
B6: ='Lönekostnad FINANSIÄR'!A7 -> Handledning lektor | C6: 1700 | D6: ='Lönekostnad FINANSIÄR'!C7*$C6 -> 50.15 | E6: ='Lönekostnad FINANSIÄR'!D7*$C6 -> 50.15 | F6: ='Lönekostnad FINANSIÄR'!E7*$C6 -> 50.15 | G6: ='Lönekostnad FINANSIÄR'!F7*$C6 -> 50.15 | H6: ='Lönekostnad FINANSIÄR'!G7*$C6 -> 0 | I6: =SUM(D6:H6) -> 200.6 | L6: =B6 -> Handledning lektor | N6: =IFERROR(G6/($C6/12),0) -> 0.354 | O6: 0 | P6: =IFERROR(F6/($C6/12),0) -> 0.354 | Q6: 0.354 | R6: 0 | S6: =SUM(N6:R6) -> 1.062
B7: ='Lönekostnad FINANSIÄR'!A8 -> Doktorand (snittlön doktorandtrappa 2019) | C7: 850 | D7: ='Lönekostnad FINANSIÄR'!C8*$C7 -> 850 | E7: ='Lönekostnad FINANSIÄR'!D8*$C7 -> 850 | F7: ='Lönekostnad FINANSIÄR'!E8*$C7 -> 850 | G7: ='Lönekostnad FINANSIÄR'!F8*$C7 -> 850 | H7: ='Lönekostnad FINANSIÄR'!G8*$C7 -> 0 | I7: =SUM(D7:H7) -> 3400 | L7: Doktorand (snittlön doktorandtrappa 2019) | N7: 12 | O7: 0 | P7: 12 | Q7: 12 | R7: 0 | S7: 36
B8: ='Lönekostnad FINANSIÄR'!A9 -> Opponent | C8: 850 | D8: ='Lönekostnad FINANSIÄR'!C9*$C8 -> 0 | E8: ='Lönekostnad FINANSIÄR'!D9*$C8 -> 0 | F8: ='Lönekostnad FINANSIÄR'!E9*$C8 -> 0 | G8: ='Lönekostnad FINANSIÄR'!F9*$C8 -> 8.5 | H8: ='Lönekostnad FINANSIÄR'!G9*$C8 -> 0 | I8: 8.5 | L8: Opponent | N8: 0.12 | O8: 0 | P8: 0 | Q8: 0.12 | R8: 0 | S8: 0.24
B9: ='Lönekostnad FINANSIÄR'!A10 -> Doktorandkurser 60 hp, | C9: 1700 | D9: ='Lönekostnad FINANSIÄR'!C10*$C9 -> 40 | E9: ='Lönekostnad FINANSIÄR'!D10*$C9 -> 40 | F9: ='Lönekostnad FINANSIÄR'!E10*$C9 -> 40 | G9: ='Lönekostnad FINANSIÄR'!F10*$C9 -> 40 | H9: ='Lönekostnad FINANSIÄR'!G10*$C9 -> 0 | I9: 160 | L9: Doktorandkurser 60 hp, | N9: 0.2823529412 | O9: 0 | P9: 0.2823529412 | Q9: 0.2823529412 | R9: 0 | S9: 0.8470588235
B10: ='Lönekostnad FINANSIÄR'!A11 -> (totalt 8 kurser * 7,5 hp 20 timmar/kurs för doktoranden) | C10: 1700 | D10: ='Lönekostnad FINANSIÄR'!C11*$C10 -> 0 | E10: ='Lönekostnad FINANSIÄR'!D11*$C10 -> 0 | F10: ='Lönekostnad FINANSIÄR'!E11*$C10 -> 0 | G10: ='Lönekostnad FINANSIÄR'!F11*$C10 -> 0 | H10: ='Lönekostnad FINANSIÄR'!G11*$C10 -> 0 | I10: 0 | L10: (totalt 8 kurser * 7,5 hp 20 timmar/kurs för doktoranden) | N10: 0 | O10: 0 | P10: 0 | Q10: 0 | R10: 0 | S10: 0
B11: ='Lönekostnad FINANSIÄR'!A12 -> 0 | C11: 1700 | D11: ='Lönekostnad FINANSIÄR'!C12*$C11 -> 0 | E11: ='Lönekostnad FINANSIÄR'!D12*$C11 -> 0 | F11: ='Lönekostnad FINANSIÄR'!E12*$C11 -> 0 | G11: ='Lönekostnad FINANSIÄR'!F12*$C11 -> 0 | H11: ='Lönekostnad FINANSIÄR'!G12*$C11 -> 0 | I11: 0 | L11: 0 | N11: 0 | O11: 0 | P11: 0 | Q11: 0 | R11: 0 | S11: 0
B12: ='Lönekostnad FINANSIÄR'!A13 -> 0 | C12: 1700 | D12: ='Lönekostnad FINANSIÄR'!C13*$C12 -> 0 | E12: ='Lönekostnad FINANSIÄR'!D13*$C12 -> 0 | F12: ='Lönekostnad FINANSIÄR'!E13*$C12 -> 0 | G12: ='Lönekostnad FINANSIÄR'!F13*$C12 -> 0 | H12: ='Lönekostnad FINANSIÄR'!G13*$C12 -> 0 | I12: 0 | L12: 0 | N12: 0 | O12: 0 | P12: 0 | Q12: 0 | R12: 0 | S12: 0
B13: ='Lönekostnad FINANSIÄR'!A14 -> 0 | C13: 1700 | D13: ='Lönekostnad FINANSIÄR'!C14*$C13 -> 0 | E13: ='Lönekostnad FINANSIÄR'!D14*$C13 -> 0 | F13: ='Lönekostnad FINANSIÄR'!E14*$C13 -> 0 | G13: ='Lönekostnad FINANSIÄR'!F14*$C13 -> 0 | H13: ='Lönekostnad FINANSIÄR'!G14*$C13 -> 0 | I13: 0 | L13: 0 | N13: 0 | O13: 0 | P13: 0 | Q13: 0 | R13: 0 | S13: 0
B14: ='Lönekostnad FINANSIÄR'!A15 -> 0 | C14: 1700 | D14: ='Lönekostnad FINANSIÄR'!C15*$C14 -> 0 | E14: ='Lönekostnad FINANSIÄR'!D15*$C14 -> 0 | F14: ='Lönekostnad FINANSIÄR'!E15*$C14 -> 0 | G14: ='Lönekostnad FINANSIÄR'!F15*$C14 -> 0 | H14: ='Lönekostnad FINANSIÄR'!G15*$C14 -> 0 | I14: 0 | L14: 0 | N14: 0 | O14: 0 | P14: 0 | Q14: 0 | R14: 0 | S14: 0
B15: ='Lönekostnad FINANSIÄR'!A16 -> 0 | C15: 1700 | D15: ='Lönekostnad FINANSIÄR'!C16*$C15 -> 0 | E15: ='Lönekostnad FINANSIÄR'!D16*$C15 -> 0 | F15: ='Lönekostnad FINANSIÄR'!E16*$C15 -> 0 | G15: ='Lönekostnad FINANSIÄR'!F16*$C15 -> 0 | H15: ='Lönekostnad FINANSIÄR'!G16*$C15 -> 0 | I15: 0 | L15: 0 | N15: 0 | O15: 0 | P15: 0 | Q15: 0 | R15: 0 | S15: 0
B16: ='Lönekostnad FINANSIÄR'!A17 -> 0 | C16: 1700 | D16: ='Lönekostnad FINANSIÄR'!C17*$C16 -> 0 | E16: ='Lönekostnad FINANSIÄR'!D17*$C16 -> 0 | F16: ='Lönekostnad FINANSIÄR'!E17*$C16 -> 0 | G16: ='Lönekostnad FINANSIÄR'!F17*$C16 -> 0 | H16: ='Lönekostnad FINANSIÄR'!G17*$C16 -> 0 | I16: 0 | L16: 0 | N16: 0 | O16: 0 | P16: 0 | Q16: 0 | R16: 0 | S16: 0
B17: ='Lönekostnad FINANSIÄR'!A18 -> 0 | C17: 1700 | D17: ='Lönekostnad FINANSIÄR'!C18*$C17 -> 0 | E17: ='Lönekostnad FINANSIÄR'!D18*$C17 -> 0 | F17: ='Lönekostnad FINANSIÄR'!E18*$C17 -> 0 | G17: ='Lönekostnad FINANSIÄR'!F18*$C17 -> 0 | H17: ='Lönekostnad FINANSIÄR'!G18*$C17 -> 0 | I17: 0 | L17: 0 | N17: 0 | O17: 0 | P17: 0 | Q17: 0 | R17: 0 | S17: 0
B18: ='Lönekostnad FINANSIÄR'!A19 -> 0 | C18: 1700 | D18: ='Lönekostnad FINANSIÄR'!C19*$C18 -> 0 | E18: ='Lönekostnad FINANSIÄR'!D19*$C18 -> 0 | F18: ='Lönekostnad FINANSIÄR'!E19*$C18 -> 0 | G18: ='Lönekostnad FINANSIÄR'!F19*$C18 -> 0 | H18: ='Lönekostnad FINANSIÄR'!G19*$C18 -> 0 | I18: 0 | L18: 0 | N18: 0 | O18: 0 | P18: 0 | Q18: 0 | R18: 0 | S18: 0
B19: ='Lönekostnad FINANSIÄR'!A20 -> 0 | C19: 1700 | D19: ='Lönekostnad FINANSIÄR'!C20*$C19 -> 0 | E19: ='Lönekostnad FINANSIÄR'!D20*$C19 -> 0 | F19: ='Lönekostnad FINANSIÄR'!E20*$C19 -> 0 | G19: ='Lönekostnad FINANSIÄR'!F20*$C19 -> 0 | H19: ='Lönekostnad FINANSIÄR'!G20*$C19 -> 0 | I19: 0 | L19: 0 | N19: 0 | O19: 0 | P19: 0 | Q19: 0 | R19: 0 | S19: 0
B20: ='Lönekostnad FINANSIÄR'!A21 -> 0 | C20: 1700 | D20: ='Lönekostnad FINANSIÄR'!C21*$C20 -> 0 | E20: ='Lönekostnad FINANSIÄR'!D21*$C20 -> 0 | F20: ='Lönekostnad FINANSIÄR'!E21*$C20 -> 0 | G20: ='Lönekostnad FINANSIÄR'!F21*$C20 -> 0 | H20: ='Lönekostnad FINANSIÄR'!G21*$C20 -> 0 | I20: 0 | L20: 0 | N20: 0 | O20: 0 | P20: 0 | Q20: 0 | R20: 0 | S20: 0
B21: ='Lönekostnad FINANSIÄR'!A22 -> 0 | C21: 1700 | D21: ='Lönekostnad FINANSIÄR'!C22*$C21 -> 0 | E21: ='Lönekostnad FINANSIÄR'!D22*$C21 -> 0 | F21: ='Lönekostnad FINANSIÄR'!E22*$C21 -> 0 | G21: ='Lönekostnad FINANSIÄR'!F22*$C21 -> 0 | H21: ='Lönekostnad FINANSIÄR'!G22*$C21 -> 0 | I21: 0 | L21: 0 | N21: 0 | O21: 0 | P21: 0 | Q21: 0 | R21: 0 | S21: 0
B22: ='Lönekostnad FINANSIÄR'!A23 -> 0 | C22: 1700 | D22: ='Lönekostnad FINANSIÄR'!C23*$C22 -> 0 | E22: ='Lönekostnad FINANSIÄR'!D23*$C22 -> 0 | F22: ='Lönekostnad FINANSIÄR'!E23*$C22 -> 0 | G22: ='Lönekostnad FINANSIÄR'!F23*$C22 -> 0 | H22: ='Lönekostnad FINANSIÄR'!G23*$C22 -> 0 | I22: 0 | L22: 0 | N22: =IFERROR(G22/($C22/12),0) -> 0 | O22: 0 | P22: =IFERROR(F22/($C22/12),0) -> 0 | Q22: 0 | R22: 0 | S22: 0
B23: ='Lönekostnad FINANSIÄR'!A24 -> 0 | C23: 1700 | D23: ='Lönekostnad FINANSIÄR'!C24*$C23 -> 0 | E23: ='Lönekostnad FINANSIÄR'!D24*$C23 -> 0 | F23: ='Lönekostnad FINANSIÄR'!E24*$C23 -> 0 | G23: ='Lönekostnad FINANSIÄR'!F24*$C23 -> 0 | H23: ='Lönekostnad FINANSIÄR'!G24*$C23 -> 0 | I23: 0 | L23: 0 | N23: 0 | O23: 0 | P23: 0 | Q23: 0 | R23: 0 | S23: 0
B24: ='Lönekostnad FINANSIÄR'!A25 -> 0 | C24: 1700 | D24: ='Lönekostnad FINANSIÄR'!C25*$C24 -> 0 | E24: ='Lönekostnad FINANSIÄR'!D25*$C24 -> 0 | F24: ='Lönekostnad FINANSIÄR'!E25*$C24 -> 0 | G24: ='Lönekostnad FINANSIÄR'!F25*$C24 -> 0 | H24: ='Lönekostnad FINANSIÄR'!G25*$C24 -> 0 | I24: 0 | L24: 0 | N24: 0 | O24: 0 | P24: 0 | Q24: 0 | R24: 0 | S24: 0
B25: ='Lönekostnad FINANSIÄR'!A26 -> 0 | C25: 1700 | D25: ='Lönekostnad FINANSIÄR'!C26*$C25 -> 0 | E25: ='Lönekostnad FINANSIÄR'!D26*$C25 -> 0 | F25: ='Lönekostnad FINANSIÄR'!E26*$C25 -> 0 | G25: ='Lönekostnad FINANSIÄR'!F26*$C25 -> 0 | H25: ='Lönekostnad FINANSIÄR'!G26*$C25 -> 0 | I25: 0 | L25: 0 | N25: 0 | O25: 0 | P25: 0 | Q25: 0 | R25: 0 | S25: 0
B26: ='Lönekostnad FINANSIÄR'!A27 -> 0 | C26: 1700 | D26: ='Lönekostnad FINANSIÄR'!C27*$C26 -> 0 | E26: ='Lönekostnad FINANSIÄR'!D27*$C26 -> 0 | F26: ='Lönekostnad FINANSIÄR'!E27*$C26 -> 0 | G26: ='Lönekostnad FINANSIÄR'!F27*$C26 -> 0 | H26: ='Lönekostnad FINANSIÄR'!G27*$C26 -> 0 | I26: 0 | L26: 0 | N26: 0 | O26: 0 | P26: 0 | Q26: 0 | R26: 0 | S26: 0
B27: ='Lönekostnad FINANSIÄR'!A28 -> 0 | C27: 1700 | D27: ='Lönekostnad FINANSIÄR'!C28*$C27 -> 0 | E27: ='Lönekostnad FINANSIÄR'!D28*$C27 -> 0 | F27: ='Lönekostnad FINANSIÄR'!E28*$C27 -> 0 | G27: ='Lönekostnad FINANSIÄR'!F28*$C27 -> 0 | H27: ='Lönekostnad FINANSIÄR'!G28*$C27 -> 0 | I27: 0 | L27: 0 | N27: 0 | O27: 0 | P27: 0 | Q27: 0 | R27: 0 | S27: 0
B28: ='Lönekostnad FINANSIÄR'!A29 -> 0 | C28: 1700 | D28: ='Lönekostnad FINANSIÄR'!C29*$C28 -> 0 | E28: ='Lönekostnad FINANSIÄR'!D29*$C28 -> 0 | F28: ='Lönekostnad FINANSIÄR'!E29*$C28 -> 0 | G28: ='Lönekostnad FINANSIÄR'!F29*$C28 -> 0 | H28: ='Lönekostnad FINANSIÄR'!G29*$C28 -> 0 | I28: 0 | L28: 0 | N28: 0 | O28: 0 | P28: 0 | Q28: 0 | R28: 0 | S28: 0
B29: ='Lönekostnad FINANSIÄR'!A30 -> 0 | C29: 1700 | D29: ='Lönekostnad FINANSIÄR'!C30*$C29 -> 0 | E29: ='Lönekostnad FINANSIÄR'!D30*$C29 -> 0 | F29: ='Lönekostnad FINANSIÄR'!E30*$C29 -> 0 | G29: ='Lönekostnad FINANSIÄR'!F30*$C29 -> 0 | H29: ='Lönekostnad FINANSIÄR'!G30*$C29 -> 0 | I29: 0 | L29: 0 | N29: 0 | O29: 0 | P29: 0 | Q29: 0 | R29: 0 | S29: 0
B30: ='Lönekostnad FINANSIÄR'!A31 -> 0 | C30: 1700 | D30: ='Lönekostnad FINANSIÄR'!C31*$C30 -> 0 | E30: ='Lönekostnad FINANSIÄR'!D31*$C30 -> 0 | F30: ='Lönekostnad FINANSIÄR'!E31*$C30 -> 0 | G30: ='Lönekostnad FINANSIÄR'!F31*$C30 -> 0 | H30: ='Lönekostnad FINANSIÄR'!G31*$C30 -> 0 | I30: 0 | L30: 0 | N30: 0 | O30: 0 | P30: 0 | Q30: 0 | R30: 0 | S30: 0
B31: ='Lönekostnad FINANSIÄR'!A32 -> 0 | C31: 1700 | D31: ='Lönekostnad FINANSIÄR'!C32*$C31 -> 0 | E31: ='Lönekostnad FINANSIÄR'!D32*$C31 -> 0 | F31: ='Lönekostnad FINANSIÄR'!E32*$C31 -> 0 | G31: ='Lönekostnad FINANSIÄR'!F32*$C31 -> 0 | H31: ='Lönekostnad FINANSIÄR'!G32*$C31 -> 0 | I31: 0 | L31: 0 | N31: 0 | O31: 0 | P31: 0 | Q31: 0 | R31: 0 | S31: 0
B32: ='Lönekostnad FINANSIÄR'!A33 -> 0 | C32: 1700 | D32: ='Lönekostnad FINANSIÄR'!C33*$C32 -> 0 | E32: ='Lönekostnad FINANSIÄR'!D33*$C32 -> 0 | F32: ='Lönekostnad FINANSIÄR'!E33*$C32 -> 0 | G32: ='Lönekostnad FINANSIÄR'!F33*$C32 -> 0 | H32: ='Lönekostnad FINANSIÄR'!G33*$C32 -> 0 | I32: 0 | L32: 0 | N32: 0 | O32: 0 | P32: 0 | Q32: 0 | R32: 0 | S32: 0
B33: ='Lönekostnad FINANSIÄR'!A34 -> 0 | C33: 1700 | D33: ='Lönekostnad FINANSIÄR'!C34*$C33 -> 0 | E33: ='Lönekostnad FINANSIÄR'!D34*$C33 -> 0 | F33: ='Lönekostnad FINANSIÄR'!E34*$C33 -> 0 | G33: ='Lönekostnad FINANSIÄR'!F34*$C33 -> 0 | H33: ='Lönekostnad FINANSIÄR'!G34*$C33 -> 0 | I33: 0 | L33: 0 | N33: 0 | O33: 0 | P33: 0 | Q33: 0 | R33: 0 | S33: 0
B34: ='Lönekostnad FINANSIÄR'!A35 -> 0 | C34: 1700 | D34: ='Lönekostnad FINANSIÄR'!C35*$C34 -> 0 | E34: ='Lönekostnad FINANSIÄR'!D35*$C34 -> 0 | F34: ='Lönekostnad FINANSIÄR'!E35*$C34 -> 0 | G34: ='Lönekostnad FINANSIÄR'!F35*$C34 -> 0 | H34: ='Lönekostnad FINANSIÄR'!G35*$C34 -> 0 | I34: 0 | L34: 0 | N34: 0 | O34: 0 | P34: 0 | Q34: 0 | R34: 0 | S34: 0
B35: ='Lönekostnad FINANSIÄR'!A36 -> 0 | C35: 1700 | D35: ='Lönekostnad FINANSIÄR'!C36*$C35 -> 0 | E35: ='Lönekostnad FINANSIÄR'!D36*$C35 -> 0 | F35: ='Lönekostnad FINANSIÄR'!E36*$C35 -> 0 | G35: ='Lönekostnad FINANSIÄR'!F36*$C35 -> 0 | H35: ='Lönekostnad FINANSIÄR'!G36*$C35 -> 0 | I35: 0 | L35: 0 | N35: 0 | O35: 0 | P35: 0 | Q35: 0 | R35: 0 | S35: 0
B36: ='Lönekostnad FINANSIÄR'!A37 -> 0 | C36: 1700 | D36: ='Lönekostnad FINANSIÄR'!C37*$C36 -> 0 | E36: ='Lönekostnad FINANSIÄR'!D37*$C36 -> 0 | F36: ='Lönekostnad FINANSIÄR'!E37*$C36 -> 0 | G36: ='Lönekostnad FINANSIÄR'!F37*$C36 -> 0 | H36: ='Lönekostnad FINANSIÄR'!G37*$C36 -> 0 | I36: 0 | L36: 0 | N36: 0 | O36: 0 | P36: 0 | Q36: 0 | R36: 0 | S36: 0
B37: ='Lönekostnad FINANSIÄR'!A38 -> 0 | C37: 1700 | D37: ='Lönekostnad FINANSIÄR'!C38*$C37 -> 0 | E37: ='Lönekostnad FINANSIÄR'!D38*$C37 -> 0 | F37: ='Lönekostnad FINANSIÄR'!E38*$C37 -> 0 | G37: ='Lönekostnad FINANSIÄR'!F38*$C37 -> 0 | H37: ='Lönekostnad FINANSIÄR'!G38*$C37 -> 0 | I37: 0 | L37: 0 | N37: 0 | O37: 0 | P37: 0 | Q37: 0 | R37: 0 | S37: 0
B38: ='Lönekostnad FINANSIÄR'!A39 -> 0 | C38: 1700 | D38: ='Lönekostnad FINANSIÄR'!C39*$C38 -> 0 | E38: ='Lönekostnad FINANSIÄR'!D39*$C38 -> 0 | F38: ='Lönekostnad FINANSIÄR'!E39*$C38 -> 0 | G38: ='Lönekostnad FINANSIÄR'!F39*$C38 -> 0 | H38: ='Lönekostnad FINANSIÄR'!G39*$C38 -> 0 | I38: 0 | L38: 0 | N38: 0 | O38: 0 | P38: 0 | Q38: 0 | R38: 0 | S38: 0
B39: ='Lönekostnad FINANSIÄR'!A40 -> 0 | C39: 1700 | D39: ='Lönekostnad FINANSIÄR'!C40*$C39 -> 0 | E39: ='Lönekostnad FINANSIÄR'!D40*$C39 -> 0 | F39: ='Lönekostnad FINANSIÄR'!E40*$C39 -> 0 | G39: ='Lönekostnad FINANSIÄR'!F40*$C39 -> 0 | H39: ='Lönekostnad FINANSIÄR'!G40*$C39 -> 0 | I39: 0 | L39: 0 | N39: 0 | O39: 0 | P39: 0 | Q39: 0 | R39: 0 | S39: 0
B40: Totalt | C40: 32725 | D40: =SUM(D5:D39) -> 990.3 | E40: 990.3 | F40: 990.3 | G40: 998.8 | H40: 0 | I40: 3969.7 | L40: Totalt | M40: =S40 -> 39.56505882 | N40: =SUM(N5:N39) -> 13.11035294 | O40: 0.354 | P40: 12.99035294 | Q40: 13.11035294 | R40: 0 | S40: 39.56505882

Sheet Resursallokering FORMLER (hidden)
B1: ="Projekt: "&Grunduppgifter!$B$5 -> Projekt:
C3: Budget timmar | J3: Godkännande | N3: Manmånader
D4: ='Lönekostnad FINANSIÄR'!$C$5 -> År 1 | E4: ='Lönekostnad FINANSIÄR'!$D$5 -> År 2 | F4: ='Lönekostnad FINANSIÄR'!$E$5 -> År 3 | G4: ='Lönekostnad FINANSIÄR'!$F$5 -> År 4 | H4: ='Lönekostnad FINANSIÄR'!$G$5 -> År 5 | I4: Totalt | J4: SC/SR | N4: År 1 | O4: År 2 | P4: År 3 | Q4: År 4 | R4: År 5 | S4: Totalt
B5: ='Lönekostnad FINANSIÄR'!A6 -> Handledning professor | C5: =Resursallokering!C5 -> 1700 | D5: ='Lönekostnad FINANSIÄR'!C6*$C5 -> 50.15 | E5: ='Lönekostnad FINANSIÄR'!D6*$C5 -> 50.15 | F5: ='Lönekostnad FINANSIÄR'!E6*$C5 -> 50.15 | G5: ='Lönekostnad FINANSIÄR'!F6*$C5 -> 50.15 | H5: ='Lönekostnad FINANSIÄR'!G6*$C5 -> 0 | I5: =SUM(D5:H5) -> 200.6 | L5: =B5 -> Handledning professor | N5: =IFERROR(D5/($C5/12),0) -> 0.354 | O5: =IFERROR(E5/($C5/12),0) -> 0.354 | P5: =IFERROR(F5/($C5/12),0) -> 0.354 | Q5: =IFERROR(G5/($C5/12),0) -> 0.354 | R5: =IFERROR(H5/($C5/12),0) -> 0 | S5: =SUM(N5:R5) -> 1.416
B6: ='Lönekostnad FINANSIÄR'!A7 -> Handledning lektor | C6: =Resursallokering!C6 -> 1700 | D6: ='Lönekostnad FINANSIÄR'!C7*$C6 -> 50.15 | E6: ='Lönekostnad FINANSIÄR'!D7*$C6 -> 50.15 | F6: ='Lönekostnad FINANSIÄR'!E7*$C6 -> 50.15 | G6: ='Lönekostnad FINANSIÄR'!F7*$C6 -> 50.15 | H6: ='Lönekostnad FINANSIÄR'!G7*$C6 -> 0 | I6: =SUM(D6:H6) -> 200.6 | L6: =B6 -> Handledning lektor | N6: =IFERROR(G6/($C6/12),0) -> 0.354 | O6: =IFERROR(H6/($C6/12),0) -> 0 | P6: =IFERROR(F6/($C6/12),0) -> 0.354 | Q6: =IFERROR(G6/($C6/12),0) -> 0.354 | R6: =IFERROR(H6/($C6/12),0) -> 0 | S6: =SUM(N6:R6) -> 1.062
B7: ='Lönekostnad FINANSIÄR'!A8 -> Doktorand (snittlön doktorandtrappa 2019) | C7: =Resursallokering!C7 -> 850 | D7: ='Lönekostnad FINANSIÄR'!C8*$C7 -> 850 | E7: ='Lönekostnad FINANSIÄR'!D8*$C7 -> 850 | F7: ='Lönekostnad FINANSIÄR'!E8*$C7 -> 850 | G7: ='Lönekostnad FINANSIÄR'!F8*$C7 -> 850 | H7: ='Lönekostnad FINANSIÄR'!G8*$C7 -> 0 | I7: =SUM(D7:H7) -> 3400 | L7: Doktorand (snittlön doktorandtrappa 2019) | N7: =IFERROR(G7/($C7/12),0) -> 12 | O7: =IFERROR(H7/($C7/12),0) -> 0 | P7: =IFERROR(F7/($C7/12),0) -> 12 | Q7: =IFERROR(G7/($C7/12),0) -> 12 | R7: =IFERROR(H7/($C7/12),0) -> 0 | S7: =SUM(N7:R7) -> 36
B8: ='Lönekostnad FINANSIÄR'!A9 -> Opponent | C8: =Resursallokering!C8 -> 850 | D8: ='Lönekostnad FINANSIÄR'!C9*$C8 -> 0 | E8: ='Lönekostnad FINANSIÄR'!D9*$C8 -> 0 | F8: ='Lönekostnad FINANSIÄR'!E9*$C8 -> 0 | G8: ='Lönekostnad FINANSIÄR'!F9*$C8 -> 8.5 | H8: ='Lönekostnad FINANSIÄR'!G9*$C8 -> 0 | I8: 8.5 | L8: Opponent | N8: 0.12 | O8: 0 | P8: 0 | Q8: 0.12 | R8: 0 | S8: 0.24
B9: ='Lönekostnad FINANSIÄR'!A10 -> Doktorandkurser 60 hp, | C9: =Resursallokering!C9 -> 1700 | D9: ='Lönekostnad FINANSIÄR'!C10*$C9 -> 40 | E9: ='Lönekostnad FINANSIÄR'!D10*$C9 -> 40 | F9: ='Lönekostnad FINANSIÄR'!E10*$C9 -> 40 | G9: ='Lönekostnad FINANSIÄR'!F10*$C9 -> 40 | H9: ='Lönekostnad FINANSIÄR'!G10*$C9 -> 0 | I9: 160 | L9: Doktorandkurser 60 hp, | N9: 0.2823529412 | O9: 0 | P9: 0.2823529412 | Q9: 0.2823529412 | R9: 0 | S9: 0.8470588235
B10: ='Lönekostnad FINANSIÄR'!A11 -> (totalt 8 kurser * 7,5 hp 20 timmar/kurs för doktoranden) | C10: =Resursallokering!C10 -> 1700 | D10: ='Lönekostnad FINANSIÄR'!C11*$C10 -> 0 | E10: ='Lönekostnad FINANSIÄR'!D11*$C10 -> 0 | F10: ='Lönekostnad FINANSIÄR'!E11*$C10 -> 0 | G10: ='Lönekostnad FINANSIÄR'!F11*$C10 -> 0 | H10: ='Lönekostnad FINANSIÄR'!G11*$C10 -> 0 | I10: 0 | L10: (totalt 8 kurser * 7,5 hp 20 timmar/kurs för doktoranden) | N10: 0 | O10: 0 | P10: 0 | Q10: 0 | R10: 0 | S10: 0
B11: ='Lönekostnad FINANSIÄR'!A12 -> 0 | C11: =Resursallokering!C11 -> 1700 | D11: ='Lönekostnad FINANSIÄR'!C12*$C11 -> 0 | E11: ='Lönekostnad FINANSIÄR'!D12*$C11 -> 0 | F11: ='Lönekostnad FINANSIÄR'!E12*$C11 -> 0 | G11: ='Lönekostnad FINANSIÄR'!F12*$C11 -> 0 | H11: ='Lönekostnad FINANSIÄR'!G12*$C11 -> 0 | I11: 0 | L11: 0 | N11: 0 | O11: 0 | P11: 0 | Q11: 0 | R11: 0 | S11: 0
B12: ='Lönekostnad FINANSIÄR'!A13 -> 0 | C12: =Resursallokering!C12 -> 1700 | D12: ='Lönekostnad FINANSIÄR'!C13*$C12 -> 0 | E12: ='Lönekostnad FINANSIÄR'!D13*$C12 -> 0 | F12: ='Lönekostnad FINANSIÄR'!E13*$C12 -> 0 | G12: ='Lönekostnad FINANSIÄR'!F13*$C12 -> 0 | H12: ='Lönekostnad FINANSIÄR'!G13*$C12 -> 0 | I12: 0 | L12: 0 | N12: 0 | O12: 0 | P12: 0 | Q12: 0 | R12: 0 | S12: 0
B13: ='Lönekostnad FINANSIÄR'!A14 -> 0 | C13: =Resursallokering!C13 -> 1700 | D13: ='Lönekostnad FINANSIÄR'!C14*$C13 -> 0 | E13: ='Lönekostnad FINANSIÄR'!D14*$C13 -> 0 | F13: ='Lönekostnad FINANSIÄR'!E14*$C13 -> 0 | G13: ='Lönekostnad FINANSIÄR'!F14*$C13 -> 0 | H13: ='Lönekostnad FINANSIÄR'!G14*$C13 -> 0 | I13: 0 | L13: 0 | N13: 0 | O13: 0 | P13: 0 | Q13: 0 | R13: 0 | S13: 0
B14: ='Lönekostnad FINANSIÄR'!A15 -> 0 | C14: =Resursallokering!C14 -> 1700 | D14: ='Lönekostnad FINANSIÄR'!C15*$C14 -> 0 | E14: ='Lönekostnad FINANSIÄR'!D15*$C14 -> 0 | F14: ='Lönekostnad FINANSIÄR'!E15*$C14 -> 0 | G14: ='Lönekostnad FINANSIÄR'!F15*$C14 -> 0 | H14: ='Lönekostnad FINANSIÄR'!G15*$C14 -> 0 | I14: 0 | L14: 0 | N14: 0 | O14: 0 | P14: 0 | Q14: 0 | R14: 0 | S14: 0
B15: ='Lönekostnad FINANSIÄR'!A16 -> 0 | C15: =Resursallokering!C15 -> 1700 | D15: ='Lönekostnad FINANSIÄR'!C16*$C15 -> 0 | E15: ='Lönekostnad FINANSIÄR'!D16*$C15 -> 0 | F15: ='Lönekostnad FINANSIÄR'!E16*$C15 -> 0 | G15: ='Lönekostnad FINANSIÄR'!F16*$C15 -> 0 | H15: ='Lönekostnad FINANSIÄR'!G16*$C15 -> 0 | I15: 0 | L15: 0 | N15: 0 | O15: 0 | P15: 0 | Q15: 0 | R15: 0 | S15: 0
B16: ='Lönekostnad FINANSIÄR'!A17 -> 0 | C16: =Resursallokering!C16 -> 1700 | D16: ='Lönekostnad FINANSIÄR'!C17*$C16 -> 0 | E16: ='Lönekostnad FINANSIÄR'!D17*$C16 -> 0 | F16: ='Lönekostnad FINANSIÄR'!E17*$C16 -> 0 | G16: ='Lönekostnad FINANSIÄR'!F17*$C16 -> 0 | H16: ='Lönekostnad FINANSIÄR'!G17*$C16 -> 0 | I16: 0 | L16: 0 | N16: 0 | O16: 0 | P16: 0 | Q16: 0 | R16: 0 | S16: 0
B17: ='Lönekostnad FINANSIÄR'!A18 -> 0 | C17: =Resursallokering!C17 -> 1700 | D17: ='Lönekostnad FINANSIÄR'!C18*$C17 -> 0 | E17: ='Lönekostnad FINANSIÄR'!D18*$C17 -> 0 | F17: ='Lönekostnad FINANSIÄR'!E18*$C17 -> 0 | G17: ='Lönekostnad FINANSIÄR'!F18*$C17 -> 0 | H17: ='Lönekostnad FINANSIÄR'!G18*$C17 -> 0 | I17: 0 | L17: 0 | N17: 0 | O17: 0 | P17: 0 | Q17: 0 | R17: 0 | S17: 0
B18: ='Lönekostnad FINANSIÄR'!A19 -> 0 | C18: =Resursallokering!C18 -> 1700 | D18: ='Lönekostnad FINANSIÄR'!C19*$C18 -> 0 | E18: ='Lönekostnad FINANSIÄR'!D19*$C18 -> 0 | F18: ='Lönekostnad FINANSIÄR'!E19*$C18 -> 0 | G18: ='Lönekostnad FINANSIÄR'!F19*$C18 -> 0 | H18: ='Lönekostnad FINANSIÄR'!G19*$C18 -> 0 | I18: 0 | L18: 0 | N18: 0 | O18: 0 | P18: 0 | Q18: 0 | R18: 0 | S18: 0
B19: ='Lönekostnad FINANSIÄR'!A20 -> 0 | C19: =Resursallokering!C19 -> 1700 | D19: ='Lönekostnad FINANSIÄR'!C20*$C19 -> 0 | E19: ='Lönekostnad FINANSIÄR'!D20*$C19 -> 0 | F19: ='Lönekostnad FINANSIÄR'!E20*$C19 -> 0 | G19: ='Lönekostnad FINANSIÄR'!F20*$C19 -> 0 | H19: ='Lönekostnad FINANSIÄR'!G20*$C19 -> 0 | I19: 0 | L19: 0 | N19: 0 | O19: 0 | P19: 0 | Q19: 0 | R19: 0 | S19: 0
B20: ='Lönekostnad FINANSIÄR'!A21 -> 0 | C20: =Resursallokering!C20 -> 1700 | D20: ='Lönekostnad FINANSIÄR'!C21*$C20 -> 0 | E20: ='Lönekostnad FINANSIÄR'!D21*$C20 -> 0 | F20: ='Lönekostnad FINANSIÄR'!E21*$C20 -> 0 | G20: ='Lönekostnad FINANSIÄR'!F21*$C20 -> 0 | H20: ='Lönekostnad FINANSIÄR'!G21*$C20 -> 0 | I20: 0 | L20: =B20 -> 0 | N20: 0 | O20: 0 | P20: 0 | Q20: 0 | R20: 0 | S20: 0
B21: ='Lönekostnad FINANSIÄR'!A22 -> 0 | C21: =Resursallokering!C21 -> 1700 | D21: ='Lönekostnad FINANSIÄR'!C22*$C21 -> 0 | E21: ='Lönekostnad FINANSIÄR'!D22*$C21 -> 0 | F21: ='Lönekostnad FINANSIÄR'!E22*$C21 -> 0 | G21: ='Lönekostnad FINANSIÄR'!F22*$C21 -> 0 | H21: ='Lönekostnad FINANSIÄR'!G22*$C21 -> 0 | I21: 0 | L21: 0 | N21: 0 | O21: 0 | P21: 0 | Q21: 0 | R21: 0 | S21: 0
B22: ='Lönekostnad FINANSIÄR'!A23 -> 0 | C22: =Resursallokering!C22 -> 1700 | D22: ='Lönekostnad FINANSIÄR'!C23*$C22 -> 0 | E22: ='Lönekostnad FINANSIÄR'!D23*$C22 -> 0 | F22: ='Lönekostnad FINANSIÄR'!E23*$C22 -> 0 | G22: ='Lönekostnad FINANSIÄR'!F23*$C22 -> 0 | H22: ='Lönekostnad FINANSIÄR'!G23*$C22 -> 0 | I22: 0 | L22: 0 | N22: 0 | O22: 0 | P22: 0 | Q22: 0 | R22: 0 | S22: 0
B23: ='Lönekostnad FINANSIÄR'!A24 -> 0 | C23: =Resursallokering!C23 -> 1700 | D23: ='Lönekostnad FINANSIÄR'!C24*$C23 -> 0 | E23: ='Lönekostnad FINANSIÄR'!D24*$C23 -> 0 | F23: ='Lönekostnad FINANSIÄR'!E24*$C23 -> 0 | G23: ='Lönekostnad FINANSIÄR'!F24*$C23 -> 0 | H23: ='Lönekostnad FINANSIÄR'!G24*$C23 -> 0 | I23: 0 | L23: 0 | N23: 0 | O23: 0 | P23: 0 | Q23: 0 | R23: 0 | S23: 0
B24: ='Lönekostnad FINANSIÄR'!A25 -> 0 | C24: =Resursallokering!C24 -> 1700 | D24: ='Lönekostnad FINANSIÄR'!C25*$C24 -> 0 | E24: ='Lönekostnad FINANSIÄR'!D25*$C24 -> 0 | F24: ='Lönekostnad FINANSIÄR'!E25*$C24 -> 0 | G24: ='Lönekostnad FINANSIÄR'!F25*$C24 -> 0 | H24: ='Lönekostnad FINANSIÄR'!G25*$C24 -> 0 | I24: 0 | L24: 0 | N24: 0 | O24: 0 | P24: 0 | Q24: 0 | R24: 0 | S24: 0
B25: ='Lönekostnad FINANSIÄR'!A26 -> 0 | C25: =Resursallokering!C25 -> 1700 | D25: ='Lönekostnad FINANSIÄR'!C26*$C25 -> 0 | E25: ='Lönekostnad FINANSIÄR'!D26*$C25 -> 0 | F25: ='Lönekostnad FINANSIÄR'!E26*$C25 -> 0 | G25: ='Lönekostnad FINANSIÄR'!F26*$C25 -> 0 | H25: ='Lönekostnad FINANSIÄR'!G26*$C25 -> 0 | I25: 0 | L25: 0 | N25: 0 | O25: 0 | P25: 0 | Q25: 0 | R25: 0 | S25: 0
B26: ='Lönekostnad FINANSIÄR'!A27 -> 0 | C26: =Resursallokering!C26 -> 1700 | D26: ='Lönekostnad FINANSIÄR'!C27*$C26 -> 0 | E26: ='Lönekostnad FINANSIÄR'!D27*$C26 -> 0 | F26: ='Lönekostnad FINANSIÄR'!E27*$C26 -> 0 | G26: ='Lönekostnad FINANSIÄR'!F27*$C26 -> 0 | H26: ='Lönekostnad FINANSIÄR'!G27*$C26 -> 0 | I26: 0 | L26: 0 | N26: 0 | O26: 0 | P26: 0 | Q26: 0 | R26: 0 | S26: 0
B27: ='Lönekostnad FINANSIÄR'!A28 -> 0 | C27: =Resursallokering!C27 -> 1700 | D27: ='Lönekostnad FINANSIÄR'!C28*$C27 -> 0 | E27: ='Lönekostnad FINANSIÄR'!D28*$C27 -> 0 | F27: ='Lönekostnad FINANSIÄR'!E28*$C27 -> 0 | G27: ='Lönekostnad FINANSIÄR'!F28*$C27 -> 0 | H27: ='Lönekostnad FINANSIÄR'!G28*$C27 -> 0 | I27: 0 | L27: 0 | N27: 0 | O27: 0 | P27: 0 | Q27: 0 | R27: 0 | S27: 0
B28: ='Lönekostnad FINANSIÄR'!A29 -> 0 | C28: =Resursallokering!C28 -> 1700 | D28: ='Lönekostnad FINANSIÄR'!C29*$C28 -> 0 | E28: ='Lönekostnad FINANSIÄR'!D29*$C28 -> 0 | F28: ='Lönekostnad FINANSIÄR'!E29*$C28 -> 0 | G28: ='Lönekostnad FINANSIÄR'!F29*$C28 -> 0 | H28: ='Lönekostnad FINANSIÄR'!G29*$C28 -> 0 | I28: 0 | L28: 0 | N28: 0 | O28: 0 | P28: 0 | Q28: 0 | R28: 0 | S28: 0
B29: ='Lönekostnad FINANSIÄR'!A30 -> 0 | C29: =Resursallokering!C29 -> 1700 | D29: ='Lönekostnad FINANSIÄR'!C30*$C29 -> 0 | E29: ='Lönekostnad FINANSIÄR'!D30*$C29 -> 0 | F29: ='Lönekostnad FINANSIÄR'!E30*$C29 -> 0 | G29: ='Lönekostnad FINANSIÄR'!F30*$C29 -> 0 | H29: ='Lönekostnad FINANSIÄR'!G30*$C29 -> 0 | I29: 0 | L29: 0 | N29: 0 | O29: 0 | P29: 0 | Q29: 0 | R29: 0 | S29: 0
B30: ='Lönekostnad FINANSIÄR'!A31 -> 0 | C30: =Resursallokering!C30 -> 1700 | D30: ='Lönekostnad FINANSIÄR'!C31*$C30 -> 0 | E30: ='Lönekostnad FINANSIÄR'!D31*$C30 -> 0 | F30: ='Lönekostnad FINANSIÄR'!E31*$C30 -> 0 | G30: ='Lönekostnad FINANSIÄR'!F31*$C30 -> 0 | H30: ='Lönekostnad FINANSIÄR'!G31*$C30 -> 0 | I30: 0 | L30: 0 | N30: 0 | O30: 0 | P30: 0 | Q30: 0 | R30: 0 | S30: 0
B31: ='Lönekostnad FINANSIÄR'!A32 -> 0 | C31: =Resursallokering!C31 -> 1700 | D31: ='Lönekostnad FINANSIÄR'!C32*$C31 -> 0 | E31: ='Lönekostnad FINANSIÄR'!D32*$C31 -> 0 | F31: ='Lönekostnad FINANSIÄR'!E32*$C31 -> 0 | G31: ='Lönekostnad FINANSIÄR'!F32*$C31 -> 0 | H31: ='Lönekostnad FINANSIÄR'!G32*$C31 -> 0 | I31: 0 | L31: 0 | N31: 0 | O31: 0 | P31: 0 | Q31: 0 | R31: 0 | S31: 0
B32: ='Lönekostnad FINANSIÄR'!A33 -> 0 | C32: =Resursallokering!C32 -> 1700 | D32: ='Lönekostnad FINANSIÄR'!C33*$C32 -> 0 | E32: ='Lönekostnad FINANSIÄR'!D33*$C32 -> 0 | F32: ='Lönekostnad FINANSIÄR'!E33*$C32 -> 0 | G32: ='Lönekostnad FINANSIÄR'!F33*$C32 -> 0 | H32: ='Lönekostnad FINANSIÄR'!G33*$C32 -> 0 | I32: 0 | L32: 0 | N32: 0 | O32: 0 | P32: 0 | Q32: 0 | R32: 0 | S32: 0
B33: ='Lönekostnad FINANSIÄR'!A34 -> 0 | C33: =Resursallokering!C33 -> 1700 | D33: ='Lönekostnad FINANSIÄR'!C34*$C33 -> 0 | E33: ='Lönekostnad FINANSIÄR'!D34*$C33 -> 0 | F33: ='Lönekostnad FINANSIÄR'!E34*$C33 -> 0 | G33: ='Lönekostnad FINANSIÄR'!F34*$C33 -> 0 | H33: ='Lönekostnad FINANSIÄR'!G34*$C33 -> 0 | I33: 0 | L33: 0 | N33: 0 | O33: 0 | P33: 0 | Q33: 0 | R33: 0 | S33: 0
B34: ='Lönekostnad FINANSIÄR'!A35 -> 0 | C34: =Resursallokering!C34 -> 1700 | D34: ='Lönekostnad FINANSIÄR'!C35*$C34 -> 0 | E34: ='Lönekostnad FINANSIÄR'!D35*$C34 -> 0 | F34: ='Lönekostnad FINANSIÄR'!E35*$C34 -> 0 | G34: ='Lönekostnad FINANSIÄR'!F35*$C34 -> 0 | H34: ='Lönekostnad FINANSIÄR'!G35*$C34 -> 0 | I34: 0 | L34: 0 | N34: 0 | O34: 0 | P34: 0 | Q34: 0 | R34: 0 | S34: 0
B35: ='Lönekostnad FINANSIÄR'!A36 -> 0 | C35: =Resursallokering!C35 -> 1700 | D35: ='Lönekostnad FINANSIÄR'!C36*$C35 -> 0 | E35: ='Lönekostnad FINANSIÄR'!D36*$C35 -> 0 | F35: ='Lönekostnad FINANSIÄR'!E36*$C35 -> 0 | G35: ='Lönekostnad FINANSIÄR'!F36*$C35 -> 0 | H35: ='Lönekostnad FINANSIÄR'!G36*$C35 -> 0 | I35: 0 | L35: 0 | N35: 0 | O35: 0 | P35: 0 | Q35: 0 | R35: 0 | S35: 0
B36: ='Lönekostnad FINANSIÄR'!A37 -> 0 | C36: =Resursallokering!C36 -> 1700 | D36: ='Lönekostnad FINANSIÄR'!C37*$C36 -> 0 | E36: ='Lönekostnad FINANSIÄR'!D37*$C36 -> 0 | F36: ='Lönekostnad FINANSIÄR'!E37*$C36 -> 0 | G36: ='Lönekostnad FINANSIÄR'!F37*$C36 -> 0 | H36: ='Lönekostnad FINANSIÄR'!G37*$C36 -> 0 | I36: 0 | L36: 0 | N36: 0 | O36: 0 | P36: 0 | Q36: 0 | R36: 0 | S36: 0
B37: ='Lönekostnad FINANSIÄR'!A38 -> 0 | C37: =Resursallokering!C37 -> 1700 | D37: ='Lönekostnad FINANSIÄR'!C38*$C37 -> 0 | E37: ='Lönekostnad FINANSIÄR'!D38*$C37 -> 0 | F37: ='Lönekostnad FINANSIÄR'!E38*$C37 -> 0 | G37: ='Lönekostnad FINANSIÄR'!F38*$C37 -> 0 | H37: ='Lönekostnad FINANSIÄR'!G38*$C37 -> 0 | I37: 0 | L37: 0 | N37: 0 | O37: 0 | P37: 0 | Q37: 0 | R37: 0 | S37: 0
B38: ='Lönekostnad FINANSIÄR'!A39 -> 0 | C38: =Resursallokering!C38 -> 1700 | D38: ='Lönekostnad FINANSIÄR'!C39*$C38 -> 0 | E38: ='Lönekostnad FINANSIÄR'!D39*$C38 -> 0 | F38: ='Lönekostnad FINANSIÄR'!E39*$C38 -> 0 | G38: ='Lönekostnad FINANSIÄR'!F39*$C38 -> 0 | H38: ='Lönekostnad FINANSIÄR'!G39*$C38 -> 0 | I38: 0 | L38: 0 | N38: 0 | O38: 0 | P38: 0 | Q38: 0 | R38: 0 | S38: 0
B39: ='Lönekostnad FINANSIÄR'!A40 -> 0 | C39: =Resursallokering!C39 -> 1700 | D39: ='Lönekostnad FINANSIÄR'!C40*$C39 -> 0 | E39: ='Lönekostnad FINANSIÄR'!D40*$C39 -> 0 | F39: ='Lönekostnad FINANSIÄR'!E40*$C39 -> 0 | G39: ='Lönekostnad FINANSIÄR'!F40*$C39 -> 0 | H39: ='Lönekostnad FINANSIÄR'!G40*$C39 -> 0 | I39: 0 | L39: 0 | N39: 0 | O39: 0 | P39: 0 | Q39: 0 | R39: 0 | S39: 0
B40: Totalt | C40: =SUM(D40:H40) -> 3969.7 | D40: =SUM(D5:D39) -> 990.3 | E40: 990.3 | F40: 990.3 | G40: 998.8 | H40: 0 | I40: 3969.7 | L40: Totalt | M40: =S40 -> 39.56505882 | N40: =SUM(N5:N39) -> 13.11035294 | O40: 0.354 | P40: 12.99035294 | Q40: 13.11035294 | R40: 0 | S40: 39.56505882

Sheet År 1 (hidden)
B1: ="Projekt: "&Grunduppgifter!$B$5 -> Projekt:
D3: Budget timmar (ev. reviderad) | J3: Godkännande | N3: Manmånader
D4: ='Lönekostnad FINANSIÄR'!C5 -> År 1 | E4: ='Lönekostnad FINANSIÄR'!D5 -> År 2 | F4: ='Lönekostnad FINANSIÄR'!E5 -> År 3 | G4: ='Lönekostnad FINANSIÄR'!F5 -> År 4 | H4: ='Lönekostnad FINANSIÄR'!G5 -> År 5 | I4: Totalt | J4: SC/SR | N4: =D4 -> År 1 | O4: =E4 -> År 2 | P4: =F4 -> År 3 | Q4: =G4 -> År 4 | R4: =H4 -> År 5 | S4: Totalt
B5: ='Lönekostnad FINANSIÄR'!A6 -> Handledning professor | C5: =Resursallokering!C5 -> 1700 | D5: ='Lönekostnad FINANSIÄR'!C6*$C5 -> 50.15 | E5: ='Lönekostnad FINANSIÄR'!D6*$C5 -> 50.15 | F5: ='Lönekostnad FINANSIÄR'!E6*$C5 -> 50.15 | G5: ='Lönekostnad FINANSIÄR'!F6*$C5 -> 50.15 | H5: ='Lönekostnad FINANSIÄR'!G6*$C5 -> 0 | I5: =SUM(D5:H5) -> 200.6 | L5: =B5 -> Handledning professor | N5: =IFERROR(D5/($C5/12),0) -> 0.354 | O5: =IFERROR(E5/($C5/12),0) -> 0.354 | P5: =IFERROR(F5/($C5/12),0) -> 0.354 | Q5: 0.354 | R5: 0 | S5: =SUM(N5:R5) -> 1.416
B6: ='Lönekostnad FINANSIÄR'!A7 -> Handledning lektor | C6: =Resursallokering!C6 -> 1700 | D6: ='Lönekostnad FINANSIÄR'!C7*$C6 -> 50.15 | E6: ='Lönekostnad FINANSIÄR'!D7*$C6 -> 50.15 | F6: ='Lönekostnad FINANSIÄR'!E7*$C6 -> 50.15 | G6: ='Lönekostnad FINANSIÄR'!F7*$C6 -> 50.15 | H6: ='Lönekostnad FINANSIÄR'!G7*$C6 -> 0 | I6: =SUM(D6:H6) -> 200.6 | L6: Handledning lektor | N6: 0.354 | O6: 0.354 | P6: 0.354 | Q6: 0.354 | R6: 0 | S6: =SUM(N6:R6) -> 1.416
B7: ='Lönekostnad FINANSIÄR'!A8 -> Doktorand (snittlön doktorandtrappa 2019) | C7: =Resursallokering!C7 -> 850 | D7: ='Lönekostnad FINANSIÄR'!C8*$C7 -> 850 | E7: ='Lönekostnad FINANSIÄR'!D8*$C7 -> 850 | F7: ='Lönekostnad FINANSIÄR'!E8*$C7 -> 850 | G7: ='Lönekostnad FINANSIÄR'!F8*$C7 -> 850 | H7: ='Lönekostnad FINANSIÄR'!G8*$C7 -> 0 | I7: 3400 | L7: Doktorand (snittlön doktorandtrappa 2019) | N7: 12 | O7: 12 | P7: =IFERROR(F7/($C7/12),0) -> 12 | Q7: =IFERROR(G7/($C7/12),0) -> 12 | R7: =IFERROR(H7/($C7/12),0) -> 0 | S7: 48
B8: ='Lönekostnad FINANSIÄR'!A9 -> Opponent | C8: =Resursallokering!C8 -> 850 | D8: ='Lönekostnad FINANSIÄR'!C9*$C8 -> 0 | E8: ='Lönekostnad FINANSIÄR'!D9*$C8 -> 0 | F8: ='Lönekostnad FINANSIÄR'!E9*$C8 -> 0 | G8: ='Lönekostnad FINANSIÄR'!F9*$C8 -> 8.5 | H8: ='Lönekostnad FINANSIÄR'!G9*$C8 -> 0 | I8: 8.5 | L8: Opponent | N8: =IFERROR(D8/($C8/12),0) -> 0 | O8: =IFERROR(E8/($C8/12),0) -> 0 | P8: 0 | Q8: 0.12 | R8: 0 | S8: 0.12
B9: ='Lönekostnad FINANSIÄR'!A10 -> Doktorandkurser 60 hp, | C9: =Resursallokering!C9 -> 1700 | D9: ='Lönekostnad FINANSIÄR'!C10*$C9 -> 40 | E9: ='Lönekostnad FINANSIÄR'!D10*$C9 -> 40 | F9: ='Lönekostnad FINANSIÄR'!E10*$C9 -> 40 | G9: ='Lönekostnad FINANSIÄR'!F10*$C9 -> 40 | H9: ='Lönekostnad FINANSIÄR'!G10*$C9 -> 0 | I9: 160 | L9: Doktorandkurser 60 hp, | N9: 0.2823529412 | O9: 0.2823529412 | P9: 0.2823529412 | Q9: 0.2823529412 | R9: 0 | S9: 1.129411765
B10: ='Lönekostnad FINANSIÄR'!A11 -> (totalt 8 kurser * 7,5 hp 20 timmar/kurs för doktoranden) | C10: =Resursallokering!C10 -> 1700 | D10: ='Lönekostnad FINANSIÄR'!C11*$C10 -> 0 | E10: ='Lönekostnad FINANSIÄR'!D11*$C10 -> 0 | F10: ='Lönekostnad FINANSIÄR'!E11*$C10 -> 0 | G10: ='Lönekostnad FINANSIÄR'!F11*$C10 -> 0 | H10: ='Lönekostnad FINANSIÄR'!G11*$C10 -> 0 | I10: 0 | L10: (totalt 8 kurser * 7,5 hp 20 timmar/kurs för doktoranden) | N10: 0 | O10: 0 | P10: 0 | Q10: 0 | R10: 0 | S10: 0
B11: ='Lönekostnad FINANSIÄR'!A12 -> 0 | C11: =Resursallokering!C11 -> 1700 | D11: ='Lönekostnad FINANSIÄR'!C12*$C11 -> 0 | E11: ='Lönekostnad FINANSIÄR'!D12*$C11 -> 0 | F11: ='Lönekostnad FINANSIÄR'!E12*$C11 -> 0 | G11: ='Lönekostnad FINANSIÄR'!F12*$C11 -> 0 | H11: ='Lönekostnad FINANSIÄR'!G12*$C11 -> 0 | I11: 0 | L11: 0 | N11: 0 | O11: 0 | P11: 0 | Q11: 0 | R11: 0 | S11: 0
B12: ='Lönekostnad FINANSIÄR'!A13 -> 0 | C12: =Resursallokering!C12 -> 1700 | D12: ='Lönekostnad FINANSIÄR'!C13*$C12 -> 0 | E12: ='Lönekostnad FINANSIÄR'!D13*$C12 -> 0 | F12: ='Lönekostnad FINANSIÄR'!E13*$C12 -> 0 | G12: ='Lönekostnad FINANSIÄR'!F13*$C12 -> 0 | H12: ='Lönekostnad FINANSIÄR'!G13*$C12 -> 0 | I12: 0 | L12: 0 | N12: 0 | O12: 0 | P12: 0 | Q12: 0 | R12: 0 | S12: 0
B13: ='Lönekostnad FINANSIÄR'!A14 -> 0 | C13: =Resursallokering!C13 -> 1700 | D13: ='Lönekostnad FINANSIÄR'!C14*$C13 -> 0 | E13: ='Lönekostnad FINANSIÄR'!D14*$C13 -> 0 | F13: ='Lönekostnad FINANSIÄR'!E14*$C13 -> 0 | G13: ='Lönekostnad FINANSIÄR'!F14*$C13 -> 0 | H13: ='Lönekostnad FINANSIÄR'!G14*$C13 -> 0 | I13: 0 | L13: 0 | N13: 0 | O13: 0 | P13: 0 | Q13: 0 | R13: 0 | S13: 0
B14: ='Lönekostnad FINANSIÄR'!A15 -> 0 | C14: =Resursallokering!C14 -> 1700 | D14: ='Lönekostnad FINANSIÄR'!C15*$C14 -> 0 | E14: ='Lönekostnad FINANSIÄR'!D15*$C14 -> 0 | F14: ='Lönekostnad FINANSIÄR'!E15*$C14 -> 0 | G14: ='Lönekostnad FINANSIÄR'!F15*$C14 -> 0 | H14: ='Lönekostnad FINANSIÄR'!G15*$C14 -> 0 | I14: 0 | L14: 0 | N14: 0 | O14: 0 | P14: 0 | Q14: 0 | R14: 0 | S14: 0
B15: ='Lönekostnad FINANSIÄR'!A16 -> 0 | C15: =Resursallokering!C15 -> 1700 | D15: ='Lönekostnad FINANSIÄR'!C16*$C15 -> 0 | E15: ='Lönekostnad FINANSIÄR'!D16*$C15 -> 0 | F15: ='Lönekostnad FINANSIÄR'!E16*$C15 -> 0 | G15: ='Lönekostnad FINANSIÄR'!F16*$C15 -> 0 | H15: ='Lönekostnad FINANSIÄR'!G16*$C15 -> 0 | I15: 0 | L15: =B15 -> 0 | N15: 0 | O15: 0 | P15: 0 | Q15: 0 | R15: 0 | S15: 0
B16: ='Lönekostnad FINANSIÄR'!A17 -> 0 | C16: =Resursallokering!C16 -> 1700 | D16: ='Lönekostnad FINANSIÄR'!C17*$C16 -> 0 | E16: ='Lönekostnad FINANSIÄR'!D17*$C16 -> 0 | F16: ='Lönekostnad FINANSIÄR'!E17*$C16 -> 0 | G16: ='Lönekostnad FINANSIÄR'!F17*$C16 -> 0 | H16: ='Lönekostnad FINANSIÄR'!G17*$C16 -> 0 | I16: 0 | L16: 0 | N16: 0 | O16: 0 | P16: 0 | Q16: 0 | R16: 0 | S16: 0
B17: ='Lönekostnad FINANSIÄR'!A18 -> 0 | C17: =Resursallokering!C17 -> 1700 | D17: ='Lönekostnad FINANSIÄR'!C18*$C17 -> 0 | E17: ='Lönekostnad FINANSIÄR'!D18*$C17 -> 0 | F17: ='Lönekostnad FINANSIÄR'!E18*$C17 -> 0 | G17: ='Lönekostnad FINANSIÄR'!F18*$C17 -> 0 | H17: ='Lönekostnad FINANSIÄR'!G18*$C17 -> 0 | I17: 0 | L17: 0 | N17: 0 | O17: 0 | P17: 0 | Q17: 0 | R17: 0 | S17: 0
B18: ='Lönekostnad FINANSIÄR'!A19 -> 0 | C18: =Resursallokering!C18 -> 1700 | D18: ='Lönekostnad FINANSIÄR'!C19*$C18 -> 0 | E18: ='Lönekostnad FINANSIÄR'!D19*$C18 -> 0 | F18: ='Lönekostnad FINANSIÄR'!E19*$C18 -> 0 | G18: ='Lönekostnad FINANSIÄR'!F19*$C18 -> 0 | H18: ='Lönekostnad FINANSIÄR'!G19*$C18 -> 0 | I18: 0 | L18: 0 | N18: 0 | O18: 0 | P18: 0 | Q18: 0 | R18: 0 | S18: 0
B19: ='Lönekostnad FINANSIÄR'!A20 -> 0 | C19: =Resursallokering!C19 -> 1700 | D19: ='Lönekostnad FINANSIÄR'!C20*$C19 -> 0 | E19: ='Lönekostnad FINANSIÄR'!D20*$C19 -> 0 | F19: ='Lönekostnad FINANSIÄR'!E20*$C19 -> 0 | G19: ='Lönekostnad FINANSIÄR'!F20*$C19 -> 0 | H19: ='Lönekostnad FINANSIÄR'!G20*$C19 -> 0 | I19: 0 | L19: 0 | N19: 0 | O19: 0 | P19: 0 | Q19: 0 | R19: 0 | S19: 0
B20: ='Lönekostnad FINANSIÄR'!A21 -> 0 | C20: =Resursallokering!C20 -> 1700 | D20: ='Lönekostnad FINANSIÄR'!C21*$C20 -> 0 | E20: ='Lönekostnad FINANSIÄR'!D21*$C20 -> 0 | F20: ='Lönekostnad FINANSIÄR'!E21*$C20 -> 0 | G20: ='Lönekostnad FINANSIÄR'!F21*$C20 -> 0 | H20: ='Lönekostnad FINANSIÄR'!G21*$C20 -> 0 | I20: 0 | L20: 0 | N20: 0 | O20: 0 | P20: 0 | Q20: 0 | R20: 0 | S20: 0
B21: ='Lönekostnad FINANSIÄR'!A22 -> 0 | C21: =Resursallokering!C21 -> 1700 | D21: ='Lönekostnad FINANSIÄR'!C22*$C21 -> 0 | E21: ='Lönekostnad FINANSIÄR'!D22*$C21 -> 0 | F21: ='Lönekostnad FINANSIÄR'!E22*$C21 -> 0 | G21: ='Lönekostnad FINANSIÄR'!F22*$C21 -> 0 | H21: ='Lönekostnad FINANSIÄR'!G22*$C21 -> 0 | I21: 0 | L21: 0 | N21: 0 | O21: 0 | P21: 0 | Q21: 0 | R21: 0 | S21: 0
B22: ='Lönekostnad FINANSIÄR'!A23 -> 0 | C22: =Resursallokering!C22 -> 1700 | D22: ='Lönekostnad FINANSIÄR'!C23*$C22 -> 0 | E22: ='Lönekostnad FINANSIÄR'!D23*$C22 -> 0 | F22: ='Lönekostnad FINANSIÄR'!E23*$C22 -> 0 | G22: ='Lönekostnad FINANSIÄR'!F23*$C22 -> 0 | H22: ='Lönekostnad FINANSIÄR'!G23*$C22 -> 0 | I22: 0 | L22: 0 | N22: 0 | O22: 0 | P22: 0 | Q22: 0 | R22: 0 | S22: 0
B23: ='Lönekostnad FINANSIÄR'!A24 -> 0 | C23: =Resursallokering!C23 -> 1700 | D23: ='Lönekostnad FINANSIÄR'!C24*$C23 -> 0 | E23: ='Lönekostnad FINANSIÄR'!D24*$C23 -> 0 | F23: ='Lönekostnad FINANSIÄR'!E24*$C23 -> 0 | G23: ='Lönekostnad FINANSIÄR'!F24*$C23 -> 0 | H23: ='Lönekostnad FINANSIÄR'!G24*$C23 -> 0 | I23: 0 | L23: 0 | N23: 0 | O23: 0 | P23: 0 | Q23: 0 | R23: 0 | S23: 0
B24: ='Lönekostnad FINANSIÄR'!A25 -> 0 | C24: =Resursallokering!C24 -> 1700 | D24: ='Lönekostnad FINANSIÄR'!C25*$C24 -> 0 | E24: ='Lönekostnad FINANSIÄR'!D25*$C24 -> 0 | F24: ='Lönekostnad FINANSIÄR'!E25*$C24 -> 0 | G24: ='Lönekostnad FINANSIÄR'!F25*$C24 -> 0 | H24: ='Lönekostnad FINANSIÄR'!G25*$C24 -> 0 | I24: 0 | L24: 0 | N24: 0 | O24: 0 | P24: 0 | Q24: 0 | R24: 0 | S24: 0
B25: ='Lönekostnad FINANSIÄR'!A26 -> 0 | C25: =Resursallokering!C25 -> 1700 | D25: ='Lönekostnad FINANSIÄR'!C26*$C25 -> 0 | E25: ='Lönekostnad FINANSIÄR'!D26*$C25 -> 0 | F25: ='Lönekostnad FINANSIÄR'!E26*$C25 -> 0 | G25: ='Lönekostnad FINANSIÄR'!F26*$C25 -> 0 | H25: ='Lönekostnad FINANSIÄR'!G26*$C25 -> 0 | I25: 0 | L25: 0 | N25: 0 | O25: 0 | P25: 0 | Q25: 0 | R25: 0 | S25: 0
B26: ='Lönekostnad FINANSIÄR'!A27 -> 0 | C26: =Resursallokering!C26 -> 1700 | D26: ='Lönekostnad FINANSIÄR'!C27*$C26 -> 0 | E26: ='Lönekostnad FINANSIÄR'!D27*$C26 -> 0 | F26: ='Lönekostnad FINANSIÄR'!E27*$C26 -> 0 | G26: ='Lönekostnad FINANSIÄR'!F27*$C26 -> 0 | H26: ='Lönekostnad FINANSIÄR'!G27*$C26 -> 0 | I26: 0 | L26: 0 | N26: 0 | O26: 0 | P26: 0 | Q26: 0 | R26: 0 | S26: 0
B27: ='Lönekostnad FINANSIÄR'!A28 -> 0 | C27: =Resursallokering!C27 -> 1700 | D27: ='Lönekostnad FINANSIÄR'!C28*$C27 -> 0 | E27: ='Lönekostnad FINANSIÄR'!D28*$C27 -> 0 | F27: ='Lönekostnad FINANSIÄR'!E28*$C27 -> 0 | G27: ='Lönekostnad FINANSIÄR'!F28*$C27 -> 0 | H27: ='Lönekostnad FINANSIÄR'!G28*$C27 -> 0 | I27: 0 | L27: 0 | N27: 0 | O27: 0 | P27: 0 | Q27: 0 | R27: 0 | S27: 0
B28: ='Lönekostnad FINANSIÄR'!A29 -> 0 | C28: =Resursallokering!C28 -> 1700 | D28: ='Lönekostnad FINANSIÄR'!C29*$C28 -> 0 | E28: ='Lönekostnad FINANSIÄR'!D29*$C28 -> 0 | F28: ='Lönekostnad FINANSIÄR'!E29*$C28 -> 0 | G28: ='Lönekostnad FINANSIÄR'!F29*$C28 -> 0 | H28: ='Lönekostnad FINANSIÄR'!G29*$C28 -> 0 | I28: 0 | L28: 0 | N28: 0 | O28: 0 | P28: 0 | Q28: 0 | R28: 0 | S28: 0
B29: ='Lönekostnad FINANSIÄR'!A30 -> 0 | C29: =Resursallokering!C29 -> 1700 | D29: ='Lönekostnad FINANSIÄR'!C30*$C29 -> 0 | E29: ='Lönekostnad FINANSIÄR'!D30*$C29 -> 0 | F29: ='Lönekostnad FINANSIÄR'!E30*$C29 -> 0 | G29: ='Lönekostnad FINANSIÄR'!F30*$C29 -> 0 | H29: ='Lönekostnad FINANSIÄR'!G30*$C29 -> 0 | I29: 0 | L29: 0 | N29: 0 | O29: 0 | P29: 0 | Q29: 0 | R29: 0 | S29: 0
B30: ='Lönekostnad FINANSIÄR'!A31 -> 0 | C30: =Resursallokering!C30 -> 1700 | D30: ='Lönekostnad FINANSIÄR'!C31*$C30 -> 0 | E30: ='Lönekostnad FINANSIÄR'!D31*$C30 -> 0 | F30: ='Lönekostnad FINANSIÄR'!E31*$C30 -> 0 | G30: ='Lönekostnad FINANSIÄR'!F31*$C30 -> 0 | H30: ='Lönekostnad FINANSIÄR'!G31*$C30 -> 0 | I30: 0 | L30: 0 | N30: 0 | O30: 0 | P30: 0 | Q30: 0 | R30: 0 | S30: 0
B31: ='Lönekostnad FINANSIÄR'!A32 -> 0 | C31: =Resursallokering!C31 -> 1700 | D31: ='Lönekostnad FINANSIÄR'!C32*$C31 -> 0 | E31: ='Lönekostnad FINANSIÄR'!D32*$C31 -> 0 | F31: ='Lönekostnad FINANSIÄR'!E32*$C31 -> 0 | G31: ='Lönekostnad FINANSIÄR'!F32*$C31 -> 0 | H31: ='Lönekostnad FINANSIÄR'!G32*$C31 -> 0 | I31: 0 | L31: 0 | N31: 0 | O31: 0 | P31: 0 | Q31: 0 | R31: 0 | S31: 0
B32: ='Lönekostnad FINANSIÄR'!A33 -> 0 | C32: =Resursallokering!C32 -> 1700 | D32: ='Lönekostnad FINANSIÄR'!C33*$C32 -> 0 | E32: ='Lönekostnad FINANSIÄR'!D33*$C32 -> 0 | F32: ='Lönekostnad FINANSIÄR'!E33*$C32 -> 0 | G32: ='Lönekostnad FINANSIÄR'!F33*$C32 -> 0 | H32: ='Lönekostnad FINANSIÄR'!G33*$C32 -> 0 | I32: 0 | L32: 0 | N32: 0 | O32: 0 | P32: 0 | Q32: 0 | R32: 0 | S32: 0
B33: ='Lönekostnad FINANSIÄR'!A34 -> 0 | C33: =Resursallokering!C33 -> 1700 | D33: ='Lönekostnad FINANSIÄR'!C34*$C33 -> 0 | E33: ='Lönekostnad FINANSIÄR'!D34*$C33 -> 0 | F33: ='Lönekostnad FINANSIÄR'!E34*$C33 -> 0 | G33: ='Lönekostnad FINANSIÄR'!F34*$C33 -> 0 | H33: ='Lönekostnad FINANSIÄR'!G34*$C33 -> 0 | I33: 0 | L33: 0 | N33: 0 | O33: 0 | P33: 0 | Q33: 0 | R33: 0 | S33: 0
B34: ='Lönekostnad FINANSIÄR'!A35 -> 0 | C34: =Resursallokering!C34 -> 1700 | D34: ='Lönekostnad FINANSIÄR'!C35*$C34 -> 0 | E34: ='Lönekostnad FINANSIÄR'!D35*$C34 -> 0 | F34: ='Lönekostnad FINANSIÄR'!E35*$C34 -> 0 | G34: ='Lönekostnad FINANSIÄR'!F35*$C34 -> 0 | H34: ='Lönekostnad FINANSIÄR'!G35*$C34 -> 0 | I34: 0 | L34: 0 | N34: 0 | O34: 0 | P34: 0 | Q34: 0 | R34: 0 | S34: 0
B35: ='Lönekostnad FINANSIÄR'!A36 -> 0 | C35: =Resursallokering!C35 -> 1700 | D35: ='Lönekostnad FINANSIÄR'!C36*$C35 -> 0 | E35: ='Lönekostnad FINANSIÄR'!D36*$C35 -> 0 | F35: ='Lönekostnad FINANSIÄR'!E36*$C35 -> 0 | G35: ='Lönekostnad FINANSIÄR'!F36*$C35 -> 0 | H35: ='Lönekostnad FINANSIÄR'!G36*$C35 -> 0 | I35: 0 | L35: 0 | N35: 0 | O35: 0 | P35: 0 | Q35: 0 | R35: 0 | S35: 0
B36: ='Lönekostnad FINANSIÄR'!A37 -> 0 | C36: =Resursallokering!C36 -> 1700 | D36: ='Lönekostnad FINANSIÄR'!C37*$C36 -> 0 | E36: ='Lönekostnad FINANSIÄR'!D37*$C36 -> 0 | F36: ='Lönekostnad FINANSIÄR'!E37*$C36 -> 0 | G36: ='Lönekostnad FINANSIÄR'!F37*$C36 -> 0 | H36: ='Lönekostnad FINANSIÄR'!G37*$C36 -> 0 | I36: 0 | L36: 0 | N36: 0 | O36: 0 | P36: 0 | Q36: 0 | R36: 0 | S36: 0
B37: ='Lönekostnad FINANSIÄR'!A38 -> 0 | C37: =Resursallokering!C37 -> 1700 | D37: ='Lönekostnad FINANSIÄR'!C38*$C37 -> 0 | E37: ='Lönekostnad FINANSIÄR'!D38*$C37 -> 0 | F37: ='Lönekostnad FINANSIÄR'!E38*$C37 -> 0 | G37: ='Lönekostnad FINANSIÄR'!F38*$C37 -> 0 | H37: ='Lönekostnad FINANSIÄR'!G38*$C37 -> 0 | I37: 0 | L37: 0 | N37: 0 | O37: 0 | P37: 0 | Q37: 0 | R37: 0 | S37: 0
B38: ='Lönekostnad FINANSIÄR'!A39 -> 0 | C38: =Resursallokering!C38 -> 1700 | D38: ='Lönekostnad FINANSIÄR'!C39*$C38 -> 0 | E38: ='Lönekostnad FINANSIÄR'!D39*$C38 -> 0 | F38: ='Lönekostnad FINANSIÄR'!E39*$C38 -> 0 | G38: ='Lönekostnad FINANSIÄR'!F39*$C38 -> 0 | H38: ='Lönekostnad FINANSIÄR'!G39*$C38 -> 0 | I38: 0 | L38: 0 | N38: 0 | O38: 0 | P38: 0 | Q38: 0 | R38: 0 | S38: 0
B39: ='Lönekostnad FINANSIÄR'!A40 -> 0 | C39: =Resursallokering!C39 -> 1700 | D39: ='Lönekostnad FINANSIÄR'!C40*$C39 -> 0 | E39: ='Lönekostnad FINANSIÄR'!D40*$C39 -> 0 | F39: ='Lönekostnad FINANSIÄR'!E40*$C39 -> 0 | G39: ='Lönekostnad FINANSIÄR'!F40*$C39 -> 0 | H39: ='Lönekostnad FINANSIÄR'!G40*$C39 -> 0 | I39: 0 | L39: 0 | N39: 0 | O39: 0 | P39: 0 | Q39: 0 | R39: 0 | S39: 0
B40: Totalt | C40: =SUM(D40:H40) -> 3969.7 | D40: =SUM(D5:D39) -> 990.3 | E40: 990.3 | F40: 990.3 | G40: 998.8 | H40: 0 | I40: 3969.7 | L40: Totalt | M40: =SUM(N40:R40) -> 52.08141176 | N40: =SUM(N5:N39) -> 12.99035294 | O40: 12.99035294 | P40: 12.99035294 | Q40: 13.11035294 | R40: 0 | S40: 52.08141176
D42: Utfall / Prognos timmar | N42: Omfattning %
D43: =D4 -> År 1 | E43: =E4 -> År 2 | F43: =F4 -> År 3 | G43: =G4 -> År 4 | H43: =H4 -> År 5 | I43: Kr/tim | N43: =D43 -> År 1 | O43: =E43 -> År 2 | P43: =F43 -> År 3 | Q43: =G43 -> År 4 | R43: =H43 -> År 5 | S43: Totalt
B44: =B5 -> Handledning professor | D44: 100 | I44: =IFERROR('Lönekostnad FINANSIÄR'!B6*LönePåläggUppräkningÅr1/C5,0) -> 0 | L44: =B5 -> Handledning professor | N44: =IFERROR(D44/$C5,0) -> 0.05882352941 | O44: =IFERROR(E44/$C5,0) -> 0 | P44: =IFERROR(F44/$C5,0) -> 0 | Q44: =IFERROR(G44/$C5,0) -> 0 | R44: =IFERROR(H44/$C5,0) -> 0 | S44: =SUM(N44:R44) -> 0.05882352941
B45: Handledning lektor | I45: =IFERROR('Lönekostnad FINANSIÄR'!B7*LönePåläggUppräkningÅr1/C6,0) -> 0 | L45: Handledning lektor | N45: 0 | O45: 0 | P45: 0 | Q45: 0 | R45: 0 | S45: =SUM(N45:R45) -> 0
B46: Doktorand (snittlön doktorandtrappa 2019) | I46: =IFERROR('Lönekostnad FINANSIÄR'!B8*LönePåläggUppräkningÅr1/C7,0) -> 0 | L46: Doktorand (snittlön doktorandtrappa 2019) | N46: 0 | O46: 0 | P46: 0 | Q46: 0 | R46: 0 | S46: 0
B47: Opponent | I47: =IFERROR('Lönekostnad FINANSIÄR'!B9*LönePåläggUppräkningÅr1/C8,0) -> 0 | L47: Opponent | N47: 0 | O47: 0 | P47: 0 | Q47: 0 | R47: 0 | S47: 0
B48: Doktorandkurser 60 hp, | I48: =IFERROR('Lönekostnad FINANSIÄR'!B10*LönePåläggUppräkningÅr1/C9,0) -> 0 | L48: Doktorandkurser 60 hp, | N48: 0 | O48: 0 | P48: 0 | Q48: 0 | R48: 0 | S48: 0
B49: (totalt 8 kurser * 7,5 hp 20 timmar/kurs för doktoranden) | I49: =IFERROR('Lönekostnad FINANSIÄR'!B11*LönePåläggUppräkningÅr1/C10,0) -> 0 | L49: (totalt 8 kurser * 7,5 hp 20 timmar/kurs för doktoranden) | N49: 0 | O49: 0 | P49: 0 | Q49: 0 | R49: 0 | S49: 0
B50: 0 | I50: =IFERROR('Lönekostnad FINANSIÄR'!B12*LönePåläggUppräkningÅr1/C11,0) -> 0 | L50: 0 | N50: 0 | O50: 0 | P50: 0 | Q50: 0 | R50: 0 | S50: 0
B51: 0 | I51: =IFERROR('Lönekostnad FINANSIÄR'!B13*LönePåläggUppräkningÅr1/C12,0) -> 0 | L51: 0 | N51: 0 | O51: 0 | P51: 0 | Q51: 0 | R51: 0 | S51: 0
B52: 0 | I52: =IFERROR('Lönekostnad FINANSIÄR'!B14*LönePåläggUppräkningÅr1/C13,0) -> 0 | L52: 0 | N52: 0 | O52: 0 | P52: 0 | Q52: 0 | R52: 0 | S52: 0
B53: 0 | I53: =IFERROR('Lönekostnad FINANSIÄR'!B15*LönePåläggUppräkningÅr1/C14,0) -> 0 | L53: 0 | N53: 0 | O53: 0 | P53: 0 | Q53: 0 | R53: 0 | S53: 0
B54: 0 | I54: =IFERROR('Lönekostnad FINANSIÄR'!B16*LönePåläggUppräkningÅr1/C15,0) -> 0 | L54: 0 | N54: 0 | O54: 0 | P54: 0 | Q54: 0 | R54: 0 | S54: 0
B55: 0 | I55: =IFERROR('Lönekostnad FINANSIÄR'!B17*LönePåläggUppräkningÅr1/C16,0) -> 0 | L55: 0 | N55: 0 | O55: 0 | P55: 0 | Q55: 0 | R55: 0 | S55: 0
B56: 0 | I56: =IFERROR('Lönekostnad FINANSIÄR'!B18*LönePåläggUppräkningÅr1/C17,0) -> 0 | L56: 0 | N56: 0 | O56: 0 | P56: 0 | Q56: 0 | R56: 0 | S56: 0
B57: 0 | I57: =IFERROR('Lönekostnad FINANSIÄR'!B19*LönePåläggUppräkningÅr1/C18,0) -> 0 | L57: 0 | N57: 0 | O57: 0 | P57: 0 | Q57: 0 | R57: 0 | S57: 0
B58: 0 | I58: =IFERROR('Lönekostnad FINANSIÄR'!B20*LönePåläggUppräkningÅr1/C19,0) -> 0 | L58: 0 | N58: 0 | O58: 0 | P58: 0 | Q58: 0 | R58: 0 | S58: 0
B59: 0 | I59: =IFERROR('Lönekostnad FINANSIÄR'!B21*LönePåläggUppräkningÅr1/C20,0) -> 0 | L59: 0 | N59: 0 | O59: 0 | P59: 0 | Q59: 0 | R59: 0 | S59: 0
B60: =B21 -> 0 | I60: =IFERROR('Lönekostnad FINANSIÄR'!B22*LönePåläggUppräkningÅr1/C21,0) -> 0 | L60: =B21 -> 0 | N60: 0 | O60: 0 | P60: 0 | Q60: 0 | R60: 0 | S60: 0
B61: 0 | I61: =IFERROR('Lönekostnad FINANSIÄR'!B23*LönePåläggUppräkningÅr1/C22,0) -> 0 | L61: 0 | N61: 0 | O61: 0 | P61: 0 | Q61: 0 | R61: 0 | S61: 0
B62: 0 | I62: =IFERROR('Lönekostnad FINANSIÄR'!B24*LönePåläggUppräkningÅr1/C23,0) -> 0 | L62: 0 | N62: 0 | O62: 0 | P62: 0 | Q62: 0 | R62: 0 | S62: 0
B63: 0 | I63: =IFERROR('Lönekostnad FINANSIÄR'!B25*LönePåläggUppräkningÅr1/C24,0) -> 0 | L63: 0 | N63: 0 | O63: 0 | P63: 0 | Q63: 0 | R63: 0 | S63: 0
B64: 0 | I64: =IFERROR('Lönekostnad FINANSIÄR'!B26*LönePåläggUppräkningÅr1/C25,0) -> 0 | L64: 0 | N64: 0 | O64: 0 | P64: 0 | Q64: 0 | R64: 0 | S64: 0
B65: 0 | I65: =IFERROR('Lönekostnad FINANSIÄR'!B27*LönePåläggUppräkningÅr1/C26,0) -> 0 | L65: 0 | N65: 0 | O65: 0 | P65: 0 | Q65: 0 | R65: 0 | S65: 0
B66: 0 | I66: =IFERROR('Lönekostnad FINANSIÄR'!B28*LönePåläggUppräkningÅr1/C27,0) -> 0 | L66: 0 | N66: 0 | O66: 0 | P66: 0 | Q66: 0 | R66: 0 | S66: 0
B67: 0 | I67: =IFERROR('Lönekostnad FINANSIÄR'!B29*LönePåläggUppräkningÅr1/C28,0) -> 0 | L67: 0 | N67: 0 | O67: 0 | P67: 0 | Q67: 0 | R67: 0 | S67: 0
B68: 0 | I68: =IFERROR('Lönekostnad FINANSIÄR'!B30*LönePåläggUppräkningÅr1/C29,0) -> 0 | L68: 0 | N68: 0 | O68: 0 | P68: 0 | Q68: 0 | R68: 0 | S68: 0
B69: 0 | I69: =IFERROR('Lönekostnad FINANSIÄR'!B31*LönePåläggUppräkningÅr1/C30,0) -> 0 | L69: 0 | N69: 0 | O69: 0 | P69: 0 | Q69: 0 | R69: 0 | S69: 0
B70: 0 | I70: =IFERROR('Lönekostnad FINANSIÄR'!B32*LönePåläggUppräkningÅr1/C31,0) -> 0 | L70: 0 | N70: 0 | O70: 0 | P70: 0 | Q70: 0 | R70: 0 | S70: 0
B71: 0 | I71: =IFERROR('Lönekostnad FINANSIÄR'!B33*LönePåläggUppräkningÅr1/C32,0) -> 0 | L71: 0 | N71: 0 | O71: 0 | P71: 0 | Q71: 0 | R71: 0 | S71: 0
B72: 0 | I72: =IFERROR('Lönekostnad FINANSIÄR'!B34*LönePåläggUppräkningÅr1/C33,0) -> 0 | L72: 0 | N72: 0 | O72: 0 | P72: 0 | Q72: 0 | R72: 0 | S72: 0
B73: 0 | I73: =IFERROR('Lönekostnad FINANSIÄR'!B35*LönePåläggUppräkningÅr1/C34,0) -> 0 | L73: 0 | N73: 0 | O73: 0 | P73: 0 | Q73: 0 | R73: 0 | S73: 0
B74: 0 | I74: =IFERROR('Lönekostnad FINANSIÄR'!B36*LönePåläggUppräkningÅr1/C35,0) -> 0 | L74: 0 | N74: 0 | O74: 0 | P74: 0 | Q74: 0 | R74: 0 | S74: 0
B75: 0 | I75: =IFERROR('Lönekostnad FINANSIÄR'!B37*LönePåläggUppräkningÅr1/C36,0) -> 0 | L75: 0 | N75: 0 | O75: 0 | P75: 0 | Q75: 0 | R75: 0 | S75: 0
B76: 0 | I76: =IFERROR('Lönekostnad FINANSIÄR'!B38*LönePåläggUppräkningÅr1/C37,0) -> 0 | L76: 0 | N76: 0 | O76: 0 | P76: 0 | Q76: 0 | R76: 0 | S76: 0
B77: 0 | I77: =IFERROR('Lönekostnad FINANSIÄR'!B39*LönePåläggUppräkningÅr1/C38,0) -> 0 | L77: 0 | N77: 0 | O77: 0 | P77: 0 | Q77: 0 | R77: 0 | S77: 0
B78: 0 | I78: =IFERROR('Lönekostnad FINANSIÄR'!B40*LönePåläggUppräkningÅr1/C39,0) -> 0 | L78: 0 | N78: 0 | O78: 0 | P78: 0 | Q78: 0 | R78: 0 | S78: 0
B79: =B40 -> Totalt | C79: =SUM(D79:H79) -> 100 | D79: =SUM(D44:D78) -> 100 | E79: =SUM(E44:E78) -> 0 | F79: =SUM(F44:F78) -> 0 | G79: =SUM(G44:G78) -> 0 | H79: =SUM(H44:H78) -> 0 | L79: Totalt | M79: =SUM(N79:R79) -> 0.05882352941 | N79: =SUM(N44:N78) -> 0.05882352941 | O79: 0 | P79: 0 | Q79: 0 | R79: 0 | S79: 0.05882352941

Sheet År 2 (hidden)
B1: ="Projekt: "&Grunduppgifter!$B$5 -> Projekt:
D3: ='År 1'!D3:I3 -> Budget timmar (ev. reviderad) | J3: ='År 1'!J3 -> Godkännande | N3: ='År 1'!N3:S3 -> Manmånader
D4: ='Lönekostnad FINANSIÄR'!C5 -> År 1 | E4: ='Lönekostnad FINANSIÄR'!D5 -> År 2 | F4: ='Lönekostnad FINANSIÄR'!E5 -> År 3 | G4: ='Lönekostnad FINANSIÄR'!F5 -> År 4 | H4: ='Lönekostnad FINANSIÄR'!G5 -> År 5 | I4: ='År 1'!I4 -> Totalt | J4: ='År 1'!J4 -> SC/SR | N4: =D4 -> År 1 | O4: =E4 -> År 2 | P4: =F4 -> År 3 | Q4: =G4 -> År 4 | R4: =H4 -> År 5 | S4: ='År 1'!S4 -> Totalt
B5: ='Lönekostnad FINANSIÄR'!A6 -> Handledning professor | C5: ='År 1'!C5 -> 1700 | D5: ='Lönekostnad FINANSIÄR'!C6*$C5 -> 50.15 | E5: ='Lönekostnad FINANSIÄR'!D6*$C5 -> 50.15 | F5: ='Lönekostnad FINANSIÄR'!E6*$C5 -> 50.15 | G5: ='Lönekostnad FINANSIÄR'!F6*$C5 -> 50.15 | H5: ='Lönekostnad FINANSIÄR'!G6*$C5 -> 0 | I5: =SUM(D5:H5) -> 200.6 | L5: =B5 -> Handledning professor | N5: =IFERROR(D5/($C5/12),0) -> 0.354 | O5: =IFERROR(E5/($C5/12),0) -> 0.354 | P5: =IFERROR(F5/($C5/12),0) -> 0.354 | Q5: 0.354 | R5: 0 | S5: =SUM(N5:R5) -> 1.416
B6: ='Lönekostnad FINANSIÄR'!A7 -> Handledning lektor | C6: ='År 1'!C6 -> 1700 | D6: ='Lönekostnad FINANSIÄR'!C7*$C6 -> 50.15 | E6: ='Lönekostnad FINANSIÄR'!D7*$C6 -> 50.15 | F6: ='Lönekostnad FINANSIÄR'!E7*$C6 -> 50.15 | G6: ='Lönekostnad FINANSIÄR'!F7*$C6 -> 50.15 | H6: ='Lönekostnad FINANSIÄR'!G7*$C6 -> 0 | I6: 200.6 | L6: =B6 -> Handledning lektor | N6: =IFERROR(D6/($C6/12),0) -> 0.354 | O6: =IFERROR(E6/($C6/12),0) -> 0.354 | P6: 0.354 | Q6: 0.354 | R6: 0 | S6: =SUM(N6:R6) -> 1.416
B7: ='Lönekostnad FINANSIÄR'!A8 -> Doktorand (snittlön doktorandtrappa 2019) | C7: ='År 1'!C7 -> 850 | D7: ='Lönekostnad FINANSIÄR'!C8*$C7 -> 850 | E7: ='Lönekostnad FINANSIÄR'!D8*$C7 -> 850 | F7: ='Lönekostnad FINANSIÄR'!E8*$C7 -> 850 | G7: ='Lönekostnad FINANSIÄR'!F8*$C7 -> 850 | H7: ='Lönekostnad FINANSIÄR'!G8*$C7 -> 0 | I7: 3400 | L7: Doktorand (snittlön doktorandtrappa 2019) | N7: 12 | O7: 12 | P7: 12 | Q7: 12 | R7: 0 | S7: 48
B8: ='Lönekostnad FINANSIÄR'!A9 -> Opponent | C8: ='År 1'!C8 -> 850 | D8: ='Lönekostnad FINANSIÄR'!C9*$C8 -> 0 | E8: ='Lönekostnad FINANSIÄR'!D9*$C8 -> 0 | F8: ='Lönekostnad FINANSIÄR'!E9*$C8 -> 0 | G8: ='Lönekostnad FINANSIÄR'!F9*$C8 -> 8.5 | H8: ='Lönekostnad FINANSIÄR'!G9*$C8 -> 0 | I8: 8.5 | L8: Opponent | N8: 0 | O8: 0 | P8: 0 | Q8: 0.12 | R8: 0 | S8: 0.12
B9: ='Lönekostnad FINANSIÄR'!A10 -> Doktorandkurser 60 hp, | C9: ='År 1'!C9 -> 1700 | D9: ='Lönekostnad FINANSIÄR'!C10*$C9 -> 40 | E9: ='Lönekostnad FINANSIÄR'!D10*$C9 -> 40 | F9: ='Lönekostnad FINANSIÄR'!E10*$C9 -> 40 | G9: ='Lönekostnad FINANSIÄR'!F10*$C9 -> 40 | H9: ='Lönekostnad FINANSIÄR'!G10*$C9 -> 0 | I9: 160 | L9: Doktorandkurser 60 hp, | N9: 0.2823529412 | O9: 0.2823529412 | P9: 0.2823529412 | Q9: 0.2823529412 | R9: 0 | S9: 1.129411765
B10: ='Lönekostnad FINANSIÄR'!A11 -> (totalt 8 kurser * 7,5 hp 20 timmar/kurs för doktoranden) | C10: ='År 1'!C10 -> 1700 | D10: ='Lönekostnad FINANSIÄR'!C11*$C10 -> 0 | E10: ='Lönekostnad FINANSIÄR'!D11*$C10 -> 0 | F10: ='Lönekostnad FINANSIÄR'!E11*$C10 -> 0 | G10: ='Lönekostnad FINANSIÄR'!F11*$C10 -> 0 | H10: ='Lönekostnad FINANSIÄR'!G11*$C10 -> 0 | I10: 0 | L10: (totalt 8 kurser * 7,5 hp 20 timmar/kurs för doktoranden) | N10: 0 | O10: 0 | P10: 0 | Q10: 0 | R10: 0 | S10: 0
B11: ='Lönekostnad FINANSIÄR'!A12 -> 0 | C11: ='År 1'!C11 -> 1700 | D11: ='Lönekostnad FINANSIÄR'!C12*$C11 -> 0 | E11: ='Lönekostnad FINANSIÄR'!D12*$C11 -> 0 | F11: ='Lönekostnad FINANSIÄR'!E12*$C11 -> 0 | G11: ='Lönekostnad FINANSIÄR'!F12*$C11 -> 0 | H11: ='Lönekostnad FINANSIÄR'!G12*$C11 -> 0 | I11: 0 | L11: 0 | N11: 0 | O11: =IFERROR(E11/($C11/12),0) -> 0 | P11: 0 | Q11: 0 | R11: 0 | S11: 0
B12: ='Lönekostnad FINANSIÄR'!A13 -> 0 | C12: ='År 1'!C12 -> 1700 | D12: ='Lönekostnad FINANSIÄR'!C13*$C12 -> 0 | E12: ='Lönekostnad FINANSIÄR'!D13*$C12 -> 0 | F12: ='Lönekostnad FINANSIÄR'!E13*$C12 -> 0 | G12: ='Lönekostnad FINANSIÄR'!F13*$C12 -> 0 | H12: ='Lönekostnad FINANSIÄR'!G13*$C12 -> 0 | I12: 0 | L12: 0 | N12: 0 | O12: 0 | P12: 0 | Q12: 0 | R12: 0 | S12: 0
B13: ='Lönekostnad FINANSIÄR'!A14 -> 0 | C13: ='År 1'!C13 -> 1700 | D13: ='Lönekostnad FINANSIÄR'!C14*$C13 -> 0 | E13: ='Lönekostnad FINANSIÄR'!D14*$C13 -> 0 | F13: ='Lönekostnad FINANSIÄR'!E14*$C13 -> 0 | G13: ='Lönekostnad FINANSIÄR'!F14*$C13 -> 0 | H13: ='Lönekostnad FINANSIÄR'!G14*$C13 -> 0 | I13: 0 | L13: 0 | N13: 0 | O13: 0 | P13: 0 | Q13: 0 | R13: 0 | S13: 0
B14: ='Lönekostnad FINANSIÄR'!A15 -> 0 | C14: ='År 1'!C14 -> 1700 | D14: ='Lönekostnad FINANSIÄR'!C15*$C14 -> 0 | E14: ='Lönekostnad FINANSIÄR'!D15*$C14 -> 0 | F14: ='Lönekostnad FINANSIÄR'!E15*$C14 -> 0 | G14: ='Lönekostnad FINANSIÄR'!F15*$C14 -> 0 | H14: ='Lönekostnad FINANSIÄR'!G15*$C14 -> 0 | I14: 0 | L14: 0 | N14: 0 | O14: 0 | P14: 0 | Q14: 0 | R14: 0 | S14: 0
B15: ='Lönekostnad FINANSIÄR'!A16 -> 0 | C15: ='År 1'!C15 -> 1700 | D15: ='Lönekostnad FINANSIÄR'!C16*$C15 -> 0 | E15: ='Lönekostnad FINANSIÄR'!D16*$C15 -> 0 | F15: ='Lönekostnad FINANSIÄR'!E16*$C15 -> 0 | G15: ='Lönekostnad FINANSIÄR'!F16*$C15 -> 0 | H15: ='Lönekostnad FINANSIÄR'!G16*$C15 -> 0 | I15: 0 | L15: =B15 -> 0 | N15: =IFERROR(D15/($C15/12),0) -> 0 | O15: =IFERROR(E15/($C15/12),0) -> 0 | P15: =IFERROR(F15/($C15/12),0) -> 0 | Q15: =IFERROR(G15/($C15/12),0) -> 0 | R15: =IFERROR(H15/($C15/12),0) -> 0 | S15: 0
B16: ='Lönekostnad FINANSIÄR'!A17 -> 0 | C16: ='År 1'!C16 -> 1700 | D16: ='Lönekostnad FINANSIÄR'!C17*$C16 -> 0 | E16: ='Lönekostnad FINANSIÄR'!D17*$C16 -> 0 | F16: ='Lönekostnad FINANSIÄR'!E17*$C16 -> 0 | G16: ='Lönekostnad FINANSIÄR'!F17*$C16 -> 0 | H16: ='Lönekostnad FINANSIÄR'!G17*$C16 -> 0 | I16: =SUM(D16:H16) -> 0 | L16: 0 | N16: 0 | O16: 0 | P16: 0 | Q16: 0 | R16: 0 | S16: 0
B17: ='Lönekostnad FINANSIÄR'!A18 -> 0 | C17: ='År 1'!C17 -> 1700 | D17: ='Lönekostnad FINANSIÄR'!C18*$C17 -> 0 | E17: ='Lönekostnad FINANSIÄR'!D18*$C17 -> 0 | F17: ='Lönekostnad FINANSIÄR'!E18*$C17 -> 0 | G17: ='Lönekostnad FINANSIÄR'!F18*$C17 -> 0 | H17: ='Lönekostnad FINANSIÄR'!G18*$C17 -> 0 | I17: =SUM(D17:H17) -> 0 | L17: 0 | N17: 0 | O17: 0 | P17: 0 | Q17: 0 | R17: 0 | S17: 0
B18: ='Lönekostnad FINANSIÄR'!A19 -> 0 | C18: ='År 1'!C18 -> 1700 | D18: ='Lönekostnad FINANSIÄR'!C19*$C18 -> 0 | E18: ='Lönekostnad FINANSIÄR'!D19*$C18 -> 0 | F18: ='Lönekostnad FINANSIÄR'!E19*$C18 -> 0 | G18: ='Lönekostnad FINANSIÄR'!F19*$C18 -> 0 | H18: ='Lönekostnad FINANSIÄR'!G19*$C18 -> 0 | I18: =SUM(D18:H18) -> 0 | L18: 0 | N18: 0 | O18: 0 | P18: 0 | Q18: 0 | R18: 0 | S18: 0
B19: ='Lönekostnad FINANSIÄR'!A20 -> 0 | C19: ='År 1'!C19 -> 1700 | D19: ='Lönekostnad FINANSIÄR'!C20*$C19 -> 0 | E19: ='Lönekostnad FINANSIÄR'!D20*$C19 -> 0 | F19: ='Lönekostnad FINANSIÄR'!E20*$C19 -> 0 | G19: ='Lönekostnad FINANSIÄR'!F20*$C19 -> 0 | H19: ='Lönekostnad FINANSIÄR'!G20*$C19 -> 0 | I19: =SUM(D19:H19) -> 0 | L19: 0 | N19: 0 | O19: 0 | P19: 0 | Q19: 0 | R19: 0 | S19: 0
B20: ='Lönekostnad FINANSIÄR'!A21 -> 0 | C20: ='År 1'!C20 -> 1700 | D20: ='Lönekostnad FINANSIÄR'!C21*$C20 -> 0 | E20: ='Lönekostnad FINANSIÄR'!D21*$C20 -> 0 | F20: ='Lönekostnad FINANSIÄR'!E21*$C20 -> 0 | G20: ='Lönekostnad FINANSIÄR'!F21*$C20 -> 0 | H20: ='Lönekostnad FINANSIÄR'!G21*$C20 -> 0 | I20: =SUM(D20:H20) -> 0 | L20: 0 | N20: 0 | O20: 0 | P20: 0 | Q20: 0 | R20: 0 | S20: 0
B21: ='Lönekostnad FINANSIÄR'!A22 -> 0 | C21: ='År 1'!C21 -> 1700 | D21: ='Lönekostnad FINANSIÄR'!C22*$C21 -> 0 | E21: ='Lönekostnad FINANSIÄR'!D22*$C21 -> 0 | F21: ='Lönekostnad FINANSIÄR'!E22*$C21 -> 0 | G21: ='Lönekostnad FINANSIÄR'!F22*$C21 -> 0 | H21: ='Lönekostnad FINANSIÄR'!G22*$C21 -> 0 | I21: 0 | L21: =B21 -> 0 | N21: =IFERROR(D21/($C21/12),0) -> 0 | O21: =IFERROR(E21/($C21/12),0) -> 0 | P21: =IFERROR(F21/($C21/12),0) -> 0 | Q21: =IFERROR(G21/($C21/12),0) -> 0 | R21: =IFERROR(H21/($C21/12),0) -> 0 | S21: =SUM(N21:R21) -> 0
B22: ='Lönekostnad FINANSIÄR'!A23 -> 0 | C22: ='År 1'!C22 -> 1700 | D22: ='Lönekostnad FINANSIÄR'!C23*$C22 -> 0 | E22: ='Lönekostnad FINANSIÄR'!D23*$C22 -> 0 | F22: ='Lönekostnad FINANSIÄR'!E23*$C22 -> 0 | G22: ='Lönekostnad FINANSIÄR'!F23*$C22 -> 0 | H22: ='Lönekostnad FINANSIÄR'!G23*$C22 -> 0 | I22: 0 | L22: 0 | N22: 0 | O22: 0 | P22: 0 | Q22: 0 | R22: 0 | S22: 0
B23: ='Lönekostnad FINANSIÄR'!A24 -> 0 | C23: ='År 1'!C23 -> 1700 | D23: ='Lönekostnad FINANSIÄR'!C24*$C23 -> 0 | E23: ='Lönekostnad FINANSIÄR'!D24*$C23 -> 0 | F23: ='Lönekostnad FINANSIÄR'!E24*$C23 -> 0 | G23: ='Lönekostnad FINANSIÄR'!F24*$C23 -> 0 | H23: ='Lönekostnad FINANSIÄR'!G24*$C23 -> 0 | I23: 0 | L23: 0 | N23: 0 | O23: 0 | P23: 0 | Q23: 0 | R23: 0 | S23: 0
B24: ='Lönekostnad FINANSIÄR'!A25 -> 0 | C24: ='År 1'!C24 -> 1700 | D24: ='Lönekostnad FINANSIÄR'!C25*$C24 -> 0 | E24: ='Lönekostnad FINANSIÄR'!D25*$C24 -> 0 | F24: ='Lönekostnad FINANSIÄR'!E25*$C24 -> 0 | G24: ='Lönekostnad FINANSIÄR'!F25*$C24 -> 0 | H24: ='Lönekostnad FINANSIÄR'!G25*$C24 -> 0 | I24: 0 | L24: 0 | N24: 0 | O24: 0 | P24: 0 | Q24: 0 | R24: 0 | S24: 0
B25: ='Lönekostnad FINANSIÄR'!A26 -> 0 | C25: ='År 1'!C25 -> 1700 | D25: ='Lönekostnad FINANSIÄR'!C26*$C25 -> 0 | E25: ='Lönekostnad FINANSIÄR'!D26*$C25 -> 0 | F25: ='Lönekostnad FINANSIÄR'!E26*$C25 -> 0 | G25: ='Lönekostnad FINANSIÄR'!F26*$C25 -> 0 | H25: ='Lönekostnad FINANSIÄR'!G26*$C25 -> 0 | I25: 0 | L25: 0 | N25: 0 | O25: 0 | P25: 0 | Q25: 0 | R25: 0 | S25: 0
B26: ='Lönekostnad FINANSIÄR'!A27 -> 0 | C26: ='År 1'!C26 -> 1700 | D26: ='Lönekostnad FINANSIÄR'!C27*$C26 -> 0 | E26: ='Lönekostnad FINANSIÄR'!D27*$C26 -> 0 | F26: ='Lönekostnad FINANSIÄR'!E27*$C26 -> 0 | G26: ='Lönekostnad FINANSIÄR'!F27*$C26 -> 0 | H26: ='Lönekostnad FINANSIÄR'!G27*$C26 -> 0 | I26: 0 | L26: 0 | N26: 0 | O26: 0 | P26: 0 | Q26: 0 | R26: 0 | S26: 0
B27: ='Lönekostnad FINANSIÄR'!A28 -> 0 | C27: ='År 1'!C27 -> 1700 | D27: ='Lönekostnad FINANSIÄR'!C28*$C27 -> 0 | E27: ='Lönekostnad FINANSIÄR'!D28*$C27 -> 0 | F27: ='Lönekostnad FINANSIÄR'!E28*$C27 -> 0 | G27: ='Lönekostnad FINANSIÄR'!F28*$C27 -> 0 | H27: ='Lönekostnad FINANSIÄR'!G28*$C27 -> 0 | I27: 0 | L27: 0 | N27: 0 | O27: 0 | P27: 0 | Q27: 0 | R27: 0 | S27: 0
B28: ='Lönekostnad FINANSIÄR'!A29 -> 0 | C28: ='År 1'!C28 -> 1700 | D28: ='Lönekostnad FINANSIÄR'!C29*$C28 -> 0 | E28: ='Lönekostnad FINANSIÄR'!D29*$C28 -> 0 | F28: ='Lönekostnad FINANSIÄR'!E29*$C28 -> 0 | G28: ='Lönekostnad FINANSIÄR'!F29*$C28 -> 0 | H28: ='Lönekostnad FINANSIÄR'!G29*$C28 -> 0 | I28: 0 | L28: 0 | N28: 0 | O28: 0 | P28: 0 | Q28: 0 | R28: 0 | S28: 0
B29: ='Lönekostnad FINANSIÄR'!A30 -> 0 | C29: ='År 1'!C29 -> 1700 | D29: ='Lönekostnad FINANSIÄR'!C30*$C29 -> 0 | E29: ='Lönekostnad FINANSIÄR'!D30*$C29 -> 0 | F29: ='Lönekostnad FINANSIÄR'!E30*$C29 -> 0 | G29: ='Lönekostnad FINANSIÄR'!F30*$C29 -> 0 | H29: ='Lönekostnad FINANSIÄR'!G30*$C29 -> 0 | I29: 0 | L29: 0 | N29: 0 | O29: 0 | P29: 0 | Q29: 0 | R29: 0 | S29: 0
B30: ='Lönekostnad FINANSIÄR'!A31 -> 0 | C30: ='År 1'!C30 -> 1700 | D30: ='Lönekostnad FINANSIÄR'!C31*$C30 -> 0 | E30: ='Lönekostnad FINANSIÄR'!D31*$C30 -> 0 | F30: ='Lönekostnad FINANSIÄR'!E31*$C30 -> 0 | G30: ='Lönekostnad FINANSIÄR'!F31*$C30 -> 0 | H30: ='Lönekostnad FINANSIÄR'!G31*$C30 -> 0 | I30: 0 | L30: 0 | N30: 0 | O30: 0 | P30: 0 | Q30: 0 | R30: 0 | S30: 0
B31: ='Lönekostnad FINANSIÄR'!A32 -> 0 | C31: ='År 1'!C31 -> 1700 | D31: ='Lönekostnad FINANSIÄR'!C32*$C31 -> 0 | E31: ='Lönekostnad FINANSIÄR'!D32*$C31 -> 0 | F31: ='Lönekostnad FINANSIÄR'!E32*$C31 -> 0 | G31: ='Lönekostnad FINANSIÄR'!F32*$C31 -> 0 | H31: ='Lönekostnad FINANSIÄR'!G32*$C31 -> 0 | I31: 0 | L31: 0 | N31: 0 | O31: 0 | P31: 0 | Q31: 0 | R31: 0 | S31: 0
B32: ='Lönekostnad FINANSIÄR'!A33 -> 0 | C32: ='År 1'!C32 -> 1700 | D32: ='Lönekostnad FINANSIÄR'!C33*$C32 -> 0 | E32: ='Lönekostnad FINANSIÄR'!D33*$C32 -> 0 | F32: ='Lönekostnad FINANSIÄR'!E33*$C32 -> 0 | G32: ='Lönekostnad FINANSIÄR'!F33*$C32 -> 0 | H32: ='Lönekostnad FINANSIÄR'!G33*$C32 -> 0 | I32: 0 | L32: 0 | N32: 0 | O32: =IFERROR(E32/($C32/12),0) -> 0 | P32: 0 | Q32: 0 | R32: 0 | S32: 0
B33: ='Lönekostnad FINANSIÄR'!A34 -> 0 | C33: ='År 1'!C33 -> 1700 | D33: ='Lönekostnad FINANSIÄR'!C34*$C33 -> 0 | E33: ='Lönekostnad FINANSIÄR'!D34*$C33 -> 0 | F33: ='Lönekostnad FINANSIÄR'!E34*$C33 -> 0 | G33: ='Lönekostnad FINANSIÄR'!F34*$C33 -> 0 | H33: ='Lönekostnad FINANSIÄR'!G34*$C33 -> 0 | I33: 0 | L33: 0 | N33: 0 | O33: 0 | P33: 0 | Q33: 0 | R33: 0 | S33: 0
B34: ='Lönekostnad FINANSIÄR'!A35 -> 0 | C34: ='År 1'!C34 -> 1700 | D34: ='Lönekostnad FINANSIÄR'!C35*$C34 -> 0 | E34: ='Lönekostnad FINANSIÄR'!D35*$C34 -> 0 | F34: ='Lönekostnad FINANSIÄR'!E35*$C34 -> 0 | G34: ='Lönekostnad FINANSIÄR'!F35*$C34 -> 0 | H34: ='Lönekostnad FINANSIÄR'!G35*$C34 -> 0 | I34: 0 | L34: 0 | N34: 0 | O34: 0 | P34: 0 | Q34: 0 | R34: 0 | S34: 0
B35: ='Lönekostnad FINANSIÄR'!A36 -> 0 | C35: ='År 1'!C35 -> 1700 | D35: ='Lönekostnad FINANSIÄR'!C36*$C35 -> 0 | E35: ='Lönekostnad FINANSIÄR'!D36*$C35 -> 0 | F35: ='Lönekostnad FINANSIÄR'!E36*$C35 -> 0 | G35: ='Lönekostnad FINANSIÄR'!F36*$C35 -> 0 | H35: ='Lönekostnad FINANSIÄR'!G36*$C35 -> 0 | I35: 0 | L35: 0 | N35: 0 | O35: 0 | P35: 0 | Q35: 0 | R35: 0 | S35: 0
B36: ='Lönekostnad FINANSIÄR'!A37 -> 0 | C36: ='År 1'!C36 -> 1700 | D36: ='Lönekostnad FINANSIÄR'!C37*$C36 -> 0 | E36: ='Lönekostnad FINANSIÄR'!D37*$C36 -> 0 | F36: ='Lönekostnad FINANSIÄR'!E37*$C36 -> 0 | G36: ='Lönekostnad FINANSIÄR'!F37*$C36 -> 0 | H36: ='Lönekostnad FINANSIÄR'!G37*$C36 -> 0 | I36: 0 | L36: 0 | N36: 0 | O36: 0 | P36: 0 | Q36: 0 | R36: 0 | S36: 0
B37: ='Lönekostnad FINANSIÄR'!A38 -> 0 | C37: ='År 1'!C37 -> 1700 | D37: ='Lönekostnad FINANSIÄR'!C38*$C37 -> 0 | E37: ='Lönekostnad FINANSIÄR'!D38*$C37 -> 0 | F37: ='Lönekostnad FINANSIÄR'!E38*$C37 -> 0 | G37: ='Lönekostnad FINANSIÄR'!F38*$C37 -> 0 | H37: ='Lönekostnad FINANSIÄR'!G38*$C37 -> 0 | I37: 0 | L37: 0 | N37: 0 | O37: 0 | P37: 0 | Q37: 0 | R37: 0 | S37: 0
B38: ='Lönekostnad FINANSIÄR'!A39 -> 0 | C38: ='År 1'!C38 -> 1700 | D38: ='Lönekostnad FINANSIÄR'!C39*$C38 -> 0 | E38: ='Lönekostnad FINANSIÄR'!D39*$C38 -> 0 | F38: ='Lönekostnad FINANSIÄR'!E39*$C38 -> 0 | G38: ='Lönekostnad FINANSIÄR'!F39*$C38 -> 0 | H38: ='Lönekostnad FINANSIÄR'!G39*$C38 -> 0 | I38: 0 | L38: 0 | N38: 0 | O38: 0 | P38: 0 | Q38: 0 | R38: 0 | S38: 0
B39: ='Lönekostnad FINANSIÄR'!A40 -> 0 | C39: ='År 1'!C39 -> 1700 | D39: ='Lönekostnad FINANSIÄR'!C40*$C39 -> 0 | E39: ='Lönekostnad FINANSIÄR'!D40*$C39 -> 0 | F39: ='Lönekostnad FINANSIÄR'!E40*$C39 -> 0 | G39: ='Lönekostnad FINANSIÄR'!F40*$C39 -> 0 | H39: ='Lönekostnad FINANSIÄR'!G40*$C39 -> 0 | I39: 0 | L39: 0 | N39: 0 | O39: 0 | P39: 0 | Q39: 0 | R39: 0 | S39: 0
B40: ='År 1'!B40 -> Totalt | C40: =SUM(D40:H40) -> 3969.7 | D40: =SUM(D5:D39) -> 990.3 | E40: 990.3 | F40: 990.3 | G40: 998.8 | H40: 0 | I40: 3969.7 | L40: ='År 1'!L40 -> Totalt | M40: =SUM(O40:R40) -> 39.09105882 | N40: =SUM(N5:N39) -> 12.99035294 | O40: 12.99035294 | P40: 12.99035294 | Q40: 13.11035294 | R40: 0 | S40: 52.08141176
D42: ='År 1'!D42:I42 -> Utfall / Prognos timmar | N42: ='År 1'!N42:S42 -> Omfattning %
D43: =D4 -> År 1 | E43: =E4 -> År 2 | F43: =F4 -> År 3 | G43: =G4 -> År 4 | H43: =H4 -> År 5 | I43: Kr/tim | N43: =D43 -> År 1 | O43: =E43 -> År 2 | P43: =F43 -> År 3 | Q43: =G43 -> År 4 | R43: =H43 -> År 5 | S43: ='År 1'!S43 -> Totalt
B44: =B5 -> Handledning professor | D44: ='År 1'!D44 -> 100 | E44: 150 | I44: =IFERROR('Lönekostnad FINANSIÄR'!B6*LönePåläggUppräkningÅr2/C5,0) -> 0 | L44: =B44 -> Handledning professor | N44: =IFERROR(D44/$C5,0) -> 0.05882352941 | O44: =IFERROR(E44/$C5,0) -> 0.08823529412 | P44: =IFERROR(F44/$C5,0) -> 0 | Q44: =IFERROR(G44/$C5,0) -> 0 | R44: =IFERROR(H44/$C5,0) -> 0 | S44: =SUM(N44:R44) -> 0.1470588235
B45: Handledning lektor | D45: ='År 1'!D45 -> 0 | E45: 150 | I45: =IFERROR('Lönekostnad FINANSIÄR'!B7*LönePåläggUppräkningÅr2/C6,0) -> 0 | L45: =B45 -> Handledning lektor | N45: 0 | O45: =IFERROR(E45/$C6,0) -> 0.08823529412 | P45: 0 | Q45: 0 | R45: 0 | S45: =SUM(N45:R45) -> 0.08823529412
B46: Doktorand (snittlön doktorandtrappa 2019) | D46: ='År 1'!D46 -> 0 | E46: 150 | I46: =IFERROR('Lönekostnad FINANSIÄR'!B8*LönePåläggUppräkningÅr2/C7,0) -> 0 | L46: Doktorand (snittlön doktorandtrappa 2019) | N46: 0 | O46: 0.1764705882 | P46: 0 | Q46: 0 | R46: 0 | S46: 0.1764705882
B47: Opponent | D47: ='År 1'!D47 -> 0 | E47: 150 | I47: =IFERROR('Lönekostnad FINANSIÄR'!B9*LönePåläggUppräkningÅr2/C8,0) -> 0 | L47: Opponent | N47: 0 | O47: 0.1764705882 | P47: 0 | Q47: 0 | R47: 0 | S47: 0.1764705882
B48: Doktorandkurser 60 hp, | D48: ='År 1'!D48 -> 0 | E48: 150 | I48: =IFERROR('Lönekostnad FINANSIÄR'!B10*LönePåläggUppräkningÅr2/C9,0) -> 0 | L48: Doktorandkurser 60 hp, | N48: 0 | O48: 0.08823529412 | P48: 0 | Q48: 0 | R48: 0 | S48: 0.08823529412
B49: (totalt 8 kurser * 7,5 hp 20 timmar/kurs för doktoranden) | D49: ='År 1'!D49 -> 0 | E49: 150 | I49: =IFERROR('Lönekostnad FINANSIÄR'!B11*LönePåläggUppräkningÅr2/C10,0) -> 0 | L49: (totalt 8 kurser * 7,5 hp 20 timmar/kurs för doktoranden) | N49: 0 | O49: 0.08823529412 | P49: 0 | Q49: 0 | R49: 0 | S49: 0.08823529412
B50: 0 | D50: ='År 1'!D50 -> 0 | E50: 150 | I50: =IFERROR('Lönekostnad FINANSIÄR'!B12*LönePåläggUppräkningÅr2/C11,0) -> 0 | L50: 0 | N50: 0 | O50: 0.08823529412 | P50: 0 | Q50: 0 | R50: 0 | S50: 0.08823529412
B51: 0 | D51: ='År 1'!D51 -> 0 | E51: 150 | I51: =IFERROR('Lönekostnad FINANSIÄR'!B13*LönePåläggUppräkningÅr2/C12,0) -> 0 | L51: 0 | N51: 0 | O51: 0.08823529412 | P51: 0 | Q51: 0 | R51: 0 | S51: 0.08823529412
B52: 0 | D52: ='År 1'!D52 -> 0 | E52: 150 | I52: =IFERROR('Lönekostnad FINANSIÄR'!B14*LönePåläggUppräkningÅr2/C13,0) -> 0 | L52: 0 | N52: 0 | O52: 0.08823529412 | P52: 0 | Q52: 0 | R52: 0 | S52: 0.08823529412
B53: 0 | D53: ='År 1'!D53 -> 0 | E53: 150 | I53: =IFERROR('Lönekostnad FINANSIÄR'!B15*LönePåläggUppräkningÅr2/C14,0) -> 0 | L53: 0 | N53: 0 | O53: 0.08823529412 | P53: 0 | Q53: 0 | R53: 0 | S53: 0.08823529412
B54: 0 | D54: ='År 1'!D54 -> 0 | E54: 150 | I54: =IFERROR('Lönekostnad FINANSIÄR'!B16*LönePåläggUppräkningÅr2/C15,0) -> 0 | L54: =B54 -> 0 | N54: 0 | O54: 0.08823529412 | P54: 0 | Q54: 0 | R54: 0 | S54: =SUM(N54:R54) -> 0.08823529412
B55: 0 | D55: ='År 1'!D55 -> 0 | E55: 150 | I55: =IFERROR('Lönekostnad FINANSIÄR'!B17*LönePåläggUppräkningÅr2/C16,0) -> 0 | L55: 0 | N55: 0 | O55: 0.08823529412 | P55: 0 | Q55: 0 | R55: 0 | S55: 0.08823529412
B56: 0 | D56: ='År 1'!D56 -> 0 | E56: 150 | I56: =IFERROR('Lönekostnad FINANSIÄR'!B18*LönePåläggUppräkningÅr2/C17,0) -> 0 | L56: 0 | N56: 0 | O56: 0.08823529412 | P56: 0 | Q56: 0 | R56: 0 | S56: 0.08823529412
B57: 0 | D57: ='År 1'!D57 -> 0 | E57: 150 | I57: =IFERROR('Lönekostnad FINANSIÄR'!B19*LönePåläggUppräkningÅr2/C18,0) -> 0 | L57: 0 | N57: 0 | O57: 0.08823529412 | P57: 0 | Q57: 0 | R57: 0 | S57: 0.08823529412
B58: 0 | D58: ='År 1'!D58 -> 0 | E58: 150 | I58: =IFERROR('Lönekostnad FINANSIÄR'!B20*LönePåläggUppräkningÅr2/C19,0) -> 0 | L58: 0 | N58: 0 | O58: 0.08823529412 | P58: 0 | Q58: 0 | R58: 0 | S58: 0.08823529412
B59: 0 | D59: ='År 1'!D59 -> 0 | E59: 150 | I59: =IFERROR('Lönekostnad FINANSIÄR'!#REF!*LönePåläggUppräkningÅr2/C20,0) -> 0 | L59: 0 | N59: 0 | O59: 0.08823529412 | P59: 0 | Q59: 0 | R59: 0 | S59: 0.08823529412
B60: =B21 -> 0 | D60: ='År 1'!D60 -> 0 | E60: 170 | I60: =IFERROR('Lönekostnad FINANSIÄR'!#REF!*LönePåläggUppräkningÅr2/C21,0) -> 0 | L60: =B60 -> 0 | N60: =IFERROR(D60/$C21,0) -> 0 | O60: =IFERROR(E60/$C21,0) -> 0.1 | P60: =IFERROR(F60/$C21,0) -> 0 | Q60: =IFERROR(G60/$C21,0) -> 0 | R60: =IFERROR(H60/$C21,0) -> 0 | S60: =SUM(N60:R60) -> 0.1
B61: 0 | D61: ='År 1'!D61 -> 0 | E61: 170 | I61: =IFERROR('Lönekostnad FINANSIÄR'!#REF!*LönePåläggUppräkningÅr2/C22,0) -> 0 | L61: 0 | N61: 0 | O61: 0.1 | P61: 0 | Q61: 0 | R61: 0 | S61: 0.1
B62: 0 | D62: ='År 1'!D62 -> 0 | E62: 170 | I62: =IFERROR('Lönekostnad FINANSIÄR'!#REF!*LönePåläggUppräkningÅr2/C23,0) -> 0 | L62: 0 | N62: 0 | O62: 0.1 | P62: 0 | Q62: 0 | R62: 0 | S62: 0.1
B63: 0 | D63: ='År 1'!D63 -> 0 | E63: 170 | I63: =IFERROR('Lönekostnad FINANSIÄR'!#REF!*LönePåläggUppräkningÅr2/C24,0) -> 0 | L63: 0 | N63: 0 | O63: 0.1 | P63: 0 | Q63: 0 | R63: 0 | S63: 0.1
B64: 0 | D64: ='År 1'!D64 -> 0 | E64: 170 | I64: =IFERROR('Lönekostnad FINANSIÄR'!#REF!*LönePåläggUppräkningÅr2/C25,0) -> 0 | L64: 0 | N64: 0 | O64: 0.1 | P64: 0 | Q64: 0 | R64: 0 | S64: 0.1
B65: 0 | D65: ='År 1'!D65 -> 0 | E65: 170 | I65: =IFERROR('Lönekostnad FINANSIÄR'!#REF!*LönePåläggUppräkningÅr2/C26,0) -> 0 | L65: 0 | N65: 0 | O65: 0.1 | P65: 0 | Q65: 0 | R65: 0 | S65: 0.1
B66: 0 | D66: ='År 1'!D66 -> 0 | E66: 170 | I66: =IFERROR('Lönekostnad FINANSIÄR'!#REF!*LönePåläggUppräkningÅr2/C27,0) -> 0 | L66: 0 | N66: 0 | O66: 0.1 | P66: 0 | Q66: 0 | R66: 0 | S66: 0.1
B67: 0 | D67: ='År 1'!D67 -> 0 | E67: 170 | I67: =IFERROR('Lönekostnad FINANSIÄR'!#REF!*LönePåläggUppräkningÅr2/C28,0) -> 0 | L67: 0 | N67: 0 | O67: 0.1 | P67: 0 | Q67: 0 | R67: 0 | S67: 0.1
B68: 0 | D68: ='År 1'!D68 -> 0 | E68: 170 | I68: =IFERROR('Lönekostnad FINANSIÄR'!#REF!*LönePåläggUppräkningÅr2/C29,0) -> 0 | L68: 0 | N68: 0 | O68: 0.1 | P68: 0 | Q68: 0 | R68: 0 | S68: 0.1
B69: 0 | D69: ='År 1'!D69 -> 0 | E69: 170 | I69: =IFERROR('Lönekostnad FINANSIÄR'!#REF!*LönePåläggUppräkningÅr2/C30,0) -> 0 | L69: 0 | N69: 0 | O69: 0.1 | P69: 0 | Q69: 0 | R69: 0 | S69: 0.1
B70: 0 | D70: ='År 1'!D70 -> 0 | E70: 170 | I70: =IFERROR('Lönekostnad FINANSIÄR'!#REF!*LönePåläggUppräkningÅr2/C31,0) -> 0 | L70: 0 | N70: 0 | O70: 0.1 | P70: 0 | Q70: 0 | R70: 0 | S70: 0.1
B71: 0 | D71: ='År 1'!D71 -> 0 | E71: 170 | I71: =IFERROR('Lönekostnad FINANSIÄR'!#REF!*LönePåläggUppräkningÅr2/C32,0) -> 0 | L71: 0 | N71: 0 | O71: 0.1 | P71: 0 | Q71: 0 | R71: 0 | S71: 0.1
B72: 0 | D72: ='År 1'!D72 -> 0 | E72: 170 | I72: =IFERROR('Lönekostnad FINANSIÄR'!#REF!*LönePåläggUppräkningÅr2/C33,0) -> 0 | L72: 0 | N72: 0 | O72: 0.1 | P72: 0 | Q72: 0 | R72: 0 | S72: 0.1
B73: 0 | D73: ='År 1'!D73 -> 0 | E73: 170 | I73: =IFERROR('Lönekostnad FINANSIÄR'!#REF!*LönePåläggUppräkningÅr2/C34,0) -> 0 | L73: 0 | N73: 0 | O73: 0.1 | P73: 0 | Q73: 0 | R73: 0 | S73: 0.1
B74: 0 | D74: ='År 1'!D74 -> 0 | E74: 170 | I74: =IFERROR('Lönekostnad FINANSIÄR'!#REF!*LönePåläggUppräkningÅr2/C35,0) -> 0 | L74: 0 | N74: 0 | O74: 0.1 | P74: 0 | Q74: 0 | R74: 0 | S74: 0.1
B75: 0 | D75: ='År 1'!D75 -> 0 | E75: 170 | I75: =IFERROR('Lönekostnad FINANSIÄR'!#REF!*LönePåläggUppräkningÅr2/C36,0) -> 0 | L75: 0 | N75: 0 | O75: 0.1 | P75: 0 | Q75: 0 | R75: 0 | S75: 0.1
B76: 0 | D76: ='År 1'!D76 -> 0 | E76: 170 | I76: =IFERROR('Lönekostnad FINANSIÄR'!#REF!*LönePåläggUppräkningÅr2/C37,0) -> 0 | L76: 0 | N76: 0 | O76: 0.1 | P76: 0 | Q76: 0 | R76: 0 | S76: 0.1
B77: 0 | D77: ='År 1'!D77 -> 0 | E77: 170 | I77: =IFERROR('Lönekostnad FINANSIÄR'!#REF!*LönePåläggUppräkningÅr2/C38,0) -> 0 | L77: 0 | N77: 0 | O77: 0.1 | P77: 0 | Q77: 0 | R77: 0 | S77: 0.1
B78: 0 | D78: ='År 1'!D78 -> 0 | E78: 170 | I78: =IFERROR('Lönekostnad FINANSIÄR'!#REF!*LönePåläggUppräkningÅr2/C39,0) -> 0 | L78: 0 | N78: 0 | O78: 0.1 | P78: 0 | Q78: 0 | R78: 0 | S78: 0.1
B79: ='År 1'!B40 -> Totalt | C79: =SUM(D79:H79) -> 5730 | D79: =SUM(D44:D78) -> 100 | E79: =SUM(E44:E78) -> 5630 | F79: =SUM(F44:F78) -> 0 | G79: =SUM(G44:G78) -> 0 | H79: =SUM(H44:H78) -> 0 | L79: ='År 1'!L40 -> Totalt | M79: =SUM(N79:R79) -> 3.547058824 | N79: =SUM(N44:N78) -> 0.05882352941 | O79: 3.488235294 | P79: 0 | Q79: 0 | R79: 0 | S79: 3.547058824

Sheet År 3 (hidden)
B1: ="Projekt: "&Grunduppgifter!$B$5 -> Projekt: | F1: ='År 4'!$F$1 -> 0
D3: ='År 2'!D3:I3 -> Budget timmar (ev. reviderad) | J3: ='År 2'!J3 -> Godkännande | N3: Manmånader
D4: ='Lönekostnad FINANSIÄR'!C5 -> År 1 | E4: ='Lönekostnad FINANSIÄR'!D5 -> År 2 | F4: ='Lönekostnad FINANSIÄR'!E5 -> År 3 | G4: ='Lönekostnad FINANSIÄR'!F5 -> År 4 | H4: ='Lönekostnad FINANSIÄR'!G5 -> År 5 | I4: Totalt | J4: SC/SR | N4: =D4 -> År 1 | O4: =E4 -> År 2 | P4: =F4 -> År 3 | Q4: =G4 -> År 4 | R4: =H4 -> År 5 | S4: Totalt
B5: ='Lönekostnad FINANSIÄR'!A6 -> Handledning professor | C5: ='År 2'!C5 -> 1700 | D5: ='Lönekostnad FINANSIÄR'!C6*$C5 -> 50.15 | E5: ='Lönekostnad FINANSIÄR'!D6*$C5 -> 50.15 | F5: ='Lönekostnad FINANSIÄR'!E6*$C5 -> 50.15 | G5: ='Lönekostnad FINANSIÄR'!F6*$C5 -> 50.15 | H5: ='Lönekostnad FINANSIÄR'!G6*$C5 -> 0 | I5: =SUM(D5:H5) -> 200.6 | L5: =B5 -> Handledning professor | N5: =IFERROR(D5/($C5/12),0) -> 0.354 | O5: =IFERROR(E5/($C5/12),0) -> 0.354 | P5: 0.354 | Q5: 0.354 | R5: 0 | S5: =SUM(N5:R5) -> 1.416
B6: ='Lönekostnad FINANSIÄR'!A7 -> Handledning lektor | C6: ='År 2'!C6 -> 1700 | D6: ='Lönekostnad FINANSIÄR'!C7*$C6 -> 50.15 | E6: ='Lönekostnad FINANSIÄR'!D7*$C6 -> 50.15 | F6: ='Lönekostnad FINANSIÄR'!E7*$C6 -> 50.15 | G6: ='Lönekostnad FINANSIÄR'!F7*$C6 -> 50.15 | H6: ='Lönekostnad FINANSIÄR'!G7*$C6 -> 0 | I6: =SUM(D6:H6) -> 200.6 | L6: =B6 -> Handledning lektor | N6: =IFERROR(D6/($C6/12),0) -> 0.354 | O6: 0.354 | P6: 0.354 | Q6: 0.354 | R6: 0 | S6: =SUM(N6:R6) -> 1.416
B7: ='Lönekostnad FINANSIÄR'!A8 -> Doktorand (snittlön doktorandtrappa 2019) | C7: ='År 2'!C7 -> 850 | D7: ='Lönekostnad FINANSIÄR'!C8*$C7 -> 850 | E7: ='Lönekostnad FINANSIÄR'!D8*$C7 -> 850 | F7: ='Lönekostnad FINANSIÄR'!E8*$C7 -> 850 | G7: ='Lönekostnad FINANSIÄR'!F8*$C7 -> 850 | H7: ='Lönekostnad FINANSIÄR'!G8*$C7 -> 0 | I7: 3400 | L7: Doktorand (snittlön doktorandtrappa 2019) | N7: =IFERROR(D7/($C7/12),0) -> 12 | O7: 12 | P7: 12 | Q7: 12 | R7: 0 | S7: 48
B8: ='Lönekostnad FINANSIÄR'!A9 -> Opponent | C8: ='År 2'!C8 -> 850 | D8: ='Lönekostnad FINANSIÄR'!C9*$C8 -> 0 | E8: ='Lönekostnad FINANSIÄR'!D9*$C8 -> 0 | F8: ='Lönekostnad FINANSIÄR'!E9*$C8 -> 0 | G8: ='Lönekostnad FINANSIÄR'!F9*$C8 -> 8.5 | H8: ='Lönekostnad FINANSIÄR'!G9*$C8 -> 0 | I8: 8.5 | L8: Opponent | N8: =IFERROR(D8/($C8/12),0) -> 0 | O8: =IFERROR(E8/($C8/12),0) -> 0 | P8: =IFERROR(F8/($C8/12),0) -> 0 | Q8: =IFERROR(G8/($C8/12),0) -> 0.12 | R8: =IFERROR(H8/($C8/12),0) -> 0 | S8: 0.12
B9: ='Lönekostnad FINANSIÄR'!A10 -> Doktorandkurser 60 hp, | C9: ='År 2'!C9 -> 1700 | D9: ='Lönekostnad FINANSIÄR'!C10*$C9 -> 40 | E9: ='Lönekostnad FINANSIÄR'!D10*$C9 -> 40 | F9: ='Lönekostnad FINANSIÄR'!E10*$C9 -> 40 | G9: ='Lönekostnad FINANSIÄR'!F10*$C9 -> 40 | H9: ='Lönekostnad FINANSIÄR'!G10*$C9 -> 0 | I9: 160 | L9: Doktorandkurser 60 hp, | N9: 0.2823529412 | O9: 0.2823529412 | P9: 0.2823529412 | Q9: 0.2823529412 | R9: 0 | S9: 1.129411765
B10: ='Lönekostnad FINANSIÄR'!A11 -> (totalt 8 kurser * 7,5 hp 20 timmar/kurs för doktoranden) | C10: ='År 2'!C10 -> 1700 | D10: ='Lönekostnad FINANSIÄR'!C11*$C10 -> 0 | E10: ='Lönekostnad FINANSIÄR'!D11*$C10 -> 0 | F10: ='Lönekostnad FINANSIÄR'!E11*$C10 -> 0 | G10: ='Lönekostnad FINANSIÄR'!F11*$C10 -> 0 | H10: ='Lönekostnad FINANSIÄR'!G11*$C10 -> 0 | I10: 0 | L10: (totalt 8 kurser * 7,5 hp 20 timmar/kurs för doktoranden) | N10: 0 | O10: 0 | P10: 0 | Q10: 0 | R10: 0 | S10: 0
B11: ='Lönekostnad FINANSIÄR'!A12 -> 0 | C11: ='År 2'!C11 -> 1700 | D11: ='Lönekostnad FINANSIÄR'!C12*$C11 -> 0 | E11: ='Lönekostnad FINANSIÄR'!D12*$C11 -> 0 | F11: ='Lönekostnad FINANSIÄR'!E12*$C11 -> 0 | G11: ='Lönekostnad FINANSIÄR'!F12*$C11 -> 0 | H11: ='Lönekostnad FINANSIÄR'!G12*$C11 -> 0 | I11: 0 | L11: 0 | N11: 0 | O11: 0 | P11: 0 | Q11: 0 | R11: 0 | S11: 0
B12: ='Lönekostnad FINANSIÄR'!A13 -> 0 | C12: ='År 2'!C12 -> 1700 | D12: ='Lönekostnad FINANSIÄR'!C13*$C12 -> 0 | E12: ='Lönekostnad FINANSIÄR'!D13*$C12 -> 0 | F12: ='Lönekostnad FINANSIÄR'!E13*$C12 -> 0 | G12: ='Lönekostnad FINANSIÄR'!F13*$C12 -> 0 | H12: ='Lönekostnad FINANSIÄR'!G13*$C12 -> 0 | I12: 0 | L12: 0 | N12: 0 | O12: 0 | P12: 0 | Q12: 0 | R12: 0 | S12: 0
B13: ='Lönekostnad FINANSIÄR'!A14 -> 0 | C13: ='År 2'!C13 -> 1700 | D13: ='Lönekostnad FINANSIÄR'!C14*$C13 -> 0 | E13: ='Lönekostnad FINANSIÄR'!D14*$C13 -> 0 | F13: ='Lönekostnad FINANSIÄR'!E14*$C13 -> 0 | G13: ='Lönekostnad FINANSIÄR'!F14*$C13 -> 0 | H13: ='Lönekostnad FINANSIÄR'!G14*$C13 -> 0 | I13: 0 | L13: 0 | N13: 0 | O13: 0 | P13: 0 | Q13: 0 | R13: 0 | S13: 0
B14: ='Lönekostnad FINANSIÄR'!A15 -> 0 | C14: ='År 2'!C14 -> 1700 | D14: ='Lönekostnad FINANSIÄR'!C15*$C14 -> 0 | E14: ='Lönekostnad FINANSIÄR'!D15*$C14 -> 0 | F14: ='Lönekostnad FINANSIÄR'!E15*$C14 -> 0 | G14: ='Lönekostnad FINANSIÄR'!F15*$C14 -> 0 | H14: ='Lönekostnad FINANSIÄR'!G15*$C14 -> 0 | I14: 0 | L14: 0 | N14: 0 | O14: 0 | P14: 0 | Q14: 0 | R14: 0 | S14: 0
B15: ='Lönekostnad FINANSIÄR'!A16 -> 0 | C15: ='År 2'!C15 -> 1700 | D15: ='Lönekostnad FINANSIÄR'!C16*$C15 -> 0 | E15: ='Lönekostnad FINANSIÄR'!D16*$C15 -> 0 | F15: ='Lönekostnad FINANSIÄR'!E16*$C15 -> 0 | G15: ='Lönekostnad FINANSIÄR'!F16*$C15 -> 0 | H15: ='Lönekostnad FINANSIÄR'!G16*$C15 -> 0 | I15: =SUM(D15:H15) -> 0 | L15: =B15 -> 0 | N15: =IFERROR(D15/($C15/12),0) -> 0 | O15: 0 | P15: 0 | Q15: 0 | R15: 0 | S15: =SUM(N15:R15) -> 0
B16: ='Lönekostnad FINANSIÄR'!A17 -> 0 | C16: ='År 2'!C16 -> 1700 | D16: ='Lönekostnad FINANSIÄR'!C17*$C16 -> 0 | E16: ='Lönekostnad FINANSIÄR'!D17*$C16 -> 0 | F16: ='Lönekostnad FINANSIÄR'!E17*$C16 -> 0 | G16: ='Lönekostnad FINANSIÄR'!F17*$C16 -> 0 | H16: ='Lönekostnad FINANSIÄR'!G17*$C16 -> 0 | I16: =SUM(D16:H16) -> 0 | L16: =B16 -> 0 | N16: =IFERROR(D16/($C16/12),0) -> 0 | O16: 0 | P16: 0 | Q16: 0 | R16: 0 | S16: =SUM(N16:R16) -> 0
B17: ='Lönekostnad FINANSIÄR'!A18 -> 0 | C17: ='År 2'!C17 -> 1700 | D17: ='Lönekostnad FINANSIÄR'!C18*$C17 -> 0 | E17: ='Lönekostnad FINANSIÄR'!D18*$C17 -> 0 | F17: ='Lönekostnad FINANSIÄR'!E18*$C17 -> 0 | G17: ='Lönekostnad FINANSIÄR'!F18*$C17 -> 0 | H17: ='Lönekostnad FINANSIÄR'!G18*$C17 -> 0 | I17: =SUM(D17:H17) -> 0 | L17: =B17 -> 0 | N17: =IFERROR(D17/($C17/12),0) -> 0 | O17: 0 | P17: 0 | Q17: 0 | R17: 0 | S17: =SUM(N17:R17) -> 0
B18: ='Lönekostnad FINANSIÄR'!A19 -> 0 | C18: ='År 2'!C18 -> 1700 | D18: ='Lönekostnad FINANSIÄR'!C19*$C18 -> 0 | E18: ='Lönekostnad FINANSIÄR'!D19*$C18 -> 0 | F18: ='Lönekostnad FINANSIÄR'!E19*$C18 -> 0 | G18: ='Lönekostnad FINANSIÄR'!F19*$C18 -> 0 | H18: ='Lönekostnad FINANSIÄR'!G19*$C18 -> 0 | I18: =SUM(D18:H18) -> 0 | L18: =B18 -> 0 | N18: =IFERROR(D18/($C18/12),0) -> 0 | O18: =IFERROR(E18/($C18/12),0) -> 0 | P18: 0 | Q18: 0 | R18: 0 | S18: =SUM(N18:R18) -> 0
B19: ='Lönekostnad FINANSIÄR'!A20 -> 0 | C19: ='År 2'!C19 -> 1700 | D19: ='Lönekostnad FINANSIÄR'!C20*$C19 -> 0 | E19: ='Lönekostnad FINANSIÄR'!D20*$C19 -> 0 | F19: ='Lönekostnad FINANSIÄR'!E20*$C19 -> 0 | G19: ='Lönekostnad FINANSIÄR'!F20*$C19 -> 0 | H19: ='Lönekostnad FINANSIÄR'!G20*$C19 -> 0 | I19: =SUM(D19:H19) -> 0 | L19: =B19 -> 0 | N19: =IFERROR(D19/($C19/12),0) -> 0 | O19: 0 | P19: 0 | Q19: 0 | R19: 0 | S19: =SUM(N19:R19) -> 0
B20: ='Lönekostnad FINANSIÄR'!A21 -> 0 | C20: ='År 2'!C20 -> 1700 | D20: ='Lönekostnad FINANSIÄR'!C21*$C20 -> 0 | E20: ='Lönekostnad FINANSIÄR'!D21*$C20 -> 0 | F20: ='Lönekostnad FINANSIÄR'!E21*$C20 -> 0 | G20: ='Lönekostnad FINANSIÄR'!F21*$C20 -> 0 | H20: ='Lönekostnad FINANSIÄR'!G21*$C20 -> 0 | I20: =SUM(D20:H20) -> 0 | L20: =B20 -> 0 | N20: =IFERROR(D20/($C20/12),0) -> 0 | O20: =IFERROR(E20/($C20/12),0) -> 0 | P20: =IFERROR(F20/($C20/12),0) -> 0 | Q20: =IFERROR(G20/($C20/12),0) -> 0 | R20: =IFERROR(H20/($C20/12),0) -> 0 | S20: =SUM(N20:R20) -> 0
B21: ='Lönekostnad FINANSIÄR'!A22 -> 0 | C21: ='År 2'!C21 -> 1700 | D21: ='Lönekostnad FINANSIÄR'!C22*$C21 -> 0 | E21: ='Lönekostnad FINANSIÄR'!D22*$C21 -> 0 | F21: ='Lönekostnad FINANSIÄR'!E22*$C21 -> 0 | G21: ='Lönekostnad FINANSIÄR'!F22*$C21 -> 0 | H21: ='Lönekostnad FINANSIÄR'!G22*$C21 -> 0 | I21: 0 | L21: 0 | N21: 0 | O21: 0 | P21: 0 | Q21: 0 | R21: 0 | S21: 0
B22: ='Lönekostnad FINANSIÄR'!A23 -> 0 | C22: ='År 2'!C22 -> 1700 | D22: ='Lönekostnad FINANSIÄR'!C23*$C22 -> 0 | E22: ='Lönekostnad FINANSIÄR'!D23*$C22 -> 0 | F22: ='Lönekostnad FINANSIÄR'!E23*$C22 -> 0 | G22: ='Lönekostnad FINANSIÄR'!F23*$C22 -> 0 | H22: ='Lönekostnad FINANSIÄR'!G23*$C22 -> 0 | I22: 0 | L22: 0 | N22: 0 | O22: 0 | P22: 0 | Q22: 0 | R22: 0 | S22: 0
B23: ='Lönekostnad FINANSIÄR'!A24 -> 0 | C23: ='År 2'!C23 -> 1700 | D23: ='Lönekostnad FINANSIÄR'!C24*$C23 -> 0 | E23: ='Lönekostnad FINANSIÄR'!D24*$C23 -> 0 | F23: ='Lönekostnad FINANSIÄR'!E24*$C23 -> 0 | G23: ='Lönekostnad FINANSIÄR'!F24*$C23 -> 0 | H23: ='Lönekostnad FINANSIÄR'!G24*$C23 -> 0 | I23: 0 | L23: 0 | N23: 0 | O23: 0 | P23: 0 | Q23: 0 | R23: 0 | S23: 0
B24: ='Lönekostnad FINANSIÄR'!A25 -> 0 | C24: ='År 2'!C24 -> 1700 | D24: ='Lönekostnad FINANSIÄR'!C25*$C24 -> 0 | E24: ='Lönekostnad FINANSIÄR'!D25*$C24 -> 0 | F24: ='Lönekostnad FINANSIÄR'!E25*$C24 -> 0 | G24: ='Lönekostnad FINANSIÄR'!F25*$C24 -> 0 | H24: ='Lönekostnad FINANSIÄR'!G25*$C24 -> 0 | I24: 0 | L24: 0 | N24: 0 | O24: 0 | P24: 0 | Q24: 0 | R24: 0 | S24: 0
B25: ='Lönekostnad FINANSIÄR'!A26 -> 0 | C25: ='År 2'!C25 -> 1700 | D25: ='Lönekostnad FINANSIÄR'!C26*$C25 -> 0 | E25: ='Lönekostnad FINANSIÄR'!D26*$C25 -> 0 | F25: ='Lönekostnad FINANSIÄR'!E26*$C25 -> 0 | G25: ='Lönekostnad FINANSIÄR'!F26*$C25 -> 0 | H25: ='Lönekostnad FINANSIÄR'!G26*$C25 -> 0 | I25: 0 | L25: 0 | N25: 0 | O25: 0 | P25: 0 | Q25: 0 | R25: 0 | S25: 0
B26: ='Lönekostnad FINANSIÄR'!A27 -> 0 | C26: ='År 2'!C26 -> 1700 | D26: ='Lönekostnad FINANSIÄR'!C27*$C26 -> 0 | E26: ='Lönekostnad FINANSIÄR'!D27*$C26 -> 0 | F26: ='Lönekostnad FINANSIÄR'!E27*$C26 -> 0 | G26: ='Lönekostnad FINANSIÄR'!F27*$C26 -> 0 | H26: ='Lönekostnad FINANSIÄR'!G27*$C26 -> 0 | I26: 0 | L26: 0 | N26: 0 | O26: 0 | P26: 0 | Q26: 0 | R26: 0 | S26: 0
B27: ='Lönekostnad FINANSIÄR'!A28 -> 0 | C27: ='År 2'!C27 -> 1700 | D27: ='Lönekostnad FINANSIÄR'!C28*$C27 -> 0 | E27: ='Lönekostnad FINANSIÄR'!D28*$C27 -> 0 | F27: ='Lönekostnad FINANSIÄR'!E28*$C27 -> 0 | G27: ='Lönekostnad FINANSIÄR'!F28*$C27 -> 0 | H27: ='Lönekostnad FINANSIÄR'!G28*$C27 -> 0 | I27: 0 | L27: 0 | N27: 0 | O27: 0 | P27: 0 | Q27: 0 | R27: 0 | S27: 0
B28: ='Lönekostnad FINANSIÄR'!A29 -> 0 | C28: ='År 2'!C28 -> 1700 | D28: ='Lönekostnad FINANSIÄR'!C29*$C28 -> 0 | E28: ='Lönekostnad FINANSIÄR'!D29*$C28 -> 0 | F28: ='Lönekostnad FINANSIÄR'!E29*$C28 -> 0 | G28: ='Lönekostnad FINANSIÄR'!F29*$C28 -> 0 | H28: ='Lönekostnad FINANSIÄR'!G29*$C28 -> 0 | I28: 0 | L28: 0 | N28: 0 | O28: 0 | P28: 0 | Q28: 0 | R28: 0 | S28: 0
B29: ='Lönekostnad FINANSIÄR'!A30 -> 0 | C29: ='År 2'!C29 -> 1700 | D29: ='Lönekostnad FINANSIÄR'!C30*$C29 -> 0 | E29: ='Lönekostnad FINANSIÄR'!D30*$C29 -> 0 | F29: ='Lönekostnad FINANSIÄR'!E30*$C29 -> 0 | G29: ='Lönekostnad FINANSIÄR'!F30*$C29 -> 0 | H29: ='Lönekostnad FINANSIÄR'!G30*$C29 -> 0 | I29: 0 | L29: 0 | N29: 0 | O29: 0 | P29: 0 | Q29: 0 | R29: 0 | S29: 0
B30: ='Lönekostnad FINANSIÄR'!A31 -> 0 | C30: ='År 2'!C30 -> 1700 | D30: ='Lönekostnad FINANSIÄR'!C31*$C30 -> 0 | E30: ='Lönekostnad FINANSIÄR'!D31*$C30 -> 0 | F30: ='Lönekostnad FINANSIÄR'!E31*$C30 -> 0 | G30: ='Lönekostnad FINANSIÄR'!F31*$C30 -> 0 | H30: ='Lönekostnad FINANSIÄR'!G31*$C30 -> 0 | I30: 0 | L30: 0 | N30: 0 | O30: 0 | P30: 0 | Q30: 0 | R30: 0 | S30: 0
B31: ='Lönekostnad FINANSIÄR'!A32 -> 0 | C31: ='År 2'!C31 -> 1700 | D31: ='Lönekostnad FINANSIÄR'!C32*$C31 -> 0 | E31: ='Lönekostnad FINANSIÄR'!D32*$C31 -> 0 | F31: ='Lönekostnad FINANSIÄR'!E32*$C31 -> 0 | G31: ='Lönekostnad FINANSIÄR'!F32*$C31 -> 0 | H31: ='Lönekostnad FINANSIÄR'!G32*$C31 -> 0 | I31: 0 | L31: 0 | N31: 0 | O31: 0 | P31: 0 | Q31: 0 | R31: 0 | S31: 0
B32: ='Lönekostnad FINANSIÄR'!A33 -> 0 | C32: ='År 2'!C32 -> 1700 | D32: ='Lönekostnad FINANSIÄR'!C33*$C32 -> 0 | E32: ='Lönekostnad FINANSIÄR'!D33*$C32 -> 0 | F32: ='Lönekostnad FINANSIÄR'!E33*$C32 -> 0 | G32: ='Lönekostnad FINANSIÄR'!F33*$C32 -> 0 | H32: ='Lönekostnad FINANSIÄR'!G33*$C32 -> 0 | I32: 0 | L32: 0 | N32: 0 | O32: 0 | P32: 0 | Q32: 0 | R32: 0 | S32: 0
B33: ='Lönekostnad FINANSIÄR'!A34 -> 0 | C33: ='År 2'!C33 -> 1700 | D33: ='Lönekostnad FINANSIÄR'!C34*$C33 -> 0 | E33: ='Lönekostnad FINANSIÄR'!D34*$C33 -> 0 | F33: ='Lönekostnad FINANSIÄR'!E34*$C33 -> 0 | G33: ='Lönekostnad FINANSIÄR'!F34*$C33 -> 0 | H33: ='Lönekostnad FINANSIÄR'!G34*$C33 -> 0 | I33: 0 | L33: 0 | N33: 0 | O33: 0 | P33: 0 | Q33: 0 | R33: 0 | S33: 0
B34: ='Lönekostnad FINANSIÄR'!A35 -> 0 | C34: ='År 2'!C34 -> 1700 | D34: ='Lönekostnad FINANSIÄR'!C35*$C34 -> 0 | E34: ='Lönekostnad FINANSIÄR'!D35*$C34 -> 0 | F34: ='Lönekostnad FINANSIÄR'!E35*$C34 -> 0 | G34: ='Lönekostnad FINANSIÄR'!F35*$C34 -> 0 | H34: ='Lönekostnad FINANSIÄR'!G35*$C34 -> 0 | I34: 0 | L34: 0 | N34: 0 | O34: 0 | P34: 0 | Q34: 0 | R34: 0 | S34: 0
B35: ='Lönekostnad FINANSIÄR'!A36 -> 0 | C35: ='År 2'!C35 -> 1700 | D35: ='Lönekostnad FINANSIÄR'!C36*$C35 -> 0 | E35: ='Lönekostnad FINANSIÄR'!D36*$C35 -> 0 | F35: ='Lönekostnad FINANSIÄR'!E36*$C35 -> 0 | G35: ='Lönekostnad FINANSIÄR'!F36*$C35 -> 0 | H35: ='Lönekostnad FINANSIÄR'!G36*$C35 -> 0 | I35: 0 | L35: 0 | N35: 0 | O35: 0 | P35: 0 | Q35: 0 | R35: 0 | S35: 0
B36: ='Lönekostnad FINANSIÄR'!A37 -> 0 | C36: ='År 2'!C36 -> 1700 | D36: ='Lönekostnad FINANSIÄR'!C37*$C36 -> 0 | E36: ='Lönekostnad FINANSIÄR'!D37*$C36 -> 0 | F36: ='Lönekostnad FINANSIÄR'!E37*$C36 -> 0 | G36: ='Lönekostnad FINANSIÄR'!F37*$C36 -> 0 | H36: ='Lönekostnad FINANSIÄR'!G37*$C36 -> 0 | I36: 0 | L36: 0 | N36: 0 | O36: 0 | P36: 0 | Q36: 0 | R36: 0 | S36: 0
B37: ='Lönekostnad FINANSIÄR'!A38 -> 0 | C37: ='År 2'!C37 -> 1700 | D37: ='Lönekostnad FINANSIÄR'!C38*$C37 -> 0 | E37: ='Lönekostnad FINANSIÄR'!D38*$C37 -> 0 | F37: ='Lönekostnad FINANSIÄR'!E38*$C37 -> 0 | G37: ='Lönekostnad FINANSIÄR'!F38*$C37 -> 0 | H37: ='Lönekostnad FINANSIÄR'!G38*$C37 -> 0 | I37: 0 | L37: 0 | N37: 0 | O37: 0 | P37: 0 | Q37: 0 | R37: 0 | S37: 0
B38: ='Lönekostnad FINANSIÄR'!A39 -> 0 | C38: ='År 2'!C38 -> 1700 | D38: ='Lönekostnad FINANSIÄR'!C39*$C38 -> 0 | E38: ='Lönekostnad FINANSIÄR'!D39*$C38 -> 0 | F38: ='Lönekostnad FINANSIÄR'!E39*$C38 -> 0 | G38: ='Lönekostnad FINANSIÄR'!F39*$C38 -> 0 | H38: ='Lönekostnad FINANSIÄR'!G39*$C38 -> 0 | I38: 0 | L38: 0 | N38: 0 | O38: 0 | P38: 0 | Q38: 0 | R38: 0 | S38: 0
B39: ='Lönekostnad FINANSIÄR'!A40 -> 0 | C39: ='År 2'!C39 -> 1700 | D39: ='Lönekostnad FINANSIÄR'!C40*$C39 -> 0 | E39: ='Lönekostnad FINANSIÄR'!D40*$C39 -> 0 | F39: ='Lönekostnad FINANSIÄR'!E40*$C39 -> 0 | G39: ='Lönekostnad FINANSIÄR'!F40*$C39 -> 0 | H39: ='Lönekostnad FINANSIÄR'!G40*$C39 -> 0 | I39: 0 | L39: 0 | N39: 0 | O39: 0 | P39: 0 | Q39: 0 | R39: 0 | S39: 0
B40: Totalt | C40: =SUM(D40:H40) -> 3969.7 | D40: =SUM(D5:D39) -> 990.3 | E40: 990.3 | F40: 990.3 | G40: 998.8 | H40: 0 | I40: 3969.7 | L40: =B40 -> Totalt | M40: =SUM(N40:R40) -> 52.08141176 | N40: =SUM(N5:N39) -> 12.99035294 | O40: 12.99035294 | P40: 12.99035294 | Q40: 13.11035294 | R40: 0 | S40: 52.08141176
D42: Utfall / Prgnos timmar | N42: Omfattning %
D43: =D4 -> År 1 | E43: =E4 -> År 2 | F43: =F4 -> År 3 | G43: =G4 -> År 4 | H43: =H4 -> År 5 | I43: Kr/tim | N43: =D43 -> År 1 | O43: =E43 -> År 2 | P43: =F43 -> År 3 | Q43: =G43 -> År 4 | R43: =H43 -> År 5 | S43: Totalt
B44: =B5 -> Handledning professor | D44: ='År 2'!D44 -> 100 | E44: ='År 2'!E44 -> 150 | F44: 150 | I44: =IFERROR('Lönekostnad FINANSIÄR'!B6*LönePåläggUppräkningÅr3/C5,0) -> 0 | L44: =B44 -> Handledning professor | N44: =IFERROR(D44/$C5,0) -> 0.05882352941 | O44: =IFERROR(E44/$C5,0) -> 0.08823529412 | P44: =IFERROR(F44/$C5,0) -> 0.08823529412 | Q44: =IFERROR(G44/$C5,0) -> 0 | R44: =IFERROR(H44/$C5,0) -> 0 | S44: =SUM(N44:R44) -> 0.2352941176
B45: Handledning lektor | D45: ='År 2'!D45 -> 0 | E45: ='År 2'!E45 -> 150 | F45: 150 | I45: =IFERROR('Lönekostnad FINANSIÄR'!B7*LönePåläggUppräkningÅr3/C6,0) -> 0 | L45: =B45 -> Handledning lektor | N45: 0 | O45: 0.08823529412 | P45: 0.08823529412 | Q45: 0 | R45: 0 | S45: =SUM(N45:R45) -> 0.1764705882
B46: Doktorand (snittlön doktorandtrappa 2019) | D46: ='År 2'!D46 -> 0 | E46: ='År 2'!E46 -> 150 | F46: 150 | I46: =IFERROR('Lönekostnad FINANSIÄR'!B8*LönePåläggUppräkningÅr3/C7,0) -> 0 | L46: Doktorand (snittlön doktorandtrappa 2019) | N46: 0 | O46: 0.1764705882 | P46: 0.1764705882 | Q46: 0 | R46: 0 | S46: 0.3529411765
B47: Opponent | D47: ='År 2'!D47 -> 0 | E47: ='År 2'!E47 -> 150 | F47: 150 | I47: =IFERROR('Lönekostnad FINANSIÄR'!B9*LönePåläggUppräkningÅr3/C8,0) -> 0 | L47: Opponent | N47: 0 | O47: 0.1764705882 | P47: 0.1764705882 | Q47: 0 | R47: 0 | S47: 0.3529411765
B48: Doktorandkurser 60 hp, | D48: ='År 2'!D48 -> 0 | E48: ='År 2'!E48 -> 150 | F48: 150 | I48: =IFERROR('Lönekostnad FINANSIÄR'!B10*LönePåläggUppräkningÅr3/C9,0) -> 0 | L48: Doktorandkurser 60 hp, | N48: 0 | O48: 0.08823529412 | P48: 0.08823529412 | Q48: 0 | R48: 0 | S48: 0.1764705882
B49: (totalt 8 kurser * 7,5 hp 20 timmar/kurs för doktoranden) | D49: ='År 2'!D49 -> 0 | E49: ='År 2'!E49 -> 150 | F49: 150 | I49: =IFERROR('Lönekostnad FINANSIÄR'!B11*LönePåläggUppräkningÅr3/C10,0) -> 0 | L49: (totalt 8 kurser * 7,5 hp 20 timmar/kurs för doktoranden) | N49: 0 | O49: 0.08823529412 | P49: 0.08823529412 | Q49: 0 | R49: 0 | S49: 0.1764705882
B50: 0 | D50: ='År 2'!D50 -> 0 | E50: ='År 2'!E50 -> 150 | F50: 150 | I50: =IFERROR('Lönekostnad FINANSIÄR'!B12*LönePåläggUppräkningÅr3/C11,0) -> 0 | L50: 0 | N50: 0 | O50: 0.08823529412 | P50: 0.08823529412 | Q50: 0 | R50: 0 | S50: 0.1764705882
B51: 0 | D51: ='År 2'!D51 -> 0 | E51: ='År 2'!E51 -> 150 | F51: 150 | I51: =IFERROR('Lönekostnad FINANSIÄR'!B13*LönePåläggUppräkningÅr3/C12,0) -> 0 | L51: 0 | N51: 0 | O51: 0.08823529412 | P51: 0.08823529412 | Q51: 0 | R51: 0 | S51: 0.1764705882
B52: 0 | D52: ='År 2'!D52 -> 0 | E52: ='År 2'!E52 -> 150 | F52: 150 | I52: =IFERROR('Lönekostnad FINANSIÄR'!B14*LönePåläggUppräkningÅr3/C13,0) -> 0 | L52: 0 | N52: 0 | O52: 0.08823529412 | P52: 0.08823529412 | Q52: 0 | R52: 0 | S52: 0.1764705882
B53: 0 | D53: ='År 2'!D53 -> 0 | E53: ='År 2'!E53 -> 150 | F53: 150 | I53: =IFERROR('Lönekostnad FINANSIÄR'!B15*LönePåläggUppräkningÅr3/C14,0) -> 0 | L53: 0 | N53: 0 | O53: 0.08823529412 | P53: 0.08823529412 | Q53: 0 | R53: 0 | S53: 0.1764705882
B54: 0 | D54: ='År 2'!D54 -> 0 | E54: ='År 2'!E54 -> 150 | F54: 150 | I54: =IFERROR('Lönekostnad FINANSIÄR'!B16*LönePåläggUppräkningÅr3/C15,0) -> 0 | L54: =B54 -> 0 | N54: 0 | O54: 0.08823529412 | P54: 0.08823529412 | Q54: 0 | R54: 0 | S54: =SUM(N54:R54) -> 0.1764705882
B55: 0 | D55: ='År 2'!D55 -> 0 | E55: ='År 2'!E55 -> 150 | F55: 150 | I55: =IFERROR('Lönekostnad FINANSIÄR'!B17*LönePåläggUppräkningÅr3/C16,0) -> 0 | L55: =B55 -> 0 | N55: 0 | O55: 0.08823529412 | P55: 0.08823529412 | Q55: 0 | R55: 0 | S55: =SUM(N55:R55) -> 0.1764705882
B56: 0 | D56: ='År 2'!D56 -> 0 | E56: ='År 2'!E56 -> 150 | F56: 150 | I56: =IFERROR('Lönekostnad FINANSIÄR'!B18*LönePåläggUppräkningÅr3/C17,0) -> 0 | L56: =B56 -> 0 | N56: 0 | O56: 0.08823529412 | P56: 0.08823529412 | Q56: 0 | R56: 0 | S56: =SUM(N56:R56) -> 0.1764705882
B57: 0 | D57: ='År 2'!D57 -> 0 | E57: ='År 2'!E57 -> 150 | F57: 150 | I57: =IFERROR('Lönekostnad FINANSIÄR'!B19*LönePåläggUppräkningÅr3/C18,0) -> 0 | L57: =B57 -> 0 | N57: 0 | O57: 0.08823529412 | P57: 0.08823529412 | Q57: 0 | R57: 0 | S57: =SUM(N57:R57) -> 0.1764705882
B58: 0 | D58: ='År 2'!D58 -> 0 | E58: ='År 2'!E58 -> 150 | F58: 150 | I58: =IFERROR('Lönekostnad FINANSIÄR'!B20*LönePåläggUppräkningÅr3/C19,0) -> 0 | L58: =B58 -> 0 | N58: 0 | O58: 0.08823529412 | P58: 0.08823529412 | Q58: 0 | R58: 0 | S58: =SUM(N58:R58) -> 0.1764705882
B59: 0 | D59: ='År 2'!D59 -> 0 | E59: ='År 2'!E59 -> 150 | F59: 150 | I59: =IFERROR('Lönekostnad FINANSIÄR'!B21*LönePåläggUppräkningÅr3/C20,0) -> 0 | L59: =B59 -> 0 | N59: =IFERROR(D59/$C20,0) -> 0 | O59: =IFERROR(E59/$C20,0) -> 0.08823529412 | P59: =IFERROR(F59/$C20,0) -> 0.08823529412 | Q59: =IFERROR(G59/$C20,0) -> 0 | R59: =IFERROR(H59/$C20,0) -> 0 | S59: =SUM(N59:R59) -> 0.1764705882
B60: 0 | D60: ='År 2'!D60 -> 0 | E60: ='År 2'!E60 -> 170 | F60: 170 | I60: =IFERROR('Lönekostnad FINANSIÄR'!B22*LönePåläggUppräkningÅr3/C21,0) -> 0 | L60: 0 | N60: 0 | O60: 0.1 | P60: 0.1 | Q60: 0 | R60: 0 | S60: 0.2
B61: 0 | D61: ='År 2'!D61 -> 0 | E61: ='År 2'!E61 -> 170 | F61: 170 | I61: =IFERROR('Lönekostnad FINANSIÄR'!B23*LönePåläggUppräkningÅr3/C22,0) -> 0 | L61: 0 | N61: 0 | O61: 0.1 | P61: 0.1 | Q61: 0 | R61: 0 | S61: 0.2
B62: 0 | D62: ='År 2'!D62 -> 0 | E62: ='År 2'!E62 -> 170 | F62: 170 | I62: =IFERROR('Lönekostnad FINANSIÄR'!B24*LönePåläggUppräkningÅr3/C23,0) -> 0 | L62: 0 | N62: 0 | O62: 0.1 | P62: 0.1 | Q62: 0 | R62: 0 | S62: 0.2
B63: 0 | D63: ='År 2'!D63 -> 0 | E63: ='År 2'!E63 -> 170 | F63: 170 | I63: =IFERROR('Lönekostnad FINANSIÄR'!B25*LönePåläggUppräkningÅr3/C24,0) -> 0 | L63: 0 | N63: 0 | O63: 0.1 | P63: 0.1 | Q63: 0 | R63: 0 | S63: 0.2
B64: 0 | D64: ='År 2'!D64 -> 0 | E64: ='År 2'!E64 -> 170 | F64: 170 | I64: =IFERROR('Lönekostnad FINANSIÄR'!B26*LönePåläggUppräkningÅr3/C25,0) -> 0 | L64: 0 | N64: 0 | O64: 0.1 | P64: 0.1 | Q64: 0 | R64: 0 | S64: 0.2
B65: 0 | D65: ='År 2'!D65 -> 0 | E65: ='År 2'!E65 -> 170 | F65: 170 | I65: =IFERROR('Lönekostnad FINANSIÄR'!B27*LönePåläggUppräkningÅr3/C26,0) -> 0 | L65: 0 | N65: 0 | O65: 0.1 | P65: 0.1 | Q65: 0 | R65: 0 | S65: 0.2
B66: 0 | D66: ='År 2'!D66 -> 0 | E66: ='År 2'!E66 -> 170 | F66: 170 | I66: =IFERROR('Lönekostnad FINANSIÄR'!B28*LönePåläggUppräkningÅr3/C27,0) -> 0 | L66: 0 | N66: 0 | O66: 0.1 | P66: 0.1 | Q66: 0 | R66: 0 | S66: 0.2
B67: 0 | D67: ='År 2'!D67 -> 0 | E67: ='År 2'!E67 -> 170 | F67: 170 | I67: =IFERROR('Lönekostnad FINANSIÄR'!B29*LönePåläggUppräkningÅr3/C28,0) -> 0 | L67: 0 | N67: 0 | O67: 0.1 | P67: 0.1 | Q67: 0 | R67: 0 | S67: 0.2
B68: 0 | D68: ='År 2'!D68 -> 0 | E68: ='År 2'!E68 -> 170 | F68: 170 | I68: =IFERROR('Lönekostnad FINANSIÄR'!B30*LönePåläggUppräkningÅr3/C29,0) -> 0 | L68: 0 | N68: 0 | O68: 0.1 | P68: 0.1 | Q68: 0 | R68: 0 | S68: 0.2
B69: 0 | D69: ='År 2'!D69 -> 0 | E69: ='År 2'!E69 -> 170 | F69: 170 | I69: =IFERROR('Lönekostnad FINANSIÄR'!B31*LönePåläggUppräkningÅr3/C30,0) -> 0 | L69: 0 | N69: 0 | O69: 0.1 | P69: 0.1 | Q69: 0 | R69: 0 | S69: 0.2
B70: 0 | D70: ='År 2'!D70 -> 0 | E70: ='År 2'!E70 -> 170 | F70: 170 | I70: =IFERROR('Lönekostnad FINANSIÄR'!B32*LönePåläggUppräkningÅr3/C31,0) -> 0 | L70: 0 | N70: 0 | O70: 0.1 | P70: 0.1 | Q70: 0 | R70: 0 | S70: 0.2
B71: 0 | D71: ='År 2'!D71 -> 0 | E71: ='År 2'!E71 -> 170 | F71: 170 | I71: =IFERROR('Lönekostnad FINANSIÄR'!B33*LönePåläggUppräkningÅr3/C32,0) -> 0 | L71: 0 | N71: 0 | O71: 0.1 | P71: 0.1 | Q71: 0 | R71: 0 | S71: 0.2
B72: 0 | D72: ='År 2'!D72 -> 0 | E72: ='År 2'!E72 -> 170 | F72: 170 | I72: =IFERROR('Lönekostnad FINANSIÄR'!B34*LönePåläggUppräkningÅr3/C33,0) -> 0 | L72: 0 | N72: 0 | O72: 0.1 | P72: 0.1 | Q72: 0 | R72: 0 | S72: 0.2
B73: 0 | D73: ='År 2'!D73 -> 0 | E73: ='År 2'!E73 -> 170 | F73: 170 | I73: =IFERROR('Lönekostnad FINANSIÄR'!B35*LönePåläggUppräkningÅr3/C34,0) -> 0 | L73: 0 | N73: 0 | O73: 0.1 | P73: 0.1 | Q73: 0 | R73: 0 | S73: 0.2
B74: 0 | D74: ='År 2'!D74 -> 0 | E74: ='År 2'!E74 -> 170 | F74: 170 | I74: =IFERROR('Lönekostnad FINANSIÄR'!B36*LönePåläggUppräkningÅr3/C35,0) -> 0 | L74: 0 | N74: 0 | O74: 0.1 | P74: 0.1 | Q74: 0 | R74: 0 | S74: 0.2
B75: 0 | D75: ='År 2'!D75 -> 0 | E75: ='År 2'!E75 -> 170 | F75: 170 | I75: =IFERROR('Lönekostnad FINANSIÄR'!B37*LönePåläggUppräkningÅr3/C36,0) -> 0 | L75: 0 | N75: 0 | O75: 0.1 | P75: 0.1 | Q75: 0 | R75: 0 | S75: 0.2
B76: 0 | D76: ='År 2'!D76 -> 0 | E76: ='År 2'!E76 -> 170 | F76: 170 | I76: =IFERROR('Lönekostnad FINANSIÄR'!B38*LönePåläggUppräkningÅr3/C37,0) -> 0 | L76: 0 | N76: 0 | O76: 0.1 | P76: 0.1 | Q76: 0 | R76: 0 | S76: 0.2
B77: 0 | D77: ='År 2'!D77 -> 0 | E77: ='År 2'!E77 -> 170 | F77: 170 | I77: =IFERROR('Lönekostnad FINANSIÄR'!B39*LönePåläggUppräkningÅr3/C38,0) -> 0 | L77: 0 | N77: 0 | O77: 0.1 | P77: 0.1 | Q77: 0 | R77: 0 | S77: 0.2
B78: 0 | D78: ='År 2'!D78 -> 0 | E78: ='År 2'!E78 -> 170 | F78: 170 | I78: =IFERROR('Lönekostnad FINANSIÄR'!B40*LönePåläggUppräkningÅr3/C39,0) -> 0 | L78: 0 | N78: 0 | O78: 0.1 | P78: 0.1 | Q78: 0 | R78: 0 | S78: 0.2
B79: =B40 -> Totalt | C79: =SUM(D79:H79) -> 11360 | D79: =SUM(D44:D78) -> 100 | E79: =SUM(E44:E78) -> 5630 | F79: =SUM(F44:F78) -> 5630 | G79: =SUM(G44:G78) -> 0 | H79: =SUM(H44:H78) -> 0 | L79: =B79 -> Totalt | M79: =SUM(N79:R79) -> 7.035294118 | N79: =SUM(N44:N78) -> 0.05882352941 | O79: 3.488235294 | P79: 3.488235294 | Q79: 0 | R79: 0 | S79: 7.035294118

Sheet År 4 (hidden)
B1: ="Projekt: "&Grunduppgifter!$B$5 -> Projekt:
D3: Budget timmar (ev. reviderad) | J3: Godkännande | N3: Manmånader
D4: ='Lönekostnad FINANSIÄR'!C5 -> År 1 | E4: ='Lönekostnad FINANSIÄR'!D5 -> År 2 | F4: ='Lönekostnad FINANSIÄR'!E5 -> År 3 | G4: ='Lönekostnad FINANSIÄR'!F5 -> År 4 | H4: ='Lönekostnad FINANSIÄR'!G5 -> År 5 | I4: Totalt | J4: SC/SR | N4: =D4 -> År 1 | O4: =E4 -> År 2 | P4: =F4 -> År 3 | Q4: =G4 -> År 4 | R4: =H4 -> År 5 | S4: Totalt
B5: ='Lönekostnad FINANSIÄR'!A6 -> Handledning professor | C5: ='År 3'!C5 -> 1700 | D5: ='Lönekostnad FINANSIÄR'!C6*$C5 -> 50.15 | E5: ='Lönekostnad FINANSIÄR'!D6*$C5 -> 50.15 | F5: ='Lönekostnad FINANSIÄR'!E6*$C5 -> 50.15 | G5: ='Lönekostnad FINANSIÄR'!F6*$C5 -> 50.15 | H5: ='Lönekostnad FINANSIÄR'!G6*$C5 -> 0 | I5: =SUM(D5:H5) -> 200.6 | L5: =B5 -> Handledning professor | N5: =IFERROR(D5/($C5/12),0) -> 0.354 | O5: =IFERROR(E5/($C5/12),0) -> 0.354 | P5: 0.354 | Q5: 0.354 | R5: 0 | S5: =SUM(N5:R5) -> 1.416
B6: ='Lönekostnad FINANSIÄR'!A7 -> Handledning lektor | C6: ='År 3'!C6 -> 1700 | D6: ='Lönekostnad FINANSIÄR'!C7*$C6 -> 50.15 | E6: ='Lönekostnad FINANSIÄR'!D7*$C6 -> 50.15 | F6: ='Lönekostnad FINANSIÄR'!E7*$C6 -> 50.15 | G6: ='Lönekostnad FINANSIÄR'!F7*$C6 -> 50.15 | H6: ='Lönekostnad FINANSIÄR'!G7*$C6 -> 0 | I6: =SUM(D6:H6) -> 200.6 | L6: =B6 -> Handledning lektor | N6: =IFERROR(D6/($C6/12),0) -> 0.354 | O6: 0.354 | P6: 0.354 | Q6: 0.354 | R6: 0 | S6: =SUM(N6:R6) -> 1.416
B7: ='Lönekostnad FINANSIÄR'!A8 -> Doktorand (snittlön doktorandtrappa 2019) | C7: ='År 3'!C7 -> 850 | D7: ='Lönekostnad FINANSIÄR'!C8*$C7 -> 850 | E7: ='Lönekostnad FINANSIÄR'!D8*$C7 -> 850 | F7: ='Lönekostnad FINANSIÄR'!E8*$C7 -> 850 | G7: ='Lönekostnad FINANSIÄR'!F8*$C7 -> 850 | H7: ='Lönekostnad FINANSIÄR'!G8*$C7 -> 0 | I7: =SUM(D7:H7) -> 3400 | L7: Doktorand (snittlön doktorandtrappa 2019) | N7: =IFERROR(D7/($C7/12),0) -> 12 | O7: 12 | P7: 12 | Q7: 12 | R7: 0 | S7: 48
B8: ='Lönekostnad FINANSIÄR'!A9 -> Opponent | C8: ='År 3'!C8 -> 850 | D8: ='Lönekostnad FINANSIÄR'!C9*$C8 -> 0 | E8: ='Lönekostnad FINANSIÄR'!D9*$C8 -> 0 | F8: ='Lönekostnad FINANSIÄR'!E9*$C8 -> 0 | G8: ='Lönekostnad FINANSIÄR'!F9*$C8 -> 8.5 | H8: ='Lönekostnad FINANSIÄR'!G9*$C8 -> 0 | I8: =SUM(D8:H8) -> 8.5 | L8: Opponent | N8: =IFERROR(D8/($C8/12),0) -> 0 | O8: =IFERROR(E8/($C8/12),0) -> 0 | P8: =IFERROR(F8/($C8/12),0) -> 0 | Q8: =IFERROR(G8/($C8/12),0) -> 0.12 | R8: =IFERROR(H8/($C8/12),0) -> 0 | S8: 0.12
B9: ='Lönekostnad FINANSIÄR'!A10 -> Doktorandkurser 60 hp, | C9: ='År 3'!C9 -> 1700 | D9: ='Lönekostnad FINANSIÄR'!C10*$C9 -> 40 | E9: ='Lönekostnad FINANSIÄR'!D10*$C9 -> 40 | F9: ='Lönekostnad FINANSIÄR'!E10*$C9 -> 40 | G9: ='Lönekostnad FINANSIÄR'!F10*$C9 -> 40 | H9: ='Lönekostnad FINANSIÄR'!G10*$C9 -> 0 | I9: 160 | L9: Doktorandkurser 60 hp, | N9: 0.2823529412 | O9: 0.2823529412 | P9: 0.2823529412 | Q9: 0.2823529412 | R9: 0 | S9: 1.129411765
B10: ='Lönekostnad FINANSIÄR'!A11 -> (totalt 8 kurser * 7,5 hp 20 timmar/kurs för doktoranden) | C10: ='År 3'!C10 -> 1700 | D10: ='Lönekostnad FINANSIÄR'!C11*$C10 -> 0 | E10: ='Lönekostnad FINANSIÄR'!D11*$C10 -> 0 | F10: ='Lönekostnad FINANSIÄR'!E11*$C10 -> 0 | G10: ='Lönekostnad FINANSIÄR'!F11*$C10 -> 0 | H10: ='Lönekostnad FINANSIÄR'!G11*$C10 -> 0 | I10: 0 | L10: (totalt 8 kurser * 7,5 hp 20 timmar/kurs för doktoranden) | N10: 0 | O10: 0 | P10: 0 | Q10: 0 | R10: 0 | S10: 0
B11: ='Lönekostnad FINANSIÄR'!A12 -> 0 | C11: ='År 3'!C11 -> 1700 | D11: ='Lönekostnad FINANSIÄR'!C12*$C11 -> 0 | E11: ='Lönekostnad FINANSIÄR'!D12*$C11 -> 0 | F11: ='Lönekostnad FINANSIÄR'!E12*$C11 -> 0 | G11: ='Lönekostnad FINANSIÄR'!F12*$C11 -> 0 | H11: ='Lönekostnad FINANSIÄR'!G12*$C11 -> 0 | I11: 0 | L11: 0 | N11: 0 | O11: 0 | P11: 0 | Q11: 0 | R11: 0 | S11: 0
B12: ='Lönekostnad FINANSIÄR'!A13 -> 0 | C12: ='År 3'!C12 -> 1700 | D12: ='Lönekostnad FINANSIÄR'!C13*$C12 -> 0 | E12: ='Lönekostnad FINANSIÄR'!D13*$C12 -> 0 | F12: ='Lönekostnad FINANSIÄR'!E13*$C12 -> 0 | G12: ='Lönekostnad FINANSIÄR'!F13*$C12 -> 0 | H12: ='Lönekostnad FINANSIÄR'!G13*$C12 -> 0 | I12: 0 | L12: 0 | N12: 0 | O12: 0 | P12: 0 | Q12: 0 | R12: 0 | S12: 0
B13: ='Lönekostnad FINANSIÄR'!A14 -> 0 | C13: ='År 3'!C13 -> 1700 | D13: ='Lönekostnad FINANSIÄR'!C14*$C13 -> 0 | E13: ='Lönekostnad FINANSIÄR'!D14*$C13 -> 0 | F13: ='Lönekostnad FINANSIÄR'!E14*$C13 -> 0 | G13: ='Lönekostnad FINANSIÄR'!F14*$C13 -> 0 | H13: ='Lönekostnad FINANSIÄR'!G14*$C13 -> 0 | I13: 0 | L13: 0 | N13: 0 | O13: 0 | P13: 0 | Q13: 0 | R13: 0 | S13: 0
B14: ='Lönekostnad FINANSIÄR'!A15 -> 0 | C14: ='År 3'!C14 -> 1700 | D14: ='Lönekostnad FINANSIÄR'!C15*$C14 -> 0 | E14: ='Lönekostnad FINANSIÄR'!D15*$C14 -> 0 | F14: ='Lönekostnad FINANSIÄR'!E15*$C14 -> 0 | G14: ='Lönekostnad FINANSIÄR'!F15*$C14 -> 0 | H14: ='Lönekostnad FINANSIÄR'!G15*$C14 -> 0 | I14: 0 | L14: 0 | N14: 0 | O14: 0 | P14: 0 | Q14: 0 | R14: 0 | S14: 0
B15: ='Lönekostnad FINANSIÄR'!A16 -> 0 | C15: ='År 3'!C15 -> 1700 | D15: ='Lönekostnad FINANSIÄR'!C16*$C15 -> 0 | E15: ='Lönekostnad FINANSIÄR'!D16*$C15 -> 0 | F15: ='Lönekostnad FINANSIÄR'!E16*$C15 -> 0 | G15: ='Lönekostnad FINANSIÄR'!F16*$C15 -> 0 | H15: ='Lönekostnad FINANSIÄR'!G16*$C15 -> 0 | I15: =SUM(D15:H15) -> 0 | L15: =B15 -> 0 | N15: =IFERROR(D15/($C15/12),0) -> 0 | O15: 0 | P15: 0 | Q15: 0 | R15: 0 | S15: =SUM(N15:R15) -> 0
B16: ='Lönekostnad FINANSIÄR'!A17 -> 0 | C16: ='År 3'!C16 -> 1700 | D16: ='Lönekostnad FINANSIÄR'!C17*$C16 -> 0 | E16: ='Lönekostnad FINANSIÄR'!D17*$C16 -> 0 | F16: ='Lönekostnad FINANSIÄR'!E17*$C16 -> 0 | G16: ='Lönekostnad FINANSIÄR'!F17*$C16 -> 0 | H16: ='Lönekostnad FINANSIÄR'!G17*$C16 -> 0 | I16: =SUM(D16:H16) -> 0 | L16: =B16 -> 0 | N16: 0 | O16: 0 | P16: 0 | Q16: 0 | R16: 0 | S16: =SUM(N16:R16) -> 0
B17: ='Lönekostnad FINANSIÄR'!A18 -> 0 | C17: ='År 3'!C17 -> 1700 | D17: ='Lönekostnad FINANSIÄR'!C18*$C17 -> 0 | E17: ='Lönekostnad FINANSIÄR'!D18*$C17 -> 0 | F17: ='Lönekostnad FINANSIÄR'!E18*$C17 -> 0 | G17: ='Lönekostnad FINANSIÄR'!F18*$C17 -> 0 | H17: ='Lönekostnad FINANSIÄR'!G18*$C17 -> 0 | I17: =SUM(D17:H17) -> 0 | L17: =B17 -> 0 | N17: 0 | O17: 0 | P17: 0 | Q17: 0 | R17: 0 | S17: =SUM(N17:R17) -> 0
B18: ='Lönekostnad FINANSIÄR'!A19 -> 0 | C18: ='År 3'!C18 -> 1700 | D18: ='Lönekostnad FINANSIÄR'!C19*$C18 -> 0 | E18: ='Lönekostnad FINANSIÄR'!D19*$C18 -> 0 | F18: ='Lönekostnad FINANSIÄR'!E19*$C18 -> 0 | G18: ='Lönekostnad FINANSIÄR'!F19*$C18 -> 0 | H18: ='Lönekostnad FINANSIÄR'!G19*$C18 -> 0 | I18: =SUM(D18:H18) -> 0 | L18: =B18 -> 0 | N18: 0 | O18: 0 | P18: 0 | Q18: 0 | R18: 0 | S18: =SUM(N18:R18) -> 0
B19: ='Lönekostnad FINANSIÄR'!A20 -> 0 | C19: ='År 3'!C19 -> 1700 | D19: ='Lönekostnad FINANSIÄR'!C20*$C19 -> 0 | E19: ='Lönekostnad FINANSIÄR'!D20*$C19 -> 0 | F19: ='Lönekostnad FINANSIÄR'!E20*$C19 -> 0 | G19: ='Lönekostnad FINANSIÄR'!F20*$C19 -> 0 | H19: ='Lönekostnad FINANSIÄR'!G20*$C19 -> 0 | I19: =SUM(D19:H19) -> 0 | L19: =B19 -> 0 | N19: 0 | O19: 0 | P19: 0 | Q19: 0 | R19: 0 | S19: =SUM(N19:R19) -> 0
B20: ='Lönekostnad FINANSIÄR'!A21 -> 0 | C20: ='År 3'!C20 -> 1700 | D20: ='Lönekostnad FINANSIÄR'!C21*$C20 -> 0 | E20: ='Lönekostnad FINANSIÄR'!D21*$C20 -> 0 | F20: ='Lönekostnad FINANSIÄR'!E21*$C20 -> 0 | G20: ='Lönekostnad FINANSIÄR'!F21*$C20 -> 0 | H20: ='Lönekostnad FINANSIÄR'!G21*$C20 -> 0 | I20: =SUM(D20:H20) -> 0 | L20: =B20 -> 0 | N20: =IFERROR(D20/($C20/12),0) -> 0 | O20: =IFERROR(E20/($C20/12),0) -> 0 | P20: =IFERROR(F20/($C20/12),0) -> 0 | Q20: =IFERROR(G20/($C20/12),0) -> 0 | R20: =IFERROR(H20/($C20/12),0) -> 0 | S20: =SUM(N20:R20) -> 0
B21: ='Lönekostnad FINANSIÄR'!A22 -> 0 | C21: ='År 3'!C21 -> 1700 | D21: ='Lönekostnad FINANSIÄR'!C22*$C21 -> 0 | E21: ='Lönekostnad FINANSIÄR'!D22*$C21 -> 0 | F21: ='Lönekostnad FINANSIÄR'!E22*$C21 -> 0 | G21: ='Lönekostnad FINANSIÄR'!F22*$C21 -> 0 | H21: ='Lönekostnad FINANSIÄR'!G22*$C21 -> 0 | I21: 0 | L21: 0 | N21: 0 | O21: 0 | P21: 0 | Q21: 0 | R21: 0 | S21: 0
B22: ='Lönekostnad FINANSIÄR'!A23 -> 0 | C22: ='År 3'!C22 -> 1700 | D22: ='Lönekostnad FINANSIÄR'!C23*$C22 -> 0 | E22: ='Lönekostnad FINANSIÄR'!D23*$C22 -> 0 | F22: ='Lönekostnad FINANSIÄR'!E23*$C22 -> 0 | G22: ='Lönekostnad FINANSIÄR'!F23*$C22 -> 0 | H22: ='Lönekostnad FINANSIÄR'!G23*$C22 -> 0 | I22: 0 | L22: 0 | N22: 0 | O22: 0 | P22: 0 | Q22: 0 | R22: 0 | S22: 0
B23: ='Lönekostnad FINANSIÄR'!A24 -> 0 | C23: ='År 3'!C23 -> 1700 | D23: ='Lönekostnad FINANSIÄR'!C24*$C23 -> 0 | E23: ='Lönekostnad FINANSIÄR'!D24*$C23 -> 0 | F23: ='Lönekostnad FINANSIÄR'!E24*$C23 -> 0 | G23: ='Lönekostnad FINANSIÄR'!F24*$C23 -> 0 | H23: ='Lönekostnad FINANSIÄR'!G24*$C23 -> 0 | I23: 0 | L23: 0 | N23: 0 | O23: 0 | P23: 0 | Q23: 0 | R23: 0 | S23: 0
B24: ='Lönekostnad FINANSIÄR'!A25 -> 0 | C24: ='År 3'!C24 -> 1700 | D24: ='Lönekostnad FINANSIÄR'!C25*$C24 -> 0 | E24: ='Lönekostnad FINANSIÄR'!D25*$C24 -> 0 | F24: ='Lönekostnad FINANSIÄR'!E25*$C24 -> 0 | G24: ='Lönekostnad FINANSIÄR'!F25*$C24 -> 0 | H24: ='Lönekostnad FINANSIÄR'!G25*$C24 -> 0 | I24: 0 | L24: 0 | N24: 0 | O24: 0 | P24: 0 | Q24: 0 | R24: 0 | S24: 0
B25: ='Lönekostnad FINANSIÄR'!A26 -> 0 | C25: ='År 3'!C25 -> 1700 | D25: ='Lönekostnad FINANSIÄR'!C26*$C25 -> 0 | E25: ='Lönekostnad FINANSIÄR'!D26*$C25 -> 0 | F25: ='Lönekostnad FINANSIÄR'!E26*$C25 -> 0 | G25: ='Lönekostnad FINANSIÄR'!F26*$C25 -> 0 | H25: ='Lönekostnad FINANSIÄR'!G26*$C25 -> 0 | I25: 0 | L25: 0 | N25: 0 | O25: 0 | P25: 0 | Q25: 0 | R25: 0 | S25: 0
B26: ='Lönekostnad FINANSIÄR'!A27 -> 0 | C26: ='År 3'!C26 -> 1700 | D26: ='Lönekostnad FINANSIÄR'!C27*$C26 -> 0 | E26: ='Lönekostnad FINANSIÄR'!D27*$C26 -> 0 | F26: ='Lönekostnad FINANSIÄR'!E27*$C26 -> 0 | G26: ='Lönekostnad FINANSIÄR'!F27*$C26 -> 0 | H26: ='Lönekostnad FINANSIÄR'!G27*$C26 -> 0 | I26: 0 | L26: 0 | N26: 0 | O26: 0 | P26: 0 | Q26: 0 | R26: 0 | S26: 0
B27: ='Lönekostnad FINANSIÄR'!A28 -> 0 | C27: ='År 3'!C27 -> 1700 | D27: ='Lönekostnad FINANSIÄR'!C28*$C27 -> 0 | E27: ='Lönekostnad FINANSIÄR'!D28*$C27 -> 0 | F27: ='Lönekostnad FINANSIÄR'!E28*$C27 -> 0 | G27: ='Lönekostnad FINANSIÄR'!F28*$C27 -> 0 | H27: ='Lönekostnad FINANSIÄR'!G28*$C27 -> 0 | I27: 0 | L27: 0 | N27: 0 | O27: 0 | P27: 0 | Q27: 0 | R27: 0 | S27: 0
B28: ='Lönekostnad FINANSIÄR'!A29 -> 0 | C28: ='År 3'!C28 -> 1700 | D28: ='Lönekostnad FINANSIÄR'!C29*$C28 -> 0 | E28: ='Lönekostnad FINANSIÄR'!D29*$C28 -> 0 | F28: ='Lönekostnad FINANSIÄR'!E29*$C28 -> 0 | G28: ='Lönekostnad FINANSIÄR'!F29*$C28 -> 0 | H28: ='Lönekostnad FINANSIÄR'!G29*$C28 -> 0 | I28: 0 | L28: 0 | N28: 0 | O28: 0 | P28: 0 | Q28: 0 | R28: 0 | S28: 0
B29: ='Lönekostnad FINANSIÄR'!A30 -> 0 | C29: ='År 3'!C29 -> 1700 | D29: ='Lönekostnad FINANSIÄR'!C30*$C29 -> 0 | E29: ='Lönekostnad FINANSIÄR'!D30*$C29 -> 0 | F29: ='Lönekostnad FINANSIÄR'!E30*$C29 -> 0 | G29: ='Lönekostnad FINANSIÄR'!F30*$C29 -> 0 | H29: ='Lönekostnad FINANSIÄR'!G30*$C29 -> 0 | I29: 0 | L29: 0 | N29: 0 | O29: 0 | P29: 0 | Q29: 0 | R29: 0 | S29: 0
B30: ='Lönekostnad FINANSIÄR'!A31 -> 0 | C30: ='År 3'!C30 -> 1700 | D30: ='Lönekostnad FINANSIÄR'!C31*$C30 -> 0 | E30: ='Lönekostnad FINANSIÄR'!D31*$C30 -> 0 | F30: ='Lönekostnad FINANSIÄR'!E31*$C30 -> 0 | G30: ='Lönekostnad FINANSIÄR'!F31*$C30 -> 0 | H30: ='Lönekostnad FINANSIÄR'!G31*$C30 -> 0 | I30: 0 | L30: 0 | N30: 0 | O30: 0 | P30: 0 | Q30: 0 | R30: 0 | S30: 0
B31: ='Lönekostnad FINANSIÄR'!A32 -> 0 | C31: ='År 3'!C31 -> 1700 | D31: ='Lönekostnad FINANSIÄR'!C32*$C31 -> 0 | E31: ='Lönekostnad FINANSIÄR'!D32*$C31 -> 0 | F31: ='Lönekostnad FINANSIÄR'!E32*$C31 -> 0 | G31: ='Lönekostnad FINANSIÄR'!F32*$C31 -> 0 | H31: ='Lönekostnad FINANSIÄR'!G32*$C31 -> 0 | I31: 0 | L31: 0 | N31: 0 | O31: 0 | P31: 0 | Q31: 0 | R31: 0 | S31: 0
B32: ='Lönekostnad FINANSIÄR'!A33 -> 0 | C32: ='År 3'!C32 -> 1700 | D32: ='Lönekostnad FINANSIÄR'!C33*$C32 -> 0 | E32: ='Lönekostnad FINANSIÄR'!D33*$C32 -> 0 | F32: ='Lönekostnad FINANSIÄR'!E33*$C32 -> 0 | G32: ='Lönekostnad FINANSIÄR'!F33*$C32 -> 0 | H32: ='Lönekostnad FINANSIÄR'!G33*$C32 -> 0 | I32: 0 | L32: 0 | N32: 0 | O32: 0 | P32: 0 | Q32: 0 | R32: 0 | S32: 0
B33: ='Lönekostnad FINANSIÄR'!A34 -> 0 | C33: ='År 3'!C33 -> 1700 | D33: ='Lönekostnad FINANSIÄR'!C34*$C33 -> 0 | E33: ='Lönekostnad FINANSIÄR'!D34*$C33 -> 0 | F33: ='Lönekostnad FINANSIÄR'!E34*$C33 -> 0 | G33: ='Lönekostnad FINANSIÄR'!F34*$C33 -> 0 | H33: ='Lönekostnad FINANSIÄR'!G34*$C33 -> 0 | I33: 0 | L33: 0 | N33: 0 | O33: 0 | P33: 0 | Q33: 0 | R33: 0 | S33: 0
B34: ='Lönekostnad FINANSIÄR'!A35 -> 0 | C34: ='År 3'!C34 -> 1700 | D34: ='Lönekostnad FINANSIÄR'!C35*$C34 -> 0 | E34: ='Lönekostnad FINANSIÄR'!D35*$C34 -> 0 | F34: ='Lönekostnad FINANSIÄR'!E35*$C34 -> 0 | G34: ='Lönekostnad FINANSIÄR'!F35*$C34 -> 0 | H34: ='Lönekostnad FINANSIÄR'!G35*$C34 -> 0 | I34: 0 | L34: 0 | N34: 0 | O34: 0 | P34: 0 | Q34: 0 | R34: 0 | S34: 0
B35: ='Lönekostnad FINANSIÄR'!A36 -> 0 | C35: ='År 3'!C35 -> 1700 | D35: ='Lönekostnad FINANSIÄR'!C36*$C35 -> 0 | E35: ='Lönekostnad FINANSIÄR'!D36*$C35 -> 0 | F35: ='Lönekostnad FINANSIÄR'!E36*$C35 -> 0 | G35: ='Lönekostnad FINANSIÄR'!F36*$C35 -> 0 | H35: ='Lönekostnad FINANSIÄR'!G36*$C35 -> 0 | I35: 0 | L35: 0 | N35: 0 | O35: 0 | P35: 0 | Q35: 0 | R35: 0 | S35: 0
B36: ='Lönekostnad FINANSIÄR'!A37 -> 0 | C36: ='År 3'!C36 -> 1700 | D36: ='Lönekostnad FINANSIÄR'!C37*$C36 -> 0 | E36: ='Lönekostnad FINANSIÄR'!D37*$C36 -> 0 | F36: ='Lönekostnad FINANSIÄR'!E37*$C36 -> 0 | G36: ='Lönekostnad FINANSIÄR'!F37*$C36 -> 0 | H36: ='Lönekostnad FINANSIÄR'!G37*$C36 -> 0 | I36: 0 | L36: 0 | N36: 0 | O36: 0 | P36: 0 | Q36: 0 | R36: 0 | S36: 0
B37: ='Lönekostnad FINANSIÄR'!A38 -> 0 | C37: ='År 3'!C37 -> 1700 | D37: ='Lönekostnad FINANSIÄR'!C38*$C37 -> 0 | E37: ='Lönekostnad FINANSIÄR'!D38*$C37 -> 0 | F37: ='Lönekostnad FINANSIÄR'!E38*$C37 -> 0 | G37: ='Lönekostnad FINANSIÄR'!F38*$C37 -> 0 | H37: ='Lönekostnad FINANSIÄR'!G38*$C37 -> 0 | I37: 0 | L37: 0 | N37: 0 | O37: 0 | P37: 0 | Q37: 0 | R37: 0 | S37: 0
B38: ='Lönekostnad FINANSIÄR'!A39 -> 0 | C38: ='År 3'!C38 -> 1700 | D38: ='Lönekostnad FINANSIÄR'!C39*$C38 -> 0 | E38: ='Lönekostnad FINANSIÄR'!D39*$C38 -> 0 | F38: ='Lönekostnad FINANSIÄR'!E39*$C38 -> 0 | G38: ='Lönekostnad FINANSIÄR'!F39*$C38 -> 0 | H38: ='Lönekostnad FINANSIÄR'!G39*$C38 -> 0 | I38: 0 | L38: 0 | N38: 0 | O38: 0 | P38: 0 | Q38: 0 | R38: 0 | S38: 0
B39: ='Lönekostnad FINANSIÄR'!A40 -> 0 | C39: ='År 3'!C39 -> 1700 | D39: ='Lönekostnad FINANSIÄR'!C40*$C39 -> 0 | E39: ='Lönekostnad FINANSIÄR'!D40*$C39 -> 0 | F39: ='Lönekostnad FINANSIÄR'!E40*$C39 -> 0 | G39: ='Lönekostnad FINANSIÄR'!F40*$C39 -> 0 | H39: ='Lönekostnad FINANSIÄR'!G40*$C39 -> 0 | I39: 0 | L39: 0 | N39: 0 | O39: 0 | P39: 0 | Q39: 0 | R39: 0 | S39: 0
B40: Totalt | C40: =SUM(D40:H40) -> 3969.7 | D40: =SUM(D5:D39) -> 990.3 | E40: 990.3 | F40: 990.3 | G40: 998.8 | H40: 0 | I40: 3969.7 | L40: Totalt | M40: =SUM(N40:R40) -> 52.08141176 | N40: =SUM(N5:N39) -> 12.99035294 | O40: 12.99035294 | P40: 12.99035294 | Q40: 13.11035294 | R40: 0 | S40: 52.08141176
D42: Utfall/Prognos timmar | N42: Omfattning %
D43: =D4 -> År 1 | E43: =E4 -> År 2 | F43: =F4 -> År 3 | G43: =G4 -> År 4 | H43: =H4 -> År 5 | I43: Kr/tim | N43: =D43 -> År 1 | O43: =E43 -> År 2 | P43: =F43 -> År 3 | Q43: =G43 -> År 4 | R43: =H43 -> År 5 | S43: Totalt
B44: =B5 -> Handledning professor | D44: ='År 3'!D44 -> 100 | E44: ='År 3'!E44 -> 150 | F44: ='År 3'!F44 -> 150 | G44: 150 | I44: =IFERROR('Lönekostnad FINANSIÄR'!B6*LönePåläggUppräkningÅr4/C5,0) -> 0 | L44: =B44 -> Handledning professor | N44: =IFERROR(D44/$C5,0) -> 0.05882352941 | O44: =IFERROR(E44/$C5,0) -> 0.08823529412 | P44: =IFERROR(F44/$C5,0) -> 0.08823529412 | Q44: =IFERROR(G44/$C5,0) -> 0.08823529412 | R44: =IFERROR(H44/$C5,0) -> 0 | S44: =SUM(N44:R44) -> 0.3235294118
B45: Handledning lektor | D45: ='År 3'!D45 -> 0 | E45: ='År 3'!E45 -> 150 | F45: ='År 3'!F45 -> 150 | G45: 150 | I45: =IFERROR('Lönekostnad FINANSIÄR'!B7*LönePåläggUppräkningÅr4/C6,0) -> 0 | L45: =B45 -> Handledning lektor | N45: 0 | O45: 0.08823529412 | P45: 0.08823529412 | Q45: 0.08823529412 | R45: 0 | S45: =SUM(N45:R45) -> 0.2647058824
B46: Doktorand (snittlön doktorandtrappa 2019) | D46: ='År 3'!D46 -> 0 | E46: ='År 3'!E46 -> 150 | F46: ='År 3'!F46 -> 150 | G46: 150 | I46: =IFERROR('Lönekostnad FINANSIÄR'!B8*LönePåläggUppräkningÅr4/C7,0) -> 0 | L46: Doktorand (snittlön doktorandtrappa 2019) | N46: 0 | O46: 0.1764705882 | P46: 0.1764705882 | Q46: 0.1764705882 | R46: 0 | S46: 0.5294117647
B47: Opponent | D47: ='År 3'!D47 -> 0 | E47: ='År 3'!E47 -> 150 | F47: ='År 3'!F47 -> 150 | G47: 150 | I47: =IFERROR('Lönekostnad FINANSIÄR'!B9*LönePåläggUppräkningÅr4/C8,0) -> 0 | L47: Opponent | N47: 0 | O47: 0.1764705882 | P47: 0.1764705882 | Q47: 0.1764705882 | R47: 0 | S47: 0.5294117647
B48: Doktorandkurser 60 hp, | D48: ='År 3'!D48 -> 0 | E48: ='År 3'!E48 -> 150 | F48: ='År 3'!F48 -> 150 | G48: 150 | I48: =IFERROR('Lönekostnad FINANSIÄR'!B10*LönePåläggUppräkningÅr4/C9,0) -> 0 | L48: Doktorandkurser 60 hp, | N48: 0 | O48: 0.08823529412 | P48: 0.08823529412 | Q48: 0.08823529412 | R48: 0 | S48: 0.2647058824
B49: (totalt 8 kurser * 7,5 hp 20 timmar/kurs för doktoranden) | D49: ='År 3'!D49 -> 0 | E49: ='År 3'!E49 -> 150 | F49: ='År 3'!F49 -> 150 | G49: 150 | I49: =IFERROR('Lönekostnad FINANSIÄR'!B11*LönePåläggUppräkningÅr4/C10,0) -> 0 | L49: (totalt 8 kurser * 7,5 hp 20 timmar/kurs för doktoranden) | N49: 0 | O49: 0.08823529412 | P49: 0.08823529412 | Q49: 0.08823529412 | R49: 0 | S49: 0.2647058824
B50: 0 | D50: ='År 3'!D50 -> 0 | E50: ='År 3'!E50 -> 150 | F50: ='År 3'!F50 -> 150 | G50: 150 | I50: =IFERROR('Lönekostnad FINANSIÄR'!B12*LönePåläggUppräkningÅr4/C11,0) -> 0 | L50: 0 | N50: 0 | O50: 0.08823529412 | P50: 0.08823529412 | Q50: 0.08823529412 | R50: 0 | S50: 0.2647058824
B51: 0 | D51: ='År 3'!D51 -> 0 | E51: ='År 3'!E51 -> 150 | F51: ='År 3'!F51 -> 150 | G51: 150 | I51: =IFERROR('Lönekostnad FINANSIÄR'!B13*LönePåläggUppräkningÅr4/C12,0) -> 0 | L51: 0 | N51: 0 | O51: 0.08823529412 | P51: 0.08823529412 | Q51: 0.08823529412 | R51: 0 | S51: 0.2647058824
B52: 0 | D52: ='År 3'!D52 -> 0 | E52: ='År 3'!E52 -> 150 | F52: ='År 3'!F52 -> 150 | G52: 150 | I52: =IFERROR('Lönekostnad FINANSIÄR'!B14*LönePåläggUppräkningÅr4/C13,0) -> 0 | L52: 0 | N52: 0 | O52: 0.08823529412 | P52: 0.08823529412 | Q52: 0.08823529412 | R52: 0 | S52: 0.2647058824
B53: 0 | D53: ='År 3'!D53 -> 0 | E53: ='År 3'!E53 -> 150 | F53: ='År 3'!F53 -> 150 | G53: 150 | I53: =IFERROR('Lönekostnad FINANSIÄR'!B15*LönePåläggUppräkningÅr4/C14,0) -> 0 | L53: 0 | N53: 0 | O53: 0.08823529412 | P53: 0.08823529412 | Q53: 0.08823529412 | R53: 0 | S53: 0.2647058824
B54: 0 | D54: ='År 3'!D54 -> 0 | E54: ='År 3'!E54 -> 150 | F54: ='År 3'!F54 -> 150 | G54: 150 | I54: =IFERROR('Lönekostnad FINANSIÄR'!B16*LönePåläggUppräkningÅr4/C15,0) -> 0 | L54: =B54 -> 0 | N54: 0 | O54: 0.08823529412 | P54: 0.08823529412 | Q54: 0.08823529412 | R54: 0 | S54: =SUM(N54:R54) -> 0.2647058824
B55: 0 | D55: ='År 3'!D55 -> 0 | E55: ='År 3'!E55 -> 150 | F55: ='År 3'!F55 -> 150 | G55: 150 | I55: =IFERROR('Lönekostnad FINANSIÄR'!B17*LönePåläggUppräkningÅr4/C16,0) -> 0 | L55: 0 | N55: 0 | O55: 0.08823529412 | P55: 0.08823529412 | Q55: 0.08823529412 | R55: 0 | S55: 0.2647058824
B56: 0 | D56: ='År 3'!D56 -> 0 | E56: ='År 3'!E56 -> 150 | F56: ='År 3'!F56 -> 150 | G56: 150 | I56: =IFERROR('Lönekostnad FINANSIÄR'!B18*LönePåläggUppräkningÅr4/C17,0) -> 0 | L56: 0 | N56: 0 | O56: 0.08823529412 | P56: 0.08823529412 | Q56: 0.08823529412 | R56: 0 | S56: 0.2647058824
B57: 0 | D57: ='År 3'!D57 -> 0 | E57: ='År 3'!E57 -> 150 | F57: ='År 3'!F57 -> 150 | G57: 150 | I57: =IFERROR('Lönekostnad FINANSIÄR'!B19*LönePåläggUppräkningÅr4/C18,0) -> 0 | L57: 0 | N57: 0 | O57: 0.08823529412 | P57: 0.08823529412 | Q57: 0.08823529412 | R57: 0 | S57: 0.2647058824
B58: 0 | D58: ='År 3'!D58 -> 0 | E58: ='År 3'!E58 -> 150 | F58: ='År 3'!F58 -> 150 | G58: 150 | I58: =IFERROR('Lönekostnad FINANSIÄR'!B20*LönePåläggUppräkningÅr4/C19,0) -> 0 | L58: 0 | N58: 0 | O58: 0.08823529412 | P58: 0.08823529412 | Q58: 0.08823529412 | R58: 0 | S58: 0.2647058824
B59: 0 | D59: ='År 3'!D59 -> 0 | E59: ='År 3'!E59 -> 150 | F59: ='År 3'!F59 -> 150 | G59: 150 | I59: =IFERROR('Lönekostnad FINANSIÄR'!#REF!*LönePåläggUppräkningÅr4/C20,0) -> 0 | L59: 0 | N59: 0 | O59: 0.08823529412 | P59: 0.08823529412 | Q59: 0.08823529412 | R59: 0 | S59: 0.2647058824
B60: =B21 -> 0 | D60: ='År 3'!D60 -> 0 | E60: ='År 3'!E60 -> 170 | F60: ='År 3'!F60 -> 170 | G60: 170 | I60: =IFERROR('Lönekostnad FINANSIÄR'!#REF!*LönePåläggUppräkningÅr4/C21,0) -> 0 | L60: =B60 -> 0 | N60: =IFERROR(D60/$C21,0) -> 0 | O60: =IFERROR(E60/$C21,0) -> 0.1 | P60: =IFERROR(F60/$C21,0) -> 0.1 | Q60: =IFERROR(G60/$C21,0) -> 0.1 | R60: =IFERROR(H60/$C21,0) -> 0 | S60: =SUM(N60:R60) -> 0.3
B61: 0 | D61: ='År 3'!D61 -> 0 | E61: ='År 3'!E61 -> 170 | F61: ='År 3'!F61 -> 170 | G61: 170 | I61: =IFERROR('Lönekostnad FINANSIÄR'!#REF!*LönePåläggUppräkningÅr4/C22,0) -> 0 | L61: 0 | N61: 0 | O61: 0.1 | P61: 0.1 | Q61: 0.1 | R61: 0 | S61: 0.3
B62: 0 | D62: ='År 3'!D62 -> 0 | E62: ='År 3'!E62 -> 170 | F62: ='År 3'!F62 -> 170 | G62: 170 | I62: =IFERROR('Lönekostnad FINANSIÄR'!#REF!*LönePåläggUppräkningÅr4/C23,0) -> 0 | L62: 0 | N62: 0 | O62: 0.1 | P62: 0.1 | Q62: 0.1 | R62: 0 | S62: 0.3
B63: 0 | D63: ='År 3'!D63 -> 0 | E63: ='År 3'!E63 -> 170 | F63: ='År 3'!F63 -> 170 | G63: 170 | I63: =IFERROR('Lönekostnad FINANSIÄR'!#REF!*LönePåläggUppräkningÅr4/C24,0) -> 0 | L63: 0 | N63: 0 | O63: 0.1 | P63: 0.1 | Q63: 0.1 | R63: 0 | S63: 0.3
B64: 0 | D64: ='År 3'!D64 -> 0 | E64: ='År 3'!E64 -> 170 | F64: ='År 3'!F64 -> 170 | G64: 170 | I64: =IFERROR('Lönekostnad FINANSIÄR'!#REF!*LönePåläggUppräkningÅr4/C25,0) -> 0 | L64: 0 | N64: 0 | O64: 0.1 | P64: 0.1 | Q64: 0.1 | R64: 0 | S64: 0.3
B65: 0 | D65: ='År 3'!D65 -> 0 | E65: ='År 3'!E65 -> 170 | F65: ='År 3'!F65 -> 170 | G65: 170 | I65: =IFERROR('Lönekostnad FINANSIÄR'!#REF!*LönePåläggUppräkningÅr4/C26,0) -> 0 | L65: 0 | N65: 0 | O65: 0.1 | P65: 0.1 | Q65: 0.1 | R65: 0 | S65: 0.3
B66: 0 | D66: ='År 3'!D66 -> 0 | E66: ='År 3'!E66 -> 170 | F66: ='År 3'!F66 -> 170 | G66: 170 | I66: =IFERROR('Lönekostnad FINANSIÄR'!#REF!*LönePåläggUppräkningÅr4/C27,0) -> 0 | L66: 0 | N66: 0 | O66: 0.1 | P66: 0.1 | Q66: 0.1 | R66: 0 | S66: 0.3
B67: 0 | D67: ='År 3'!D67 -> 0 | E67: ='År 3'!E67 -> 170 | F67: ='År 3'!F67 -> 170 | G67: 170 | I67: =IFERROR('Lönekostnad FINANSIÄR'!#REF!*LönePåläggUppräkningÅr4/C28,0) -> 0 | L67: 0 | N67: 0 | O67: 0.1 | P67: 0.1 | Q67: 0.1 | R67: 0 | S67: 0.3
B68: 0 | D68: ='År 3'!D68 -> 0 | E68: ='År 3'!E68 -> 170 | F68: ='År 3'!F68 -> 170 | G68: 170 | I68: =IFERROR('Lönekostnad FINANSIÄR'!#REF!*LönePåläggUppräkningÅr4/C29,0) -> 0 | L68: 0 | N68: 0 | O68: 0.1 | P68: 0.1 | Q68: 0.1 | R68: 0 | S68: 0.3
B69: 0 | D69: ='År 3'!D69 -> 0 | E69: ='År 3'!E69 -> 170 | F69: ='År 3'!F69 -> 170 | G69: 170 | I69: =IFERROR('Lönekostnad FINANSIÄR'!#REF!*LönePåläggUppräkningÅr4/C30,0) -> 0 | L69: 0 | N69: 0 | O69: 0.1 | P69: 0.1 | Q69: 0.1 | R69: 0 | S69: 0.3
B70: 0 | D70: ='År 3'!D70 -> 0 | E70: ='År 3'!E70 -> 170 | F70: ='År 3'!F70 -> 170 | G70: 170 | I70: =IFERROR('Lönekostnad FINANSIÄR'!#REF!*LönePåläggUppräkningÅr4/C31,0) -> 0 | L70: 0 | N70: 0 | O70: 0.1 | P70: 0.1 | Q70: 0.1 | R70: 0 | S70: 0.3
B71: 0 | D71: ='År 3'!D71 -> 0 | E71: ='År 3'!E71 -> 170 | F71: ='År 3'!F71 -> 170 | G71: 170 | I71: =IFERROR('Lönekostnad FINANSIÄR'!#REF!*LönePåläggUppräkningÅr4/C32,0) -> 0 | L71: 0 | N71: 0 | O71: 0.1 | P71: 0.1 | Q71: 0.1 | R71: 0 | S71: 0.3
B72: 0 | D72: ='År 3'!D72 -> 0 | E72: ='År 3'!E72 -> 170 | F72: ='År 3'!F72 -> 170 | G72: 170 | I72: =IFERROR('Lönekostnad FINANSIÄR'!#REF!*LönePåläggUppräkningÅr4/C33,0) -> 0 | L72: 0 | N72: 0 | O72: 0.1 | P72: 0.1 | Q72: 0.1 | R72: 0 | S72: 0.3
B73: 0 | D73: ='År 3'!D73 -> 0 | E73: ='År 3'!E73 -> 170 | F73: ='År 3'!F73 -> 170 | G73: 170 | I73: =IFERROR('Lönekostnad FINANSIÄR'!#REF!*LönePåläggUppräkningÅr4/C34,0) -> 0 | L73: 0 | N73: 0 | O73: 0.1 | P73: 0.1 | Q73: 0.1 | R73: 0 | S73: 0.3
B74: 0 | D74: ='År 3'!D74 -> 0 | E74: ='År 3'!E74 -> 170 | F74: ='År 3'!F74 -> 170 | G74: 170 | I74: =IFERROR('Lönekostnad FINANSIÄR'!#REF!*LönePåläggUppräkningÅr4/C35,0) -> 0 | L74: 0 | N74: 0 | O74: 0.1 | P74: 0.1 | Q74: 0.1 | R74: 0 | S74: 0.3
B75: 0 | D75: ='År 3'!D75 -> 0 | E75: ='År 3'!E75 -> 170 | F75: ='År 3'!F75 -> 170 | G75: 170 | I75: =IFERROR('Lönekostnad FINANSIÄR'!#REF!*LönePåläggUppräkningÅr4/C36,0) -> 0 | L75: 0 | N75: 0 | O75: 0.1 | P75: 0.1 | Q75: 0.1 | R75: 0 | S75: 0.3
B76: 0 | D76: ='År 3'!D76 -> 0 | E76: ='År 3'!E76 -> 170 | F76: ='År 3'!F76 -> 170 | G76: 170 | I76: =IFERROR('Lönekostnad FINANSIÄR'!#REF!*LönePåläggUppräkningÅr4/C37,0) -> 0 | L76: 0 | N76: 0 | O76: 0.1 | P76: 0.1 | Q76: 0.1 | R76: 0 | S76: 0.3
B77: 0 | D77: ='År 3'!D77 -> 0 | E77: ='År 3'!E77 -> 170 | F77: ='År 3'!F77 -> 170 | G77: 170 | I77: =IFERROR('Lönekostnad FINANSIÄR'!#REF!*LönePåläggUppräkningÅr4/C38,0) -> 0 | L77: 0 | N77: 0 | O77: 0.1 | P77: 0.1 | Q77: 0.1 | R77: 0 | S77: 0.3
B78: 0 | D78: ='År 3'!D78 -> 0 | E78: ='År 3'!E78 -> 170 | F78: ='År 3'!F78 -> 170 | G78: 170 | I78: =IFERROR('Lönekostnad FINANSIÄR'!#REF!*LönePåläggUppräkningÅr4/C39,0) -> 0 | L78: 0 | N78: 0 | O78: 0.1 | P78: 0.1 | Q78: 0.1 | R78: 0 | S78: 0.3
B79: =B40 -> Totalt | C79: =SUM(D79:H79) -> 16990 | D79: =SUM(D44:D78) -> 100 | E79: =SUM(E44:E78) -> 5630 | F79: =SUM(F44:F78) -> 5630 | G79: =SUM(G44:G78) -> 5630 | H79: =SUM(H44:H78) -> 0 | I79: =SUM(I44:I63) -> 0 | L79: Totalt | M79: =SUM(N79:R79) -> 10.52352941 | N79: =SUM(N44:N78) -> 0.05882352941 | O79: 3.488235294 | P79: 3.488235294 | Q79: 3.488235294 | R79: 0 | S79: 10.52352941

Sheet År 5 (hidden)
B1: ="Projekt: "&Grunduppgifter!$B$5 -> Projekt:
D3: Budget timmar (ev. reviderad) | J3: Godkännande | N3: Manmånader
D4: ='Lönekostnad FINANSIÄR'!C5 -> År 1 | E4: ='Lönekostnad FINANSIÄR'!D5 -> År 2 | F4: ='Lönekostnad FINANSIÄR'!E5 -> År 3 | G4: ='Lönekostnad FINANSIÄR'!F5 -> År 4 | H4: ='Lönekostnad FINANSIÄR'!G5 -> År 5 | I4: Totalt | J4: SC/SR | N4: =D4 -> År 1 | O4: =E4 -> År 2 | P4: =F4 -> År 3 | Q4: =G4 -> År 4 | R4: =H4 -> År 5 | S4: Totalt
B5: ='Lönekostnad FINANSIÄR'!A6 -> Handledning professor | C5: ='År 4'!C5 -> 1700 | D5: ='Lönekostnad FINANSIÄR'!C6*$C5 -> 50.15 | E5: ='Lönekostnad FINANSIÄR'!D6*$C5 -> 50.15 | F5: ='Lönekostnad FINANSIÄR'!E6*$C5 -> 50.15 | G5: ='Lönekostnad FINANSIÄR'!F6*$C5 -> 50.15 | H5: ='Lönekostnad FINANSIÄR'!G6*$C5 -> 0 | I5: =SUM(D5:H5) -> 200.6 | L5: =B5 -> Handledning professor | N5: =IFERROR(D5/($C5/12),0) -> 0.354 | O5: =IFERROR(E5/($C5/12),0) -> 0.354 | P5: 0.354 | Q5: 0.354 | R5: 0 | S5: =SUM(N5:R5) -> 1.416
B6: ='Lönekostnad FINANSIÄR'!A7 -> Handledning lektor | C6: ='År 4'!C6 -> 1700 | D6: ='Lönekostnad FINANSIÄR'!C7*$C6 -> 50.15 | E6: ='Lönekostnad FINANSIÄR'!D7*$C6 -> 50.15 | F6: ='Lönekostnad FINANSIÄR'!E7*$C6 -> 50.15 | G6: ='Lönekostnad FINANSIÄR'!F7*$C6 -> 50.15 | H6: ='Lönekostnad FINANSIÄR'!G7*$C6 -> 0 | I6: =SUM(D6:H6) -> 200.6 | L6: =B6 -> Handledning lektor | N6: =IFERROR(D6/($C6/12),0) -> 0.354 | O6: 0.354 | P6: 0.354 | Q6: 0.354 | R6: 0 | S6: =SUM(N6:R6) -> 1.416
B7: ='Lönekostnad FINANSIÄR'!A8 -> Doktorand (snittlön doktorandtrappa 2019) | C7: ='År 4'!C7 -> 850 | D7: ='Lönekostnad FINANSIÄR'!C8*$C7 -> 850 | E7: ='Lönekostnad FINANSIÄR'!D8*$C7 -> 850 | F7: ='Lönekostnad FINANSIÄR'!E8*$C7 -> 850 | G7: ='Lönekostnad FINANSIÄR'!F8*$C7 -> 850 | H7: ='Lönekostnad FINANSIÄR'!G8*$C7 -> 0 | I7: =SUM(D7:H7) -> 3400 | L7: Doktorand (snittlön doktorandtrappa 2019) | N7: 12 | O7: 12 | P7: 12 | Q7: 12 | R7: 0 | S7: 48
B8: ='Lönekostnad FINANSIÄR'!A9 -> Opponent | C8: ='År 4'!C8 -> 850 | D8: ='Lönekostnad FINANSIÄR'!C9*$C8 -> 0 | E8: ='Lönekostnad FINANSIÄR'!D9*$C8 -> 0 | F8: ='Lönekostnad FINANSIÄR'!E9*$C8 -> 0 | G8: ='Lönekostnad FINANSIÄR'!F9*$C8 -> 8.5 | H8: ='Lönekostnad FINANSIÄR'!G9*$C8 -> 0 | I8: =SUM(D8:H8) -> 8.5 | L8: Opponent | N8: 0 | O8: 0 | P8: 0 | Q8: 0.12 | R8: 0 | S8: 0.12
B9: ='Lönekostnad FINANSIÄR'!A10 -> Doktorandkurser 60 hp, | C9: ='År 4'!C9 -> 1700 | D9: ='Lönekostnad FINANSIÄR'!C10*$C9 -> 40 | E9: ='Lönekostnad FINANSIÄR'!D10*$C9 -> 40 | F9: ='Lönekostnad FINANSIÄR'!E10*$C9 -> 40 | G9: ='Lönekostnad FINANSIÄR'!F10*$C9 -> 40 | H9: ='Lönekostnad FINANSIÄR'!G10*$C9 -> 0 | I9: 160 | L9: Doktorandkurser 60 hp, | N9: 0.2823529412 | O9: 0.2823529412 | P9: 0.2823529412 | Q9: 0.2823529412 | R9: 0 | S9: 1.129411765
B10: ='Lönekostnad FINANSIÄR'!A11 -> (totalt 8 kurser * 7,5 hp 20 timmar/kurs för doktoranden) | C10: ='År 4'!C10 -> 1700 | D10: ='Lönekostnad FINANSIÄR'!C11*$C10 -> 0 | E10: ='Lönekostnad FINANSIÄR'!D11*$C10 -> 0 | F10: ='Lönekostnad FINANSIÄR'!E11*$C10 -> 0 | G10: ='Lönekostnad FINANSIÄR'!F11*$C10 -> 0 | H10: ='Lönekostnad FINANSIÄR'!G11*$C10 -> 0 | I10: 0 | L10: (totalt 8 kurser * 7,5 hp 20 timmar/kurs för doktoranden) | N10: 0 | O10: 0 | P10: 0 | Q10: 0 | R10: 0 | S10: 0
B11: ='Lönekostnad FINANSIÄR'!A12 -> 0 | C11: ='År 4'!C11 -> 1700 | D11: ='Lönekostnad FINANSIÄR'!C12*$C11 -> 0 | E11: ='Lönekostnad FINANSIÄR'!D12*$C11 -> 0 | F11: ='Lönekostnad FINANSIÄR'!E12*$C11 -> 0 | G11: ='Lönekostnad FINANSIÄR'!F12*$C11 -> 0 | H11: ='Lönekostnad FINANSIÄR'!G12*$C11 -> 0 | I11: 0 | L11: 0 | N11: 0 | O11: 0 | P11: 0 | Q11: 0 | R11: 0 | S11: 0
B12: ='Lönekostnad FINANSIÄR'!A13 -> 0 | C12: ='År 4'!C12 -> 1700 | D12: ='Lönekostnad FINANSIÄR'!C13*$C12 -> 0 | E12: ='Lönekostnad FINANSIÄR'!D13*$C12 -> 0 | F12: ='Lönekostnad FINANSIÄR'!E13*$C12 -> 0 | G12: ='Lönekostnad FINANSIÄR'!F13*$C12 -> 0 | H12: ='Lönekostnad FINANSIÄR'!G13*$C12 -> 0 | I12: 0 | L12: 0 | N12: 0 | O12: 0 | P12: 0 | Q12: 0 | R12: 0 | S12: 0
B13: ='Lönekostnad FINANSIÄR'!A14 -> 0 | C13: ='År 4'!C13 -> 1700 | D13: ='Lönekostnad FINANSIÄR'!C14*$C13 -> 0 | E13: ='Lönekostnad FINANSIÄR'!D14*$C13 -> 0 | F13: ='Lönekostnad FINANSIÄR'!E14*$C13 -> 0 | G13: ='Lönekostnad FINANSIÄR'!F14*$C13 -> 0 | H13: ='Lönekostnad FINANSIÄR'!G14*$C13 -> 0 | I13: 0 | L13: 0 | N13: 0 | O13: 0 | P13: 0 | Q13: 0 | R13: 0 | S13: 0
B14: ='Lönekostnad FINANSIÄR'!A15 -> 0 | C14: ='År 4'!C14 -> 1700 | D14: ='Lönekostnad FINANSIÄR'!C15*$C14 -> 0 | E14: ='Lönekostnad FINANSIÄR'!D15*$C14 -> 0 | F14: ='Lönekostnad FINANSIÄR'!E15*$C14 -> 0 | G14: ='Lönekostnad FINANSIÄR'!F15*$C14 -> 0 | H14: ='Lönekostnad FINANSIÄR'!G15*$C14 -> 0 | I14: 0 | L14: 0 | N14: 0 | O14: 0 | P14: 0 | Q14: 0 | R14: 0 | S14: 0
B15: ='Lönekostnad FINANSIÄR'!A16 -> 0 | C15: ='År 4'!C15 -> 1700 | D15: ='Lönekostnad FINANSIÄR'!C16*$C15 -> 0 | E15: ='Lönekostnad FINANSIÄR'!D16*$C15 -> 0 | F15: ='Lönekostnad FINANSIÄR'!E16*$C15 -> 0 | G15: ='Lönekostnad FINANSIÄR'!F16*$C15 -> 0 | H15: ='Lönekostnad FINANSIÄR'!G16*$C15 -> 0 | I15: =SUM(D15:H15) -> 0 | L15: =B15 -> 0 | N15: =IFERROR(D15/($C15/12),0) -> 0 | O15: 0 | P15: 0 | Q15: 0 | R15: 0 | S15: =SUM(N15:R15) -> 0
B16: ='Lönekostnad FINANSIÄR'!A17 -> 0 | C16: ='År 4'!C16 -> 1700 | D16: ='Lönekostnad FINANSIÄR'!C17*$C16 -> 0 | E16: ='Lönekostnad FINANSIÄR'!D17*$C16 -> 0 | F16: ='Lönekostnad FINANSIÄR'!E17*$C16 -> 0 | G16: ='Lönekostnad FINANSIÄR'!F17*$C16 -> 0 | H16: ='Lönekostnad FINANSIÄR'!G17*$C16 -> 0 | I16: =SUM(D16:H16) -> 0 | L16: =B16 -> 0 | N16: 0 | O16: 0 | P16: 0 | Q16: 0 | R16: 0 | S16: =SUM(N16:R16) -> 0
B17: ='Lönekostnad FINANSIÄR'!A18 -> 0 | C17: ='År 4'!C17 -> 1700 | D17: ='Lönekostnad FINANSIÄR'!C18*$C17 -> 0 | E17: ='Lönekostnad FINANSIÄR'!D18*$C17 -> 0 | F17: ='Lönekostnad FINANSIÄR'!E18*$C17 -> 0 | G17: ='Lönekostnad FINANSIÄR'!F18*$C17 -> 0 | H17: ='Lönekostnad FINANSIÄR'!G18*$C17 -> 0 | I17: =SUM(D17:H17) -> 0 | L17: =B17 -> 0 | N17: 0 | O17: 0 | P17: 0 | Q17: 0 | R17: 0 | S17: =SUM(N17:R17) -> 0
B18: ='Lönekostnad FINANSIÄR'!A19 -> 0 | C18: ='År 4'!C18 -> 1700 | D18: ='Lönekostnad FINANSIÄR'!C19*$C18 -> 0 | E18: ='Lönekostnad FINANSIÄR'!D19*$C18 -> 0 | F18: ='Lönekostnad FINANSIÄR'!E19*$C18 -> 0 | G18: ='Lönekostnad FINANSIÄR'!F19*$C18 -> 0 | H18: ='Lönekostnad FINANSIÄR'!G19*$C18 -> 0 | I18: =SUM(D18:H18) -> 0 | L18: =B18 -> 0 | N18: 0 | O18: 0 | P18: 0 | Q18: 0 | R18: 0 | S18: =SUM(N18:R18) -> 0
B19: ='Lönekostnad FINANSIÄR'!A20 -> 0 | C19: ='År 4'!C19 -> 1700 | D19: ='Lönekostnad FINANSIÄR'!C20*$C19 -> 0 | E19: ='Lönekostnad FINANSIÄR'!D20*$C19 -> 0 | F19: ='Lönekostnad FINANSIÄR'!E20*$C19 -> 0 | G19: ='Lönekostnad FINANSIÄR'!F20*$C19 -> 0 | H19: ='Lönekostnad FINANSIÄR'!G20*$C19 -> 0 | I19: =SUM(D19:H19) -> 0 | L19: =B19 -> 0 | N19: 0 | O19: 0 | P19: 0 | Q19: 0 | R19: 0 | S19: =SUM(N19:R19) -> 0
B20: ='Lönekostnad FINANSIÄR'!A21 -> 0 | C20: ='År 4'!C20 -> 1700 | D20: ='Lönekostnad FINANSIÄR'!C21*$C20 -> 0 | E20: ='Lönekostnad FINANSIÄR'!D21*$C20 -> 0 | F20: ='Lönekostnad FINANSIÄR'!E21*$C20 -> 0 | G20: ='Lönekostnad FINANSIÄR'!F21*$C20 -> 0 | H20: ='Lönekostnad FINANSIÄR'!G21*$C20 -> 0 | I20: =SUM(D20:H20) -> 0 | L20: =B20 -> 0 | N20: =IFERROR(D20/($C20/12),0) -> 0 | O20: =IFERROR(E20/($C20/12),0) -> 0 | P20: =IFERROR(F20/($C20/12),0) -> 0 | Q20: =IFERROR(G20/($C20/12),0) -> 0 | R20: =IFERROR(H20/($C20/12),0) -> 0 | S20: =SUM(N20:R20) -> 0
B21: ='Lönekostnad FINANSIÄR'!A22 -> 0 | C21: ='År 4'!C21 -> 1700 | D21: ='Lönekostnad FINANSIÄR'!C22*$C21 -> 0 | E21: ='Lönekostnad FINANSIÄR'!D22*$C21 -> 0 | F21: ='Lönekostnad FINANSIÄR'!E22*$C21 -> 0 | G21: ='Lönekostnad FINANSIÄR'!F22*$C21 -> 0 | H21: ='Lönekostnad FINANSIÄR'!G22*$C21 -> 0 | I21: 0 | L21: 0 | N21: 0 | O21: 0 | P21: 0 | Q21: 0 | R21: 0 | S21: 0
B22: ='Lönekostnad FINANSIÄR'!A23 -> 0 | C22: ='År 4'!C22 -> 1700 | D22: ='Lönekostnad FINANSIÄR'!C23*$C22 -> 0 | E22: ='Lönekostnad FINANSIÄR'!D23*$C22 -> 0 | F22: ='Lönekostnad FINANSIÄR'!E23*$C22 -> 0 | G22: ='Lönekostnad FINANSIÄR'!F23*$C22 -> 0 | H22: ='Lönekostnad FINANSIÄR'!G23*$C22 -> 0 | I22: 0 | L22: 0 | N22: 0 | O22: 0 | P22: 0 | Q22: 0 | R22: 0 | S22: 0
B23: ='Lönekostnad FINANSIÄR'!A24 -> 0 | C23: ='År 4'!C23 -> 1700 | D23: ='Lönekostnad FINANSIÄR'!C24*$C23 -> 0 | E23: ='Lönekostnad FINANSIÄR'!D24*$C23 -> 0 | F23: ='Lönekostnad FINANSIÄR'!E24*$C23 -> 0 | G23: ='Lönekostnad FINANSIÄR'!F24*$C23 -> 0 | H23: ='Lönekostnad FINANSIÄR'!G24*$C23 -> 0 | I23: 0 | L23: 0 | N23: 0 | O23: 0 | P23: 0 | Q23: 0 | R23: 0 | S23: 0
B24: ='Lönekostnad FINANSIÄR'!A25 -> 0 | C24: ='År 4'!C24 -> 1700 | D24: ='Lönekostnad FINANSIÄR'!C25*$C24 -> 0 | E24: ='Lönekostnad FINANSIÄR'!D25*$C24 -> 0 | F24: ='Lönekostnad FINANSIÄR'!E25*$C24 -> 0 | G24: ='Lönekostnad FINANSIÄR'!F25*$C24 -> 0 | H24: ='Lönekostnad FINANSIÄR'!G25*$C24 -> 0 | I24: 0 | L24: 0 | N24: 0 | O24: 0 | P24: 0 | Q24: 0 | R24: 0 | S24: 0
B25: ='Lönekostnad FINANSIÄR'!A26 -> 0 | C25: ='År 4'!C25 -> 1700 | D25: ='Lönekostnad FINANSIÄR'!C26*$C25 -> 0 | E25: ='Lönekostnad FINANSIÄR'!D26*$C25 -> 0 | F25: ='Lönekostnad FINANSIÄR'!E26*$C25 -> 0 | G25: ='Lönekostnad FINANSIÄR'!F26*$C25 -> 0 | H25: ='Lönekostnad FINANSIÄR'!G26*$C25 -> 0 | I25: 0 | L25: 0 | N25: 0 | O25: 0 | P25: 0 | Q25: 0 | R25: 0 | S25: 0
B26: ='Lönekostnad FINANSIÄR'!A27 -> 0 | C26: ='År 4'!C26 -> 1700 | D26: ='Lönekostnad FINANSIÄR'!C27*$C26 -> 0 | E26: ='Lönekostnad FINANSIÄR'!D27*$C26 -> 0 | F26: ='Lönekostnad FINANSIÄR'!E27*$C26 -> 0 | G26: ='Lönekostnad FINANSIÄR'!F27*$C26 -> 0 | H26: ='Lönekostnad FINANSIÄR'!G27*$C26 -> 0 | I26: 0 | L26: 0 | N26: 0 | O26: 0 | P26: 0 | Q26: 0 | R26: 0 | S26: 0
B27: ='Lönekostnad FINANSIÄR'!A28 -> 0 | C27: ='År 4'!C27 -> 1700 | D27: ='Lönekostnad FINANSIÄR'!C28*$C27 -> 0 | E27: ='Lönekostnad FINANSIÄR'!D28*$C27 -> 0 | F27: ='Lönekostnad FINANSIÄR'!E28*$C27 -> 0 | G27: ='Lönekostnad FINANSIÄR'!F28*$C27 -> 0 | H27: ='Lönekostnad FINANSIÄR'!G28*$C27 -> 0 | I27: 0 | L27: 0 | N27: 0 | O27: 0 | P27: 0 | Q27: 0 | R27: 0 | S27: 0
B28: ='Lönekostnad FINANSIÄR'!A29 -> 0 | C28: ='År 4'!C28 -> 1700 | D28: ='Lönekostnad FINANSIÄR'!C29*$C28 -> 0 | E28: ='Lönekostnad FINANSIÄR'!D29*$C28 -> 0 | F28: ='Lönekostnad FINANSIÄR'!E29*$C28 -> 0 | G28: ='Lönekostnad FINANSIÄR'!F29*$C28 -> 0 | H28: ='Lönekostnad FINANSIÄR'!G29*$C28 -> 0 | I28: 0 | L28: 0 | N28: 0 | O28: 0 | P28: 0 | Q28: 0 | R28: 0 | S28: 0
B29: ='Lönekostnad FINANSIÄR'!A30 -> 0 | C29: ='År 4'!C29 -> 1700 | D29: ='Lönekostnad FINANSIÄR'!C30*$C29 -> 0 | E29: ='Lönekostnad FINANSIÄR'!D30*$C29 -> 0 | F29: ='Lönekostnad FINANSIÄR'!E30*$C29 -> 0 | G29: ='Lönekostnad FINANSIÄR'!F30*$C29 -> 0 | H29: ='Lönekostnad FINANSIÄR'!G30*$C29 -> 0 | I29: 0 | L29: 0 | N29: 0 | O29: 0 | P29: 0 | Q29: 0 | R29: 0 | S29: 0
B30: ='Lönekostnad FINANSIÄR'!A31 -> 0 | C30: ='År 4'!C30 -> 1700 | D30: ='Lönekostnad FINANSIÄR'!C31*$C30 -> 0 | E30: ='Lönekostnad FINANSIÄR'!D31*$C30 -> 0 | F30: ='Lönekostnad FINANSIÄR'!E31*$C30 -> 0 | G30: ='Lönekostnad FINANSIÄR'!F31*$C30 -> 0 | H30: ='Lönekostnad FINANSIÄR'!G31*$C30 -> 0 | I30: 0 | L30: 0 | N30: 0 | O30: 0 | P30: 0 | Q30: 0 | R30: 0 | S30: 0
B31: ='Lönekostnad FINANSIÄR'!A32 -> 0 | C31: ='År 4'!C31 -> 1700 | D31: ='Lönekostnad FINANSIÄR'!C32*$C31 -> 0 | E31: ='Lönekostnad FINANSIÄR'!D32*$C31 -> 0 | F31: ='Lönekostnad FINANSIÄR'!E32*$C31 -> 0 | G31: ='Lönekostnad FINANSIÄR'!F32*$C31 -> 0 | H31: ='Lönekostnad FINANSIÄR'!G32*$C31 -> 0 | I31: 0 | L31: 0 | N31: 0 | O31: 0 | P31: 0 | Q31: 0 | R31: 0 | S31: 0
B32: ='Lönekostnad FINANSIÄR'!A33 -> 0 | C32: ='År 4'!C32 -> 1700 | D32: ='Lönekostnad FINANSIÄR'!C33*$C32 -> 0 | E32: ='Lönekostnad FINANSIÄR'!D33*$C32 -> 0 | F32: ='Lönekostnad FINANSIÄR'!E33*$C32 -> 0 | G32: ='Lönekostnad FINANSIÄR'!F33*$C32 -> 0 | H32: ='Lönekostnad FINANSIÄR'!G33*$C32 -> 0 | I32: 0 | L32: 0 | N32: 0 | O32: 0 | P32: 0 | Q32: 0 | R32: 0 | S32: 0
B33: ='Lönekostnad FINANSIÄR'!A34 -> 0 | C33: ='År 4'!C33 -> 1700 | D33: ='Lönekostnad FINANSIÄR'!C34*$C33 -> 0 | E33: ='Lönekostnad FINANSIÄR'!D34*$C33 -> 0 | F33: ='Lönekostnad FINANSIÄR'!E34*$C33 -> 0 | G33: ='Lönekostnad FINANSIÄR'!F34*$C33 -> 0 | H33: ='Lönekostnad FINANSIÄR'!G34*$C33 -> 0 | I33: 0 | L33: 0 | N33: 0 | O33: 0 | P33: 0 | Q33: 0 | R33: 0 | S33: 0
B34: ='Lönekostnad FINANSIÄR'!A35 -> 0 | C34: ='År 4'!C34 -> 1700 | D34: ='Lönekostnad FINANSIÄR'!C35*$C34 -> 0 | E34: ='Lönekostnad FINANSIÄR'!D35*$C34 -> 0 | F34: ='Lönekostnad FINANSIÄR'!E35*$C34 -> 0 | G34: ='Lönekostnad FINANSIÄR'!F35*$C34 -> 0 | H34: ='Lönekostnad FINANSIÄR'!G35*$C34 -> 0 | I34: 0 | L34: 0 | N34: 0 | O34: 0 | P34: 0 | Q34: 0 | R34: 0 | S34: 0
B35: ='Lönekostnad FINANSIÄR'!A36 -> 0 | C35: ='År 4'!C35 -> 1700 | D35: ='Lönekostnad FINANSIÄR'!C36*$C35 -> 0 | E35: ='Lönekostnad FINANSIÄR'!D36*$C35 -> 0 | F35: ='Lönekostnad FINANSIÄR'!E36*$C35 -> 0 | G35: ='Lönekostnad FINANSIÄR'!F36*$C35 -> 0 | H35: ='Lönekostnad FINANSIÄR'!G36*$C35 -> 0 | I35: 0 | L35: 0 | N35: 0 | O35: 0 | P35: 0 | Q35: 0 | R35: 0 | S35: 0
B36: ='Lönekostnad FINANSIÄR'!A37 -> 0 | C36: ='År 4'!C36 -> 1700 | D36: ='Lönekostnad FINANSIÄR'!C37*$C36 -> 0 | E36: ='Lönekostnad FINANSIÄR'!D37*$C36 -> 0 | F36: ='Lönekostnad FINANSIÄR'!E37*$C36 -> 0 | G36: ='Lönekostnad FINANSIÄR'!F37*$C36 -> 0 | H36: ='Lönekostnad FINANSIÄR'!G37*$C36 -> 0 | I36: 0 | L36: 0 | N36: 0 | O36: 0 | P36: 0 | Q36: 0 | R36: 0 | S36: 0
B37: ='Lönekostnad FINANSIÄR'!A38 -> 0 | C37: ='År 4'!C37 -> 1700 | D37: ='Lönekostnad FINANSIÄR'!C38*$C37 -> 0 | E37: ='Lönekostnad FINANSIÄR'!D38*$C37 -> 0 | F37: ='Lönekostnad FINANSIÄR'!E38*$C37 -> 0 | G37: ='Lönekostnad FINANSIÄR'!F38*$C37 -> 0 | H37: ='Lönekostnad FINANSIÄR'!G38*$C37 -> 0 | I37: 0 | L37: 0 | N37: 0 | O37: 0 | P37: 0 | Q37: 0 | R37: 0 | S37: 0
B38: ='Lönekostnad FINANSIÄR'!A39 -> 0 | C38: ='År 4'!C38 -> 1700 | D38: ='Lönekostnad FINANSIÄR'!C39*$C38 -> 0 | E38: ='Lönekostnad FINANSIÄR'!D39*$C38 -> 0 | F38: ='Lönekostnad FINANSIÄR'!E39*$C38 -> 0 | G38: ='Lönekostnad FINANSIÄR'!F39*$C38 -> 0 | H38: ='Lönekostnad FINANSIÄR'!G39*$C38 -> 0 | I38: 0 | L38: 0 | N38: 0 | O38: 0 | P38: 0 | Q38: 0 | R38: 0 | S38: 0
B39: ='Lönekostnad FINANSIÄR'!A40 -> 0 | C39: ='År 4'!C39 -> 1700 | D39: ='Lönekostnad FINANSIÄR'!C40*$C39 -> 0 | E39: ='Lönekostnad FINANSIÄR'!D40*$C39 -> 0 | F39: ='Lönekostnad FINANSIÄR'!E40*$C39 -> 0 | G39: ='Lönekostnad FINANSIÄR'!F40*$C39 -> 0 | H39: ='Lönekostnad FINANSIÄR'!G40*$C39 -> 0 | I39: 0 | L39: 0 | N39: 0 | O39: 0 | P39: 0 | Q39: 0 | R39: 0 | S39: 0
B40: Totalt | C40: =SUM(D40:H40) -> 3969.7 | D40: =SUM(D5:D39) -> 990.3 | E40: 990.3 | F40: 990.3 | G40: 998.8 | H40: 0 | I40: 3969.7 | L40: Totalt | M40: =SUM(N40:R40) -> 52.08141176 | N40: =SUM(N5:N39) -> 12.99035294 | O40: 12.99035294 | P40: 12.99035294 | Q40: 13.11035294 | R40: 0 | S40: 52.08141176
D42: Utfall/Prognos timmar | N42: Omfattning %
D43: =D4 -> År 1 | E43: =E4 -> År 2 | F43: =F4 -> År 3 | G43: =G4 -> År 4 | H43: =H4 -> År 5 | I43: Kr/tim | N43: =D43 -> År 1 | O43: =E43 -> År 2 | P43: =F43 -> År 3 | Q43: =G43 -> År 4 | R43: =H43 -> År 5 | S43: Totalt
B44: =B5 -> Handledning professor | D44: ='År 4'!D44 -> 100 | E44: ='År 4'!E44 -> 150 | F44: ='År 4'!F44 -> 150 | G44: ='År 4'!G44 -> 150 | H44: 150 | I44: =IFERROR('Lönekostnad FINANSIÄR'!B6*LönePåläggUppräkningÅr5/C5,0) -> 0 | L44: =B44 -> Handledning professor | N44: =IFERROR(D44/$C5,0) -> 0.05882352941 | O44: =IFERROR(E44/$C5,0) -> 0.08823529412 | P44: =IFERROR(F44/$C5,0) -> 0.08823529412 | Q44: =IFERROR(G44/$C5,0) -> 0.08823529412 | R44: =IFERROR(H44/$C5,0) -> 0.08823529412 | S44: =SUM(N44:R44) -> 0.4117647059
B45: Handledning lektor | D45: ='År 4'!D45 -> 0 | E45: ='År 4'!E45 -> 150 | F45: ='År 4'!F45 -> 150 | G45: ='År 4'!G45 -> 150 | H45: 150 | I45: =IFERROR('Lönekostnad FINANSIÄR'!B7*LönePåläggUppräkningÅr5/C6,0) -> 0 | L45: =B45 -> Handledning lektor | N45: 0 | O45: 0.08823529412 | P45: 0.08823529412 | Q45: 0.08823529412 | R45: 0.08823529412 | S45: =SUM(N45:R45) -> 0.3529411765
B46: Doktorand (snittlön doktorandtrappa 2019) | D46: ='År 4'!D46 -> 0 | E46: ='År 4'!E46 -> 150 | F46: ='År 4'!F46 -> 150 | G46: ='År 4'!G46 -> 150 | H46: 150 | I46: =IFERROR('Lönekostnad FINANSIÄR'!B8*LönePåläggUppräkningÅr5/C7,0) -> 0 | L46: Doktorand (snittlön doktorandtrappa 2019) | N46: 0 | O46: 0.1764705882 | P46: 0.1764705882 | Q46: 0.1764705882 | R46: 0.1764705882 | S46: 0.7058823529
B47: Opponent | D47: ='År 4'!D47 -> 0 | E47: ='År 4'!E47 -> 150 | F47: ='År 4'!F47 -> 150 | G47: ='År 4'!G47 -> 150 | H47: 150 | I47: =IFERROR('Lönekostnad FINANSIÄR'!B9*LönePåläggUppräkningÅr5/C8,0) -> 0 | L47: Opponent | N47: 0 | O47: 0.1764705882 | P47: 0.1764705882 | Q47: 0.1764705882 | R47: 0.1764705882 | S47: 0.7058823529
B48: Doktorandkurser 60 hp, | D48: ='År 4'!D48 -> 0 | E48: ='År 4'!E48 -> 150 | F48: ='År 4'!F48 -> 150 | G48: ='År 4'!G48 -> 150 | H48: 150 | I48: =IFERROR('Lönekostnad FINANSIÄR'!B10*LönePåläggUppräkningÅr5/C9,0) -> 0 | L48: Doktorandkurser 60 hp, | N48: 0 | O48: 0.08823529412 | P48: 0.08823529412 | Q48: 0.08823529412 | R48: 0.08823529412 | S48: 0.3529411765
B49: (totalt 8 kurser * 7,5 hp 20 timmar/kurs för doktoranden) | D49: ='År 4'!D49 -> 0 | E49: ='År 4'!E49 -> 150 | F49: ='År 4'!F49 -> 150 | G49: ='År 4'!G49 -> 150 | H49: 150 | I49: =IFERROR('Lönekostnad FINANSIÄR'!B11*LönePåläggUppräkningÅr5/C10,0) -> 0 | L49: (totalt 8 kurser * 7,5 hp 20 timmar/kurs för doktoranden) | N49: 0 | O49: 0.08823529412 | P49: 0.08823529412 | Q49: 0.08823529412 | R49: 0.08823529412 | S49: 0.3529411765
B50: 0 | D50: ='År 4'!D50 -> 0 | E50: ='År 4'!E50 -> 150 | F50: ='År 4'!F50 -> 150 | G50: ='År 4'!G50 -> 150 | H50: 150 | I50: =IFERROR('Lönekostnad FINANSIÄR'!B12*LönePåläggUppräkningÅr5/C11,0) -> 0 | L50: 0 | N50: 0 | O50: 0.08823529412 | P50: 0.08823529412 | Q50: 0.08823529412 | R50: 0.08823529412 | S50: 0.3529411765
B51: 0 | D51: ='År 4'!D51 -> 0 | E51: ='År 4'!E51 -> 150 | F51: ='År 4'!F51 -> 150 | G51: ='År 4'!G51 -> 150 | H51: 150 | I51: =IFERROR('Lönekostnad FINANSIÄR'!B13*LönePåläggUppräkningÅr5/C12,0) -> 0 | L51: 0 | N51: 0 | O51: 0.08823529412 | P51: 0.08823529412 | Q51: 0.08823529412 | R51: 0.08823529412 | S51: 0.3529411765
B52: 0 | D52: ='År 4'!D52 -> 0 | E52: ='År 4'!E52 -> 150 | F52: ='År 4'!F52 -> 150 | G52: ='År 4'!G52 -> 150 | H52: 150 | I52: =IFERROR('Lönekostnad FINANSIÄR'!B14*LönePåläggUppräkningÅr5/C13,0) -> 0 | L52: 0 | N52: 0 | O52: 0.08823529412 | P52: 0.08823529412 | Q52: 0.08823529412 | R52: 0.08823529412 | S52: 0.3529411765
B53: 0 | D53: ='År 4'!D53 -> 0 | E53: ='År 4'!E53 -> 150 | F53: ='År 4'!F53 -> 150 | G53: ='År 4'!G53 -> 150 | H53: 150 | I53: =IFERROR('Lönekostnad FINANSIÄR'!B15*LönePåläggUppräkningÅr5/C14,0) -> 0 | L53: 0 | N53: 0 | O53: 0.08823529412 | P53: 0.08823529412 | Q53: 0.08823529412 | R53: 0.08823529412 | S53: 0.3529411765
B54: 0 | D54: ='År 4'!D54 -> 0 | E54: ='År 4'!E54 -> 150 | F54: ='År 4'!F54 -> 150 | G54: ='År 4'!G54 -> 150 | H54: 150 | I54: =IFERROR('Lönekostnad FINANSIÄR'!B16*LönePåläggUppräkningÅr5/C15,0) -> 0 | L54: =B54 -> 0 | N54: 0 | O54: 0.08823529412 | P54: 0.08823529412 | Q54: 0.08823529412 | R54: 0.08823529412 | S54: =SUM(N54:R54) -> 0.3529411765
B55: 0 | D55: ='År 4'!D55 -> 0 | E55: ='År 4'!E55 -> 150 | F55: ='År 4'!F55 -> 150 | G55: ='År 4'!G55 -> 150 | H55: 150 | I55: =IFERROR('Lönekostnad FINANSIÄR'!B17*LönePåläggUppräkningÅr5/C16,0) -> 0 | L55: 0 | N55: 0 | O55: 0.08823529412 | P55: 0.08823529412 | Q55: 0.08823529412 | R55: 0.08823529412 | S55: 0.3529411765
B56: 0 | D56: ='År 4'!D56 -> 0 | E56: ='År 4'!E56 -> 150 | F56: ='År 4'!F56 -> 150 | G56: ='År 4'!G56 -> 150 | H56: 150 | I56: =IFERROR('Lönekostnad FINANSIÄR'!B18*LönePåläggUppräkningÅr5/C17,0) -> 0 | L56: 0 | N56: 0 | O56: 0.08823529412 | P56: 0.08823529412 | Q56: 0.08823529412 | R56: 0.08823529412 | S56: 0.3529411765
B57: 0 | D57: ='År 4'!D57 -> 0 | E57: ='År 4'!E57 -> 150 | F57: ='År 4'!F57 -> 150 | G57: ='År 4'!G57 -> 150 | H57: 150 | I57: =IFERROR('Lönekostnad FINANSIÄR'!B19*LönePåläggUppräkningÅr5/C18,0) -> 0 | L57: 0 | N57: 0 | O57: 0.08823529412 | P57: 0.08823529412 | Q57: 0.08823529412 | R57: 0.08823529412 | S57: 0.3529411765
B58: 0 | D58: ='År 4'!D58 -> 0 | E58: ='År 4'!E58 -> 150 | F58: ='År 4'!F58 -> 150 | G58: ='År 4'!G58 -> 150 | H58: 150 | I58: =IFERROR('Lönekostnad FINANSIÄR'!B20*LönePåläggUppräkningÅr5/C19,0) -> 0 | L58: 0 | N58: 0 | O58: 0.08823529412 | P58: 0.08823529412 | Q58: 0.08823529412 | R58: 0.08823529412 | S58: 0.3529411765
B59: 0 | D59: ='År 4'!D59 -> 0 | E59: ='År 4'!E59 -> 150 | F59: ='År 4'!F59 -> 150 | G59: ='År 4'!G59 -> 150 | H59: 150 | I59: =IFERROR('Lönekostnad FINANSIÄR'!#REF!*LönePåläggUppräkningÅr5/C20,0) -> 0 | L59: 0 | N59: 0 | O59: 0.08823529412 | P59: 0.08823529412 | Q59: 0.08823529412 | R59: 0.08823529412 | S59: 0.3529411765
B60: =B21 -> 0 | D60: ='År 4'!D60 -> 0 | E60: ='År 4'!E60 -> 170 | F60: ='År 4'!F60 -> 170 | G60: ='År 4'!G60 -> 170 | H60: 170 | I60: =IFERROR('Lönekostnad FINANSIÄR'!#REF!*LönePåläggUppräkningÅr5/C21,0) -> 0 | L60: =B60 -> 0 | N60: =IFERROR(D60/$C21,0) -> 0 | O60: =IFERROR(E60/$C21,0) -> 0.1 | P60: =IFERROR(F60/$C21,0) -> 0.1 | Q60: =IFERROR(G60/$C21,0) -> 0.1 | R60: =IFERROR(H60/$C21,0) -> 0.1 | S60: =SUM(N60:R60) -> 0.4
B61: 0 | D61: ='År 4'!D61 -> 0 | E61: ='År 4'!E61 -> 170 | F61: ='År 4'!F61 -> 170 | G61: ='År 4'!G61 -> 170 | H61: 170 | I61: =IFERROR('Lönekostnad FINANSIÄR'!#REF!*LönePåläggUppräkningÅr5/C22,0) -> 0 | L61: 0 | N61: 0 | O61: 0.1 | P61: 0.1 | Q61: 0.1 | R61: 0.1 | S61: 0.4
B62: 0 | D62: ='År 4'!D62 -> 0 | E62: ='År 4'!E62 -> 170 | F62: ='År 4'!F62 -> 170 | G62: ='År 4'!G62 -> 170 | H62: 170 | I62: =IFERROR('Lönekostnad FINANSIÄR'!#REF!*LönePåläggUppräkningÅr5/C23,0) -> 0 | L62: 0 | N62: 0 | O62: 0.1 | P62: 0.1 | Q62: 0.1 | R62: 0.1 | S62: 0.4
B63: 0 | D63: ='År 4'!D63 -> 0 | E63: ='År 4'!E63 -> 170 | F63: ='År 4'!F63 -> 170 | G63: ='År 4'!G63 -> 170 | H63: 170 | I63: =IFERROR('Lönekostnad FINANSIÄR'!#REF!*LönePåläggUppräkningÅr5/C24,0) -> 0 | L63: 0 | N63: 0 | O63: 0.1 | P63: 0.1 | Q63: 0.1 | R63: 0.1 | S63: 0.4
B64: 0 | D64: ='År 4'!D64 -> 0 | E64: ='År 4'!E64 -> 170 | F64: ='År 4'!F64 -> 170 | G64: ='År 4'!G64 -> 170 | H64: 170 | I64: =IFERROR('Lönekostnad FINANSIÄR'!#REF!*LönePåläggUppräkningÅr5/C25,0) -> 0 | L64: 0 | N64: 0 | O64: 0.1 | P64: 0.1 | Q64: 0.1 | R64: 0.1 | S64: 0.4
B65: 0 | D65: ='År 4'!D65 -> 0 | E65: ='År 4'!E65 -> 170 | F65: ='År 4'!F65 -> 170 | G65: ='År 4'!G65 -> 170 | H65: 170 | I65: =IFERROR('Lönekostnad FINANSIÄR'!#REF!*LönePåläggUppräkningÅr5/C26,0) -> 0 | L65: 0 | N65: 0 | O65: 0.1 | P65: 0.1 | Q65: 0.1 | R65: 0.1 | S65: 0.4
B66: 0 | D66: ='År 4'!D66 -> 0 | E66: ='År 4'!E66 -> 170 | F66: ='År 4'!F66 -> 170 | G66: ='År 4'!G66 -> 170 | H66: 170 | I66: =IFERROR('Lönekostnad FINANSIÄR'!#REF!*LönePåläggUppräkningÅr5/C27,0) -> 0 | L66: 0 | N66: 0 | O66: 0.1 | P66: 0.1 | Q66: 0.1 | R66: 0.1 | S66: 0.4
B67: 0 | D67: ='År 4'!D67 -> 0 | E67: ='År 4'!E67 -> 170 | F67: ='År 4'!F67 -> 170 | G67: ='År 4'!G67 -> 170 | H67: 170 | I67: =IFERROR('Lönekostnad FINANSIÄR'!#REF!*LönePåläggUppräkningÅr5/C28,0) -> 0 | L67: 0 | N67: 0 | O67: 0.1 | P67: 0.1 | Q67: 0.1 | R67: 0.1 | S67: 0.4
B68: 0 | D68: ='År 4'!D68 -> 0 | E68: ='År 4'!E68 -> 170 | F68: ='År 4'!F68 -> 170 | G68: ='År 4'!G68 -> 170 | H68: 170 | I68: =IFERROR('Lönekostnad FINANSIÄR'!#REF!*LönePåläggUppräkningÅr5/C29,0) -> 0 | L68: 0 | N68: 0 | O68: 0.1 | P68: 0.1 | Q68: 0.1 | R68: 0.1 | S68: 0.4
B69: 0 | D69: ='År 4'!D69 -> 0 | E69: ='År 4'!E69 -> 170 | F69: ='År 4'!F69 -> 170 | G69: ='År 4'!G69 -> 170 | H69: 170 | I69: =IFERROR('Lönekostnad FINANSIÄR'!#REF!*LönePåläggUppräkningÅr5/C30,0) -> 0 | L69: 0 | N69: 0 | O69: 0.1 | P69: 0.1 | Q69: 0.1 | R69: 0.1 | S69: 0.4
B70: 0 | D70: ='År 4'!D70 -> 0 | E70: ='År 4'!E70 -> 170 | F70: ='År 4'!F70 -> 170 | G70: ='År 4'!G70 -> 170 | H70: 170 | I70: =IFERROR('Lönekostnad FINANSIÄR'!#REF!*LönePåläggUppräkningÅr5/C31,0) -> 0 | L70: 0 | N70: 0 | O70: 0.1 | P70: 0.1 | Q70: 0.1 | R70: 0.1 | S70: 0.4
B71: 0 | D71: ='År 4'!D71 -> 0 | E71: ='År 4'!E71 -> 170 | F71: ='År 4'!F71 -> 170 | G71: ='År 4'!G71 -> 170 | H71: 170 | I71: =IFERROR('Lönekostnad FINANSIÄR'!#REF!*LönePåläggUppräkningÅr5/C32,0) -> 0 | L71: 0 | N71: 0 | O71: 0.1 | P71: 0.1 | Q71: 0.1 | R71: 0.1 | S71: 0.4
B72: 0 | D72: ='År 4'!D72 -> 0 | E72: ='År 4'!E72 -> 170 | F72: ='År 4'!F72 -> 170 | G72: ='År 4'!G72 -> 170 | H72: 170 | I72: =IFERROR('Lönekostnad FINANSIÄR'!#REF!*LönePåläggUppräkningÅr5/C33,0) -> 0 | L72: 0 | N72: 0 | O72: 0.1 | P72: 0.1 | Q72: 0.1 | R72: 0.1 | S72: 0.4
B73: 0 | D73: ='År 4'!D73 -> 0 | E73: ='År 4'!E73 -> 170 | F73: ='År 4'!F73 -> 170 | G73: ='År 4'!G73 -> 170 | H73: 170 | I73: =IFERROR('Lönekostnad FINANSIÄR'!#REF!*LönePåläggUppräkningÅr5/C34,0) -> 0 | L73: 0 | N73: 0 | O73: 0.1 | P73: 0.1 | Q73: 0.1 | R73: 0.1 | S73: 0.4
B74: 0 | D74: ='År 4'!D74 -> 0 | E74: ='År 4'!E74 -> 170 | F74: ='År 4'!F74 -> 170 | G74: ='År 4'!G74 -> 170 | H74: 170 | I74: =IFERROR('Lönekostnad FINANSIÄR'!#REF!*LönePåläggUppräkningÅr5/C35,0) -> 0 | L74: 0 | N74: 0 | O74: 0.1 | P74: 0.1 | Q74: 0.1 | R74: 0.1 | S74: 0.4
B75: 0 | D75: ='År 4'!D75 -> 0 | E75: ='År 4'!E75 -> 170 | F75: ='År 4'!F75 -> 170 | G75: ='År 4'!G75 -> 170 | H75: 170 | I75: =IFERROR('Lönekostnad FINANSIÄR'!#REF!*LönePåläggUppräkningÅr5/C36,0) -> 0 | L75: 0 | N75: 0 | O75: 0.1 | P75: 0.1 | Q75: 0.1 | R75: 0.1 | S75: 0.4
B76: 0 | D76: ='År 4'!D76 -> 0 | E76: ='År 4'!E76 -> 170 | F76: ='År 4'!F76 -> 170 | G76: ='År 4'!G76 -> 170 | H76: 170 | I76: =IFERROR('Lönekostnad FINANSIÄR'!#REF!*LönePåläggUppräkningÅr5/C37,0) -> 0 | L76: 0 | N76: 0 | O76: 0.1 | P76: 0.1 | Q76: 0.1 | R76: 0.1 | S76: 0.4
B77: 0 | D77: ='År 4'!D77 -> 0 | E77: ='År 4'!E77 -> 170 | F77: ='År 4'!F77 -> 170 | G77: ='År 4'!G77 -> 170 | H77: 170 | I77: =IFERROR('Lönekostnad FINANSIÄR'!#REF!*LönePåläggUppräkningÅr5/C38,0) -> 0 | L77: 0 | N77: 0 | O77: 0.1 | P77: 0.1 | Q77: 0.1 | R77: 0.1 | S77: 0.4
B78: 0 | D78: ='År 4'!D78 -> 0 | E78: ='År 4'!E78 -> 170 | F78: ='År 4'!F78 -> 170 | G78: ='År 4'!G78 -> 170 | H78: 170 | I78: =IFERROR('Lönekostnad FINANSIÄR'!#REF!*LönePåläggUppräkningÅr5/C39,0) -> 0 | L78: 0 | N78: 0 | O78: 0.1 | P78: 0.1 | Q78: 0.1 | R78: 0.1 | S78: 0.4
B79: =B40 -> Totalt | C79: =SUM(D79:H79) -> 22620 | D79: =SUM(D44:D78) -> 100 | E79: =SUM(E44:E78) -> 5630 | F79: =SUM(F44:F78) -> 5630 | G79: =SUM(G44:G78) -> 5630 | H79: =SUM(H44:H78) -> 5630 | L79: Totalt | M79: =SUM(N79:R79) -> 14.01176471 | N79: =SUM(N44:N78) -> 0.05882352941 | O79: 3.488235294 | P79: 3.488235294 | Q79: 3.488235294 | R79: 3.488235294 | S79: 14.01176471

Sheet PåläggJaNej (hidden)
A1: Ja
A2: Nej

Sheet Löneuppräkning (hidden)
B1: Årsfaktor för löneupräkning
B3: Årsfaktorn tar hänsyn till så att angiven löneuppräkning slår ut även de 3 sista månaderna på året.
B5: Projektår | D5: Årsfaktor
B6: ='Lönekostnad FINANSIÄR'!C5 -> År 1 | C6: a | D6: 1.252325
B7: ='Lönekostnad FINANSIÄR'!$D$5 -> År 2 | C7: b | D7: =a+1 -> 2.252325
B8: ='Lönekostnad FINANSIÄR'!$E$5 -> År 3 | C8: c | D8: =b+1 -> 3.252325
B9: ='Lönekostnad FINANSIÄR'!$F$5 -> År 4 | C9: d | D9: =c_+1 -> 4.252325
B10: ='Lönekostnad FINANSIÄR'!$G$5 -> År 5 | C10: e | D10: =d+1 -> 5.252325
